Workbook

Sheet LDC Info
Z3: 1 | AA3: Alectra Utilities Corporation
Z4: 2 | AA4: Alectra Utilities Corporation - Brampton service territory
Z5: 3 | AA5: Alectra Utilities Corporation - Horizon Utilities service territory
Z6: 4 | AA6: Alectra Utilities Corporation - Mississauga service territory
Z7: 5 | AA7: Alectra Utilities Corporation - PowerStream service territory
Z8: 6 | AA8: Algoma Power Inc.
Z9: 7 | AA9: Atikokan Hydro Inc.
Z10: 8 | AA10: Attawapiskat Power Corporation
Z11: 9 | AA11: Bluewater Power Distribution Corporation
Z12: 10 | AA12: Brantford Power Inc.
Z13: 11 | AA13: Burlington Hydro Inc.
D14: Utility Name | E14: Erie Thames Powerlines Corporation | Z14: 12 | AA14: Canadian Niagara Power Inc. (Eastern Ontario Power/Fort Erie/Port Colborne)
Z15: 13 | AA15: Centre Wellington Hydro Ltd.
D16: Assigned EB Number | E16: EB-2017-0038 | Z16: 14 | AA16: Chapleau Public Utilities Corporation
Z17: 15 | AA17: COLLUS PowerStream Corp.
D18: Name of Contact and Title | E18: Graig Pettit, Director of Regulatory, Finance and Customer Relations | Z18: 16 | AA18: Cooperative Hydro Embrun Inc.
Z19: 17 | AA19: E.L.K. Energy Inc.
D20: Phone Number | E20: 519-485-1820 ext 254 | Z20: 18 | AA20: Energy + Inc.
Z21: 19 | AA21: Enersource Hydro Mississauga Inc.
D22: Email Address | E22: gpettit@eriethamespower.com | Z22: 20 | AA22: Entegrus Powerlines Inc.
Z23: 21 | AA23: ENWIN Utilities Ltd.
D24: Test Year | E24: 2018 | Z24: 22 | AA24: Erie Thames Powerlines Corporation
Z25: 23 | AA25: Espanola Regional Hydro Distribution Corporation
D26: Bridge Year | E26: =IF(ISBLANK(E24), "", E24-1) -> 2017 | Z26: 24 | AA26: Essex Powerlines Corporation
Z27: 25 | AA27: Festival Hydro Inc.
D28: Last Rebasing Year | E28: 2012 | Z28: 26 | AA28: Fort Albany Power Corporation
Z29: 27 | AA29: Fort Frances Power Corporation
A30: Identify the accounting standard used for the test year | Z30: 28 | AA30: Greater Sudbury Hydro Inc.
E31: MIFRS | Z31: 29 | AA31: Grimsby Power Inc.
Z32: 30 | AA32: Guelph Hydro Electric Systems Inc.
A33: Did you update your depreciation and capitalization policies and reflect the changes in policies in a prior rebasing application? | Z33: 31 | AA33: Halton Hills Hydro Inc.
E34: No | Z34: 32 | AA34: Hearst Power Distribution Company Limited
Z35: 33 | AA35: Hydro 2000 Inc.
A36: When did you update your actual depreciation and capitalization policies? | Z36: 34 | AA36: Hydro Hawkesbury Inc.
E37: 2001-01-01 | F37: 2013 | Z37: 35 | AA37: Hydro One Networks Inc.
Z38: 36 | AA38: Hydro One Networks Inc. - Norfolk, Haldimand, Woodstock
A39: Identify the year the applicant adopted IFRS for financial reporting purposes | Z39: 37 | AA39: Hydro One Remote Communities Inc.
E40: 2015 | Z40: 38 | AA40: Hydro Ottawa Limited
Z41: 39 | AA41: Innpower Corporation
Z42: 40 | AA42: Kashechewan Power Corporation
A43: Are you applying for cost recovery for the test and/or future year(s) for Green Energy initiatives? | Z43: 41 | AA43: Kenora Hydro Electric Corporation Ltd.
E44: No | Z44: 42 | AA44: Kingston Hydro Corporation
Z45: 43 | AA45: Kitchener-Wilmot Hydro Inc.
A46: ="Is " & E14 & " an embedded distributor?" -> Is Erie Thames Powerlines Corporation an embedded distributor? | E46: Yes | Z46: 44 | AA46: Lakefront Utilities Inc.
Z47: 45 | AA47: Lakeland Power Distribution Ltd.
Z48: 46 | AA48: London Hydro Inc.
B49: Notes | Z49: 47 | AA49: Midland Power Utility Corporation
Z50: 48 | AA50: Milton Hydro Distribution Inc.
C51: Pale green cells represent input cells. | Z51: 49 | AA51: Newmarket-Tay Power Distribution Ltd.
Z52: 50 | AA52: Niagara Peninsula Energy Inc.
C53: Pale blue cells represent drop-down lists. The applicant should select the appropriate item from the drop-down list. | Z53: 51 | AA53: Niagara-on-the-Lake Hydro Inc.
Z54: 52 | AA54: North Bay Hydro Distribution Limited
C55: White cells contain fixed values, automatically generated values or formulae. | N55: =IF(LEN($G55)>1, (SUMPRODUCT(--($C$78:$C$1000=$C55),--($A$78:$A$1000=$D55), --($B$78:$B$1000=$B55&"_TOTAL"), $L$78:$L$1000)), "") ->  | O55: =IF(LEN($G55)>1, (SUMPRODUCT(--($C$78:$C$1000=$C55),--($A$78:$A$1000=$D55), --($B$78:$B$1000=$B55&"_TOTAL"), $M$78:$M$1000)), "") ->  | Z55: 53 | AA55: Northern Ontario Wires Inc.
N56: =IF(LEN($G56)>1, (SUMPRODUCT(--($C$78:$C$1000=$C56),--($A$78:$A$1000=$D56), --($B$78:$B$1000=$B56&"_TOTAL"), $L$78:$L$1000)), "") ->  | O56: =IF(LEN($G56)>1, (SUMPRODUCT(--($C$78:$C$1000=$C56),--($A$78:$A$1000=$D56), --($B$78:$B$1000=$B56&"_TOTAL"), $M$78:$M$1000)), "") ->  | Z56: 54 | AA56: Oakville Hydro Electricity Distribution Inc.
Z57: 55 | AA57: Orangeville Hydro Limited
Z58: 56 | AA58: Orillia Power Distribution Corporation
Z59: 57 | AA59: Oshawa PUC Networks Inc.
Z60: 58 | AA60: Ottawa River Power Corporation
Z61: 59 | AA61: Peterborough Distribution Inc.
Z62: 60 | AA62: PUC Distribution Inc.
Z63: 61 | AA63: Renfrew Hydro Inc.
Z64: 62 | AA64: Rideau St. Lawrence Distribution Inc.
Z65: 63 | AA65: Sioux Lookout Hydro Inc.
Z66: 64 | AA66: St. Thomas Energy Inc.
Z67: 65 | AA67: Thunder Bay Hydro Electricity Distribution Inc.
Z68: 66 | AA68: Tillsonburg Hydro Inc.
Z69: 67 | AA69: Toronto Hydro-Electric System Limited
Z70: 68 | AA70: Veridian Connections Inc.
Z71: 69 | AA71: Wasaga Distribution Inc.
Z72: 70 | AA72: Waterloo North Hydro Inc.
Z73: 71 | AA73: Welland Hydro-Electric System Corp.
Z74: 72 | AA74: Wellington North Power Inc.
Z75: 73 | AA75: West Coast Huron Energy Inc.
Z76: 74 | AA76: Westario Power Inc.
Z77: 75 | AA77: Whitby Hydro Electric Corporation

Sheet Index
A15: 1 | B15: LDC Information Sheet | E15: 20 | F15: App.2-G: Service Reliability Indicators
A16: 2 | B16: Index | E16: 21 | F16: App.2-H: Other Operating Revenue
A17: 3 | B17: Cost of Service Application Flowchart | E17: 22 | F17: App.2-I: Load Forecast CDM Adjustment Workform
A18: 4 | B18: List of Key References | E18: 23 | F18: App.2-IA: Load Forecast Data Instructions
A19: 5 | B19: App.2-A: List of Requested Approvals | E19: 24 | F19: App.2-IB: Actual and Forecast Load and Customer Data
A20: 6 | B20: App.2-AA: Capital Projects Table | E20: 25 | F20: App.2-JA: OM&A Summary Analysis
A21: 7 | B21: App.2-AB: Capital Expenditures | E21: 26 | F21: App.2-JB: Recoverable OM&A Cost Driver Table
A22: 8 | B22: App. 2-AC: Customer Engagement Worksheet | E22: 27 | F22: App.2-JC: OM&A Programs Table
A23: 9 | B23: App.2-B: General Accounting Instructions | E23: 28 | F23: App.2-K: Employee Costs
A24: 10 | B24: App.2-BA: Fixed Asset Continuity Schedule | E24: 29 | F24: App.2-L: Recoverable OM&A Cost per Customer and per FTE
A25: 11 | B25: Appendix 2-BB: Service Life Comparison | E25: 30 | F25: App.2-M: Regulatory Costs Schedule
A26: 12 | B26: App.2-C_DepExp: Depreciation and Amortization Expense | E26: 31 | F26: App.2-N: Shared Services and Corporate Cost Allocation
A27: 13 | B27: App.2-D: Overhead Expenses | E27: 32 | F27: App.2-OA: Capital Structure and Cost of Capital
A28: 14 | B28: App.2-EA: Account 1575 PP&E Deferral Account (2015 IFRS Adopters) | E28: 33 | F28: App.2-OB: Debt Instruments
A29: 15 | B29: App.2-EB: Account 1576 - Accounting Changes Under CGAAP (2012 Changes) | E29: 34 | F29: App.2-Q: Cost of Serving Embedded Distributor(s)
A30: 16 | B30: App.2-EC: Account 1576 - Accounting Changes Under CGAAP (2013 Changes) | E30: 35 | F30: App.2-R: Loss Factors
A31: 17 | B31: App.2-FA: Renewable Generation Connection Investment Summary | E31: 36 | F31: App.2-S: Stranded Meter Treatment
A32: 18 | B32: App.2-FB: Calculation of Renewable Generation Connection Direct Benefits/Provincial Amount: Renewable Enabling Improvement Investments | E32: 37 | F32: App.2-Y: Transition to MIFRS Summary Impact
A33: 19 | B33: App.2-FC: Calculation of Renewable Generation Connection Direct Benefits/Provincial Amount: Renewable Expansion Investments | E33: 38 | F33: App.2-YA: One-Time Incremental IFRS Transition Costs
A42: Note: | B42: Appendices for the Tariff of Rates and Charges at Current and Proposed Rates, and for the Bill Impacts are now in a separate spreadsheet model. These appendices were formerly 2-Z and 2-W.

Sheet COS Flowchart
B4: Cost of Service Rate Application Schematic
B6: The Cost of Service Rate Application Schematic is a flowchart that is included as a guide for the components of an application. The schematic demonstrates how demand and costs interrelate to derive the revenue requirement and how the revenue requirement is allocated between classes and through fixed/variable splits to derive rates that will be compensatory for the annual revenue requirement, based on the the forecasted demand. There is no form to be filled out; therefore, this Schedule is not required to be filed.

Sheet List of Key References
B3: List of Key References
A5: A list of key references for understanding the Filing Requirements has been embedded in the document below. To access the list of references and associated hyperlinks double-click the icon below.

Sheet App.2-A_Requested_Approvals
G1: File Number: | H1: =EBNUMBER -> EB-2017-0038
G2: Exhibit: | H2: 1
G3: Tab: | H3: 2
G4: Schedule:
G5: Page: | H5: 19
G7: Date: | H7: February 26, 2018
B9: Appendix 2-A
B10: List of Requested Approvals
B12: The distributor must fill out the following sheet with the complete list of specific approvals requested and relevant section(s) of the legislation must be provided. All approvals, including accounting orders (deferral and variance accounts) new rate classes, revised specific service charges or retail service charges which the applicant is seeking, must be separately identified, as well being clearly documented in the appropriate sections of the application.
B14: Additional requests may be added by copying and pasting blank input rows, as needed.
B16: If additional requests arise, or requested approvals are removed, during the processing of the application, the distributor should update this list.
B18: =CONCATENATE('LDC Info'!E14," is seeking the following approvals in this application:") -> Erie Thames Powerlines Corporation is seeking the following approvals in this application:
B20: 1 | F20: Approval to charge distribution rates effective May 1st, 2018 to recover a revenue requirement of $10,930,285 utilizing the proposed rates detailed in Exhibit 8.
B22: 2 | F22: Approval of ETPL's distribution system plan as provided in Attachment 2 C of Exhibit 2.
B24: 3 | F24: Approval for updated Retail Transmission Rates as detailed in Exhibit 8 and the Excel RTSR workform
B26: 4 | F26: Approval of the revised loss factors as detailed in Exhibit 8
B28: 5 | F28: Approval of Wholesale Market Service Rates (with CBDR Split) and revised Rural and Remote Rate Protection Charges as detailed in Exhibit 8
B30: 6 | F30: Approval to continue billing Specific Service Charges, Retail Service Charges and Transformer Ownership Allowances as approved in ETPL's 2017 IRM application EB-2016-0068.
B32: 7 | F32: Approval to dispose of Group 1, Group 2 and Other DVA accounts as detailed in Exhibit 9.
B34: 8 | F34: Approval to continue the transition of residential rates to fully fixed charges as detailed in Exhibit 8

Sheet App.2-AA_Capital Projects
G1: File Number: | H1: =EBNUMBER -> EB-2017-0038
G2: Exhibit: | H2: 2
G3: Tab: | H3: 2
G4: Schedule: | H4: 1
G5: Page: | H5: 27
G7: Date: | H7: February 26, 2018
A9: Appendix 2-AA
A10: Capital Projects Table
A13: Projects | B13: 2013 | C13: 2014 | D13: 2015 | E13: 2016 | F13: 2017 Bridge Year | G13: 2018 Test Year
A14: Reporting Basis | B14: CGAAP | C14: MIFRS | D14: MIFRS | E14: MIFRS | F14: MIFRS | G14: MIFRS
A15: System Access
A16: Comm & Ind Connections | B16: 110247.6269 | C16: 199891.8397 | D16: 251973.9001 | E16: 192895.1637 | F16: 204000 | G16: 204000
A17: Residential Connections | B17: 41910.41661 | C17: 377855.7425 | D17: 395110.8116 | E17: 371235.5783 | F17: 231000 | G17: 231000
A18: Munc Road Reconstruction | B18: 70551.38034 | C18: 123310.0031 | D18: 452380.1888 | E18: 229747.0164
A19: Subdivisions | B19: 104545.5838 | C19: 402881.7747 | D19: 140002.3015 | E19: 110037.0827
A20: Joint Use Make Ready Work | B20: 933.49 | C20: 0 | D20: 0 | E20: 14043.98
A21: Meter Stock Purchases | B21: 57722.94 | C21: 151357.36 | D21: 73325.42 | E21: 142345.24 | F21: 248628 | G21: 234500
A22: MIT-EXPN-3878 WELLINGTON ST. | B22: 12719.02 | C22: 0 | D22: 0 | E22: 0
A23: AYL-FACRL-84 SOUTH ST. W. | B23: 2473.39 | C23: 0 | D23: 0 | E23: 0
A24: ING-FACRL-HOLCROFT ST. | B24: 312060.08 | C24: 1663.85 | D24: 0 | E24: 0
A25: ING-FACRL-CHARLES ST.W. | B25: 3914.52 | C25: 24339.42 | D25: 0 | E25: 0
A26: TAVI-FACRL-79 MARIA ST. | B26: 40237.96 | C26: 0 | D26: 0 | E26: 0
A27: BEL-FACRL-Belmont PME | B27: 828.68 | C27: 0 | D27: 0 | E27: 0
A28: ING-FACRL-Holcroft St Rail Xing | C28: 87643.36 | D28: 0 | E28: 0
A29: PTS-FACRL-Mitchell St | C29: 1959.56 | D29: 0 | E29: 0
A30: THA-FACRL-CHRISTIAN RETREAT | C30: 32483.65 | D30: 0 | E30: 0
A31: CLI-SRVCI-270 Victoria St | B31: 0 | C31: 17068.44 | D31: 0 | E31: 0
A32: TAV-FACRL-117 Hope St | C32: 0 | D32: 3225.2 | E32: 0
A33: Facility Relocates | C33: 0 | D33: 0 | E33: 0 | F33: 50000 | G33: 150000
C34: 0 | D34: 0 | E34: 0
B35: 0 | C35: 0 | D35: 0 | E35: 0
B36: 0 | C36: 0 | D36: 0 | E36: 0
A37: Miscellaneous | B37: 164.9123521 | C37: 0 | D37: 950.19 | E37: 0
A38: Sub-Total | B38: =SUM(B16:B37) -> 758310 | C38: =SUM(C16:C37) -> 1420455 | D38: 1316968.012 | E38: 1060304.061 | F38: 733628 | G38: 819500
A39: System Renewal
A40: TAV-EXPN-WILLIAM ST. | B40: 14360.33172 | C40: 0 | D40: 0 | E40: 0
A41: TAV-UGUPG-JACOB ST. | B41: 8925.356476 | C41: 0 | D41: 0 | E41: 0
A42: BEL-REPL FAC-HAZELWOOD UG UPG | B42: 60786.58814 | C42: 0 | D42: 0 | E42: 0
A43: ING-REPL FAC-MELITA & WONHAM | B43: 97003.17611 | C43: 0 | D43: 0 | E43: 0
A44: CLI-TXCVN-MAPLEHILL APTS | B44: 12769.47947 | C44: 0 | D44: 0 | E44: 0
A45: AYL-Fath Ave Rear Yard | B45: 58172.74377 | C45: 10814.58666 | D45: 0 | E45: 0
A46: ING-GOLDEN GARDENS | B46: 126980.557 | C46: 22912.16182 | D46: 0 | E46: 0
A47: TAV-CONUIT-HOPE & CENTENNIAL | B47: 1437.264072 | C47: 0 | D47: 0 | E47: 0
A48: PTS-GEORGE ST/RIVER/VALLEY/LAK | B48: 12372.60036 | C48: 428520.0746 | D48: 38990.78183 | E48: -8021.041859
A49: OTT-27OHRECON-DOVER ST. | C49: 20246.8672 | D49: 0 | E49: 0
A50: MIT-OHUPG-NAPIER & CLAYTON | C50: 94998.15581 | D50: 0 | E50: 0
A51: TAV-UGUPG-ARENA & SCHOOL | C51: 36093.48383 | D51: 0 | E51: 0
A52: BEL-FACRL-Belmont PME | C52: 65618.61697 | D52: 0 | E52: 0
A53: NOR-OHUPG-STOVER ST N | C53: 285371.3052 | D53: 728.34963 | E53: 0
A54: CLI-27OHCVN-VICTORIA ST. | D54: 13282.76836 | E54: 0
A55: ING-UGRECON-UNDERWOOD AVE-PLLN | D55: 56524.40833 | E55: 73875.26381
A56: PTS-OHUPGD-473 LOWER SPRING ST | D56: 6590.149888 | E56: 0
A57: TAV-REPLCON-WILLIAM ST.SEWPUMP | D57: 5093.039699 | E57: 0
A58: AYL-OHUPG-207 Talbot St E | D58: 1078.000651 | E58: -991.577121
A59: BEL-FACRL-140 Borden Ave | D59: 0 | E59: 1991.378794
A60: PTS-FACRL-Edith Cavell Blvd. E. | D60: 0 | E60: 140085.7564
A61: ING-FACRL-205 INGERSOLL ST. S | E61: 14788.74525
A62: NOR-OHUPF-Municipal Supply Upgr | E62: 3948.690705
A63: THA-REPLACE FAULTED RABBIT- | E63: 7896.271168
A64: CLI-EXPN-Mary St | E64: 3183.478675
A65: ING-REPL SYNERTEC-325 INGERSOLL | D65: 0 | E65: 710.9708902
A66: AYL-LDISP-89 Progress Dr (IGPC) | E66: 14256.86654
A67: ING-OGCONV-Bruce & Metcalfe | G67: 295000
A68: AYL-OHCONV-BMO & Comm Living | G68: 135240
A69: AYL-ONCONV-Myrtle to John w/ pool | G69: 258840
A70: AYL-OHCONV-Caverly RD, Anne to Fath | G70: 82200
A71: AYL-UGCONV-Davenport School | G71: 105450
A72: PTS-OHUPGD-George St Completion | G72: 60000
A73: AYL-OHCONV-Talbot, Myrtle to Wellington | G73: 200120
A74: CLI-OHCONV-Princess, Percival to Schools | G74: 161400
A75: MIT-UGCONV-St Andrew & Maple Crt | G75: 188472
A76: MIT-OHCONV-Step Down TX, Arthur St. | G76: 46000
A77: CLI-OHCONV-Princess, Percival to William St | G77: 241728
A78: BEA-OHCON-Station Egress and Crossing | F78: 120000
A79: TAV-STNUPG-Station Upgrades (PH2) | F79: 100000
A80: OTT-OHUPG-Grove & Maple | F80: 110292
A81: AYL-UGCONV-Talbot St. E.-King to Queen | F81: 185000
A82: AYL-STATION-New Feeder Egress & PME | F82: 304200
A83: AYL-OHCONV-South Street, Caverly to Rutherford | F83: 132000
A84: CLI-OHCONV-Bayfield Road | F84: 274500
A87: Service Upgrades | B87: 0 | C87: 0 | D87: 0 | E87: 63119.35388 | F87: 50000
A88: Conversions | B88: 218829.9809 | C88: 735463.2554 | D88: 1288617.253 | E88: 701865.7194
A89: SubStation Upgrades | B89: 12222.18777 | C89: 4681.31613 | D89: 85828.81188 | E89: 56970.78541 | F89: 15000 | G89: 8000
A90: Replacement - Poles | B90: 71612.90116 | C90: 62883.17258 | D90: 133129.6499 | E90: 176409.0742 | F90: 123000 | G90: 200000
A91: Replacement - Transformers | B91: 15294.79129 | C91: 11336.42395 | D91: 52935.05384 | E91: 50464.85797
A92: Replacement - Insulators | B92: 8103.066625 | C92: 262168.8178 | D92: 0 | E92: 0
A93: Replacement - Switches | B93: 0 | C93: 0 | D93: 0 | E93: 48154.74491 | F93: 50000
A94: Replacement - Primary | B94: 7529.95272 | C94: 0 | D94: 4939.027127 | E94: 0
A95: Replacement - Secondary | B95: 690.4063062 | C95: 0 | D95: 0 | E95: 0
B96: 0 | C96: 0 | D96: 0 | E96: 0
A97: Emergencies - Storm | B97: 8721.332957 | C97: 8754.224437 | D97: 13840.66788 | E97: 13593.36578
A98: Emergencies - Misc | B98: 13455.12241 | C98: 52103.88822 | D98: 24845.2969 | E98: 29060.46127
A100: Unplanned Capital Investments | F100: 150000 | G100: 100000
B101: 0 | C101: 0 | D101: 0 | E101: 0
A102: Maps & Records | B102: 40129.16066 | C102: 196285.6493 | D102: 104062.741 | E102: 124401.6087 | F102: 120000 | G102: 120000
C103: 0 | E103: 0
A104: Miscellaneous | C104: 0 | E104: -132.3159505
A105: Sub-Total | B105: =SUM(B40:B104) -> 789397 | C105: =SUM(C40:C104) -> 2298252 | D105: 1830486 | E105: 1515632.459 | F105: 1733992 | G105: 2202450
A106: System Service
A107: Smart Grid, SCADA & Automation | B107: 42216 | C107: 3856 | D107: 64232 | E107: 188030 | F107: 50000 | G107: 90000
A108: AYL-NEW HYDRO ONE TS | F108: 383343
A112: Sub-Total | B112: =SUM(B107:B111) -> 42216 | C112: =SUM(C107:C111) -> 3856 | D112: 64232 | E112: 188030 | F112: 433343 | G112: 90000
A113: General Plant
A114: Leasehold Improvements | B114: 57278.73 | C114: 49451.27 | D114: 132938.71 | E114: 41813.15 | F114: 49000 | G114: 35000
A115: Rolling Stock | B115: 386631.99 | C115: 137334 | D115: 371567.75 | E115: 347832.25 | F115: 135000 | G115: 20000
A116: Computer Hardware | B116: 57213.91 | C116: 34018.25 | D116: 11372.02 | E116: 22003.13 | F116: 79950 | G116: 56000
A117: Computer Software | B117: 54670.75 | C117: 87557.44 | D117: 218360.8 | E117: 27000.43
A118: Tools | B118: 16441.83 | C118: 23803.41 | D118: 28870.85 | E118: 15489.42 | F118: 35000 | G118: 20000
A119: Communications Equipment | E119: 31915.4
A120: New Shop built in Mitchell | F120: 350000
A121: Miscellaneous
A122: Sub-Total | B122: =SUM(B114:B121) -> 572237.21 | C122: =SUM(C114:C121) -> 332164.37 | D122: 763110.13 | E122: 486053.78 | F122: 648950 | G122: 131000
A123: Miscellaneous
A124: Total | B124: =B122+B112+B105+B38 -> 2162160.21 | C124: =C122+C112+C105+C38 -> 4054727.37 | D124: 3974796.142 | E124: =E122+E112+E105+E38 -> 3250020.3 | F124: 3549913 | G124: 3242950
A125: Less Renewable Generation Facility Assets and Other Non-Rate-Regulated Utility Assets (input as negative)
A126: Total | B126: =B124-B125 -> 2162160.21 | C126: =C124-C125 -> 4054727.37 | D126: 3974796.142 | E126: 3250020.3 | F126: 3549913 | G126: 3242950
A128: Notes:
A130: 1 Please provide a breakdown of the major components of each capital project undertaken in each year. Please ensure that all projects below the materiality threshold are included in the miscellaneous line. Add more projects as required.
A131: 2 The applicant should group projects appropriately and avoid presentations that result in classification of significant components of the capital budget in the miscellaneous category.

Sheet App.2-AB_Capital Expenditures
S1: File Number: | U1: =EBNUMBER -> EB-2017-0038
S2: Exhibit: | U2: 2
S3: Tab: | U3: 5
S4: Schedule:
S5: Page: | U5: 49
S7: Date: | U7: February 26, 2018
A9: Appendix 2-AB
A10: Table 2 - Capital Expenditure Summary from Chapter 5 Consolidated Distribution System Plan Filing Requirements
A12: First year of Forecast Period: | B12: =TestYear -> 2018
A13: CATEGORY | B13: Historical Period (previous plan1 & actual) | Q13: Forecast Period (planned)
B14: =E14-1 -> 2013 | E14: =H14-1 -> 2014 | H14: =K14-1 -> 2015 | K14: =N14-1 -> 2016 | N14: =Q14-1 -> 2017 | Q14: =B12 -> 2018 | R14: =Q14+1 -> 2019 | S14: =R14+1 -> 2020 | T14: =S14+1 -> 2021 | U14: =T14+1 -> 2022
B15: Plan | C15: Actual | D15: Var | E15: Plan | F15: Actual | G15: Var | H15: Plan | I15: Actual | J15: Var | K15: Plan | L15: Actual | M15: Var | N15: Plan | O15: Actual2 | P15: Var
B16: $ '000 | D16: % | E16: $ '000 | G16: % | H16: $ '000 | J16: % | K16: $ '000 | M16: % | N16: $ '000 | P16: % | Q16: $ '000
A17: System Access | B17: 560000 | C17: 758310 | D17: =IF(ISERROR((C17-B17)/B17),"--",(C17-B17)/B17) -> 0.354125 | E17: 405000 | F17: 1420455 | G17: =IF(ISERROR((F17-E17)/E17),"--",(F17-E17)/E17) -> 2.507296296 | H17: 680220 | I17: 1316968 | J17: =IF(ISERROR((I17-H17)/H17),"--",(I17-H17)/H17) -> 0.9360912646 | K17: 806021 | L17: 1060304.061 | M17: =IF(ISERROR((L17-K17)/K17),"--",(L17-K17)/K17) -> 0.3154794492 | N17: 793628 | P17: =IF(ISERROR((O17-N17)/N17),"--",(O17-N17)/N17) -> -1 | Q17: 879500 | R17: 920100 | S17: 812700 | T17: 816300 | U17: 759900
A18: System Renewal | B18: 1986000 | C18: 789397 | D18: -0.6025191339 | E18: 2198000 | F18: 2298252 | G18: 0.04561055505 | H18: 1995440 | I18: 1830486 | J18: -0.08266547729 | K18: 1978591 | L18: 1515632.459 | M18: -0.2339839518 | N18: 1673992 | P18: -1 | Q18: 2142450 | R18: 2002230 | S18: 1907040 | T18: 2168882 | U18: 1939454
A19: System Service | B19: 275775 | C19: 42215 | D19: -0.8469223099 | E19: 225000 | F19: 3856 | G19: -0.9828622222 | H19: 530000 | I19: 64232 | J19: -0.8788075472 | K19: 253430 | L19: 188030 | M19: -0.2580594247 | N19: 448318 | P19: -1 | Q19: 73000 | R19: 74875 | S19: 76750 | T19: 55900 | U19: 55000
A20: General Plant | B20: 470000 | C20: 572239 | D20: 0.2175297872 | E20: 425000 | F20: 332164 | G20: -0.2184376471 | H20: 468250 | I20: 763110 | J20: 0.6297063534 | K20: 558900 | L20: 486053.78 | M20: -0.1303385579 | N20: 633975 | P20: -1 | Q20: 148000 | R20: 234875 | S20: 451750 | T20: 223400 | U20: 526450
A21: TOTAL EXPENDITURE | B21: =SUM(B17:B20) -> 3291775 | C21: =SUM(C17:C20) -> 2162161 | D21: -0.3431625795 | E21: 3253000 | F21: 4054727 | G21: 0.2464577313 | H21: 3673910 | I21: 3974796 | J21: 0.08189803234 | K21: 3596942 | L21: 3250020.3 | M21: -0.09644906701 | N21: 3549913 | O21: 0 | P21: -1 | Q21: 3242950 | R21: 3232080 | S21: 3248240 | T21: 3264482 | U21: =SUM(U17:U20) -> 3280804
A22: System O&M | D22: -- | G22: -- | J22: -- | M22: -- | O22: =(C22+F22+I22+L22)/4*1.01 -> 0 | P22: -- | Q22: 116388.743 | R22: =Q22*1.01 -> 117552.6304 | S22: =R22*1.01 -> 118728.1567 | T22: 119915.4383 | U22: 121114.5927
A24: Notes to the Table:
A25: 1. Historical “previous plan” data is not required unless a plan has previously been filed. However, use the last Board-approved, at least on a Total (Capital) Expenditure basis for the last cost of service rebasing year, and the applicant should include their planned budget in each subsequent historical year up to and including the Bridge Year.
A26: 2. Indicate the number of months of 'actual' data included in the last year of the Historical Period (normally a 'bridge' year): | J26: 8
A28: Explanatory Notes on Variances (complete only if applicable)
A29: Notes on shifts in forecast vs. historical budgets by category
A32: Notes on year over year Plan vs. Actual variances for Total Expenditures
A35: Notes on Plan vs. Actual variance trends for individual expenditure categories

Sheet App.2-AC_Customer Engagement
B1: File Number: | C1: =EBNUMBER -> EB-2017-0038
B2: Exhibit: | C2: 1
B3: Tab: | C3: 5
B4: Schedule: | C4: 1
B5: Page: | C5: 35
B7: Date: | C7: February 26, 2018
A9: Appendix 2-AC
A10: Customer Engagement Activities Summary
A12: Provide a list of customer engagement activities | B12: Provide a list of customer needs and preferences identified through each engagement activity | C12: Actions taken to respond to identified needs and preferences. If no action was taken, explain why.
A13: Residential & Small Business Customer Surveys | B13: - Cost of Electricity; reliability of electricity | C13: ETPL is maintaining a relatively flat level of capital spending aim at maintaining the existing level of reliability.
A15: Large Customer/Group Consultations | B15: Reliability, Power Quality | C15: ETPL has met with directly with its 5 largest customers on an individual basis to understand their needs and concerns with respect to the supply and delivery of electricity to their business. ETPL has worked diligently over the years to improve power quality, reliability and in some cases redundancy to ensure the customer's needs are met.
A17: Municipal Planning Committee | B17: Municipal driven projects being planned- work with all 9 municipalites in which ETPL operates | C17: ETPL manages its customer spend and coordinates its activities with respect to planned work being performed to ensure lack of duplicate effort and makes every effort to renew distribution assets where road widening and or sewer replacements are scheduled.
A20: Website | B20: - access to current usage and cost dat - conservation information - contact information in case of emergency, bill payment issues and general questions - links to related sites | C20: ETPL’s website provides a substantial amount of information to our customer, with relation to their utility bills, services available to customer, rates and how bills are calculated, scheduled power outages, conservation, generation, and electrical safety. We also help to promote community events, and general industry information, as well as our RRFE scorecard.
A22: Bill inserts and Bill notes | B22: - current programs available to save energy - conservation programs and coupons available | C22: ETPL takes advantage of our ability to provide information to our customers both through the use of bill inserts and bill notes
A24: Electrical Safety and Community Events | B24: - general safety guidelines for homeowners and contractors - educational information for primary school children - seasonal saftety reminders | C24: For several years ETPL has been providing a yearly Electrical Safety program to the Elementary School students within our own territory. We have a service provider go into the class room and demonstrate electrical risks and safety actions to be taken. We have always had a great response from the schools within our service territory, and attempt to cycle through all the schools at least once every four years. We also attend various community events such as The Future Oxford Expo where we provide safety tips, and conservation program information.
A26: Conservation and Demand Management | B26: - reduction of consumption of electricity | C26: Our Conservation and Demand Management team is quite active in engaging our customers on a regular basis. We are in regular contact with our largest user (GM-CAMI Automotive) working together to find ways to conserve and review new technical opportunities that would improve their operations. We also hold topic specific meeting, such as our Compressed Air Efficiencies and Incentives Seminar held in May 2015. Commercial/Industrial customers that use compressed air were invited to attend a meeting which we hosted to discuss how to make compressed air systems more efficient and the incentives available from the save on energy program.
A28: Customer Surveys | B28: - decrease cost of electricity - sustain reliability of electricity - sustain quality of electricity | C28: ETPL has completed customer surveys in both 2014 & 2016 and will continue this trend moving forward to obtain valuable information regarding customer satisfaction, knowledge and preferences surrounding their electricity supply. Each additional survey will allow ETPL to trend customer satisfaction and make adjustments to its distribution system plan if warranted. A complete report detailing the results of each customer survey is included in Appendix A & B. ETPL began surveying customers on a yearly basis in 2014. The premise of our first survey was to identify our customers’ preferences regarding the existing level of service reliability and costs, and was targeted at our residential and small business classes. The 2016 survey was again used to collect data from customers regarding their satisfaction, knowledge and preferences however in addition was used to provide customers with a better understanding of where ETPL fits within the provincial electricity system and found that the majority of customers do not have a great understanding of the system and what Erie Thames controls and does not control. ETPL had 1136 customers respond to the customer survey in 2016 as compared to 897 in the 2014 customer survey. The 2014 survey did not use email as a medium and found that the number of responses jumped substantially when customers were contacted via email in 2016. The surveys as a whole shows our customers are satisfied with the level of service which they receive from ETPL and feel that we are managing costs effectively. Both surveys reflect that customers are most concerned with total price and reliability, with the majority of respondents indicating that they find the existing level of reliability to be acceptable. These results are reflected in the DSP with a relatively flat level of capital spending aimed at maintaining the existing level of reliability.
A30: Community Involvement | B30: -electrical safety education - electrical conservation - | C30: ETPL attends various community events to promote electrical safety and energy saving initiatives. ETPL presence at community events provides an informal forum for customers to speak with various levels of staff and discuss any concerns they may have.
A32: Communications through Call Center, and emails to general information email | B32: - account information, ie- balance owing - service requests - outage details | C32: Various customer inquiries, complaints and other concerns are documented and assigned to engineering, operations or customer service staff for remediation. Typically communications are related to very specific issues that are addressed immediately if possible.
A34: Communications directly through Engineering and Operations Department | B34: - new service requests - maintenance requests - new developments (ie subdivision, municial infrastructure) | C34: The majority of contact directly through engineering and operations revolves around new service or service upgrade requests. These are typically forwarded to the Call Center to ensure that a proper service order is created for tracking purposes. Any customer concerns are generally addressed immediately or documented for input into capital plans as required. Prior to starting a project that may directly impact customers, written notices are given to customers identifying the scope of the project, potential impact to them (short outages to transfer services, excavations in front of their property, traffic flow changes, etc.), and contact information if they have questions or concerns.
A36: Social Media | B36: - general information - conservation information - outage details - industry news | C36: ETPL Facebook and Twitter accounts are monitored to obtain general feedback from customers.
A38: Meetings and Information Sessions | C38: Engineering and Operations staff meets with various customers throughout a given year for various reasons including, customers’ requests, effects of ETPL capital projects, or yearly planned meetings.
A40: CDM Activities | C40: CDM staff regularly initiates contact with medium to large commercial and industrial customers to discuss various initiatives through face-to-face meetings and information sessions. Discussion surrounding distribution related concerns are welcomed and communicated with engineering and operations staff.
A42: Corporate Board of Directors | C42: At a corporate level the Board of Directors are local municipal government officials who are able to provide feedback received from constituents regarding distribution related concerns.
A51: Note: Use "ALT-ENTER" to go to the next line within a cell

Sheet App.2-B_Acctg Instructions
A1: General Instructions to MIFRS Appendices
A2: Types of Schedules to File
A4: The purpose of this tab is to provide general instructions. The specific instructions to each appendix are listed in footnotes of each appendix.
A6: The typical applicant is expected to have made capitalization and depreciation policy changes under CGAAP as permitted by the Board on January 1, 2012 or mandated by the Board by January 1, 2013, and adopted IFRS for reporting purposes on January 1, 2015 (transition date January 1, 2014). Some distributors filing for 2018 rates have rebased with these accounting changes reflected in a prior rebasing application. If that is the case, information relating to pre-accounting policy changes is not generally required. The information to be provided by applicants will depend on when the accounting policy changes were made and when they last rebased. In general, applicants should provide the following information in the appendices:
E9: Reflecting Accounting Policy Changes in Current Application | G9: Reflected Accounting Policy Changes in Prior Application3
E10: Accounting Policy Changes in 2012 and Adopted IFRS in 2015 | F10: Accounting Policy Changes in 2013 and Adopted IFRS in 2015 | G10: Adopted IFRS in 2015
A11: Information to be filed in 2018 CoS Application | B11: 2018 | C11: Test | E11: MIFRS | F11: MIFRS | G11: MIFRS
B12: 2017 | C12: Bridge | E12: MIFRS | F12: MIFRS | G12: MIFRS
B13: 2016 | C13: Historical | E13: MIFRS | F13: MIFRS | G13: MIFRS
B14: 2015 | C14: Historical | E14: MIFRS | F14: MIFRS | G14: MIFRS
B15: 2014 | C15: Historical | E15: MIFRS and Revised CGAAP1 | F15: MIFRS and Revised CGAAP1 | G15: MIFRS and Revised CGAAP1
B16: 2013 | C16: Historical | E16: Revised CGAAP | F16: CGAAP and Revised CGAAP2 | G16: N/A
B17: 2012 | C17: Historical | E17: CGAAP and Revised CGAAP2 | F17: N/A | G17: N/A
A19: 1) For the transition year (2014), the applicant may file two appendices, one under Revised CGAAP and one under MIFRS, depending on the materiality of impacts. See the specific instructions under each appendix below for further details.
A20: 2) For applicants that are reflecting accounting policy changes for the first time in a rebasing application, the applicant must file two appendices in the year that the applicant implemented changes to its capitalization and depreciation policies (2012 or 2013), one before and one after the policy changes.
A21: 3) Applicants should provide CGAAP and Revised CGAAP schedules (i.e. as indicated in the first two columns of the above table) to support balances in Account 1576 if the account has yet to be disposed of.
A24: Appendix 2-BA - Fixed Asset Schedule
A26: Applicants are to provide Appendix 2-BA in accordance with the years and corresponding accounting standards noted in the above table to provide a year over year continuity in fixed assets.
A27: For the transition year (2014), the applicant should file two appendices, one under Revised CGAAP and one under MIFRS if the change between Revised CGAAP and MIFRS is material. If the change from the accounting standards is not material, the applicant may choose to only provide one appendix under MIFRS. However, the applicant must also indicate the fixed asset net book value balance under Revised CGAAP, the total dollar value of the change and explain why it is not material.
A31: The applicant must establish the continuity of historic cost for gross assets and accumulated depreciation by asset class by ensuring that the opening balance in the year agrees to the closing balance in the prior year.
A34: Appendix 2-Cx - Depreciation and Amortization
A36: Applicants are to provide Appendix 2-C in accordance with the years and corresponding accounting standards listed in the above table.
A37: Appendix 2-C is to be used under all three of the scenarios presented in the table above. In the appendix, the applicant will need to indicate which scenario applies. The appendix is to be duplicated for each year and accounting standard required under the scenario.
A38: Depreciation accounting policy changes were mandated by the Board by January 1, 2013. In general, no further changes to an applicant's depreciation policy (i.e. assets' service lives) are expected after the Board mandated changes by January 1, 2013. If the applicant has made any changes to its depreciation policy subsequent to the Board mandated changes, for the year of the change, applicants must complete Appendix 2-C before and after the change. Applicants must also explain the nature of the change, the reason for the change, quantify the impact of the change, and quantify the depreciation expense before and after the change.
A40: Appendix 2-E - Account 1575, IFRS-CGAAP Transitional PP&E Amounts (2-EA), Account 1576, Accounting Changes Under CGAAP (2-EB, 2-EC)
A42: 1) For an applicant that has a balance in Account 1576 to dispose:
A43: · | B43: If an applicant changed capitalization and depreciation policies effective January 1, 2012, the applicant must complete Appendix 2-EB
A44: · | B44: If an applicant changed capitalization and depreciation policies effective January 1, 2013, the applicant must complete Appendix 2-EC
A46: 2) For an applicant that has a balance in Account 1575 to dispose:
A47: · | B47: The applicant must complete 2-EA
A48: If the applicant did not make any further PP&E accounting policy changes beyond the capitalization and depreciation policy changes as mandated by the Board by January 1, 2013 (i.e. no further changes made on transition to IFRS), the applicant must indicate this and does not need to complete Appendix 2-EA.
A52: Appendix 2-Y - Summary of Impacts to Revenue Requirement from Transition to MIFRS
A54: An applicant must provide a summary of the dollar impacts of MIFRS to each component of the revenue requirement (e.g. rate base, operating costs, etc.), including the overall impact on the proposed revenue requirement. Accordingly, the applicant must identify financial differences and resulting revenue requirement impacts arising from the adoption of MIFRS as compared to CGAAP. If the applicant is reflecting the changes in capitalization and depreciation policies for the first time in a rebasing application, then a comparison between MIFRS and CGAAP before the change in accounting policies should be completed. If the applicant changed capitalization and depreciation policies and reflected these changes in a prior rebasing application, then a comparison between MIFRS and CGAAP after the change in accounting policies should be completed.

Sheet App.2-BA_Fixed Asset Cont
L1: File Number: | M1: =EBNUMBER -> EB-2017-0038
L2: Exhibit: | M2: 2
L3: Tab: | M3: 2
L4: Schedule:
L5: Page:
L7: Date: | M7: August 27th, 2018
A9: Appendix 2-BA
A10: Fixed Asset Continuity Schedule 1
E12: Accounting Standard | F12: CGAAP
E13: Year | F13: 2012
D15: Cost | J15: Accumulated Depreciation
A16: CCA Class 2 | B16: OEB Account 3 | C16: Description 3 | D16: Opening Balance | E16: Additions 4 | F16: Disposals 6 | G16: Closing Balance | I16: Opening Balance | J16: Additions | K16: Disposals 6 | L16: Closing Balance | M16: Net Book Value
A17: 12 | B17: 1611 | C17: Computer Software (Formally known as Account 1925) | D17: 1045366.8 | E17: 40095.92 | G17: =SUM(D17:F17) -> 1085462.72 | I17: -561591.07 | J17: -68496 | L17: =I17+J17+K17 -> -630087.07 | M17: =G17+L17 -> 455375.65
A18: CEC | B18: 1612 | C18: Land Rights (Formally known as Account 1906) | D18: 37599.93 | E18: 5332.11 | G18: =D18+E18+F18 -> 42932.04 | L18: =I18+J18+K18 -> 0 | M18: =G18+L18 -> 42932.04
A19: N/A | B19: 1805 | C19: Land | D19: 103344.08 | G19: =D19+E19+F19 -> 103344.08 | L19: =I19+J19+K19 -> 0 | M19: =G19+L19 -> 103344.08
A20: 47 | B20: 1808 | C20: Buildings | D20: 173326.53 | E20: 22624.44 | G20: =D20+E20+F20 -> 195950.97 | I20: -63941.08 | J20: -7385.55 | L20: =I20+J20+K20 -> -71326.63 | M20: =G20+L20 -> 124624.34
A21: 13 | B21: 1810 | C21: Leasehold Improvements | G21: 0 | L21: 0 | M21: 0
A22: 47 | B22: 1815 | C22: Transformer Station Equipment >50 kV | G22: 0 | L22: 0 | M22: 0
A23: 47 | B23: 1820 | C23: Distribution Station Equipment <50 kV | D23: 503732.18 | E23: 155956.53 | F23: -55000 | G23: 604688.71 | I23: -219481.95 | J23: -23268 | K23: 55000 | L23: -187749.95 | M23: 416938.76
A24: 47 | B24: 1825 | C24: Storage Battery Equipment | G24: 0 | L24: 0 | M24: 0
A25: 47 | B25: 1830 | C25: Poles, Towers & Fixtures | D25: 5481315.36 | E25: 570418.87 | G25: 6051734.23 | I25: -2197726.2 | J25: -228717 | L25: -2426443.2 | M25: 3625291.03
A26: 47 | B26: 1835 | C26: Overhead Conductors & Devices | D26: 10519284.69 | E26: 795113.87 | G26: 11314398.56 | I26: -6904826.63 | J26: -435629 | L26: -7340455.63 | M26: 3973942.93
A27: 47 | B27: 1840 | C27: Underground Conduit | D27: 2351312.04 | E27: 335860.18 | G27: 2687172.22 | I27: -188837.84 | J27: -100769.69 | L27: -289607.53 | M27: 2397564.69
A28: 47 | B28: 1845 | C28: Underground Conductors & Devices | D28: 5236041.37 | E28: 441641.59 | G28: 5677682.96 | I28: -587363.93 | J28: -218274.49 | L28: -805638.42 | M28: 4872044.54
A29: 47 | B29: 1850 | C29: Line Transformers | D29: 6601893.85 | E29: 678175.89 | G29: 7280069.74 | I29: -948498.2 | J29: -277639.27 | L29: -1226137.47 | M29: 6053932.27
A30: 47 | B30: 1855 | C30: Services (Overhead & Underground) | D30: 3323673.98 | E30: 579769.31 | G30: 3903443.29 | I30: -1274113.37 | J30: -144542.34 | L30: -1418655.71 | M30: 2484787.58
A31: 47 | B31: 1860 | C31: Meters | D31: 2802097.97 | E31: 143580.03 | G31: 2945678 | I31: -355606.78 | J31: -114955.52 | L31: -470562.3 | M31: 2475115.7
A32: 47 | B32: 1860 | C32: Meters (Smart Meters) | G32: 0 | L32: 0 | M32: 0
A33: N/A | B33: 1905 | C33: Land | G33: 0 | L33: 0 | M33: 0
A34: 47 | B34: 1908 | C34: Buildings & Fixtures | G34: 0 | L34: 0 | M34: 0
A35: 13 | B35: 1910 | C35: Leasehold Improvements | D35: 161500.94 | E35: 25956.1 | G35: 187457.04 | I35: -8963.71 | J35: -4234.45 | L35: -13198.16 | M35: 174258.88
A36: 8 | B36: 1915 | C36: Office Furniture & Equipment (10 years) | D36: 75387.24 | E36: 10976.33 | G36: 86363.57 | I36: -58478.31 | J36: -4719.92 | L36: -63198.23 | M36: 23165.34
A37: 8 | B37: 1915 | C37: Office Furniture & Equipment (5 years) | G37: 0 | L37: 0 | M37: 0
A38: 10 | B38: 1920 | C38: Computer Equipment - Hardware | D38: 97941 | G38: 97941 | I38: -97941 | L38: -97941 | M38: 0
A39: 45 | B39: 1920 | C39: Computer Equip.-Hardware(Post Mar. 22/04) | D39: 3892 | G39: 3892 | I39: -3892 | L39: -3892 | M39: 0
A40: 45.1 | B40: 1920 | C40: Computer Equip.-Hardware(Post Mar. 19/07) | E40: 45925 | G40: 45925 | J40: -4593 | L40: -4593 | M40: 41332
A41: 10 | B41: 1930 | C41: Transportation Equipment | D41: 2733120.63 | E41: 104692.45 | F41: -165985.36 | G41: 2671827.72 | I41: -1633869.52 | J41: -277988 | K41: 165985 | L41: -1745872.52 | M41: 925955.2
A42: 8 | B42: 1935 | C42: Stores Equipment | G42: 0 | L42: 0 | M42: 0
A43: 8 | B43: 1940 | C43: Tools, Shop & Garage Equipment | D43: 159237.59 | E43: 16560 | G43: 175797.59 | I43: -80871 | J43: -14987 | L43: -95858 | M43: 79939.59
A44: 8 | B44: 1945 | C44: Measurement & Testing Equipment | D44: 14462.12 | G44: 14462.12 | I44: -2035 | J44: -1426 | L44: -3461 | M44: 11001.12
A45: 8 | B45: 1950 | C45: Power Operated Equipment | D45: 64090.6 | G45: 64090.6 | I45: -5768 | J45: -6429 | L45: -12197 | M45: 51893.6
A46: 8 | B46: 1955 | C46: Communications Equipment | G46: 0 | L46: 0 | M46: 0
A47: 8 | B47: 1955 | C47: Communication Equipment (Smart Meters) | G47: 0 | L47: 0 | M47: 0
A48: 8 | B48: 1960 | C48: Miscellaneous Equipment | G48: 0 | L48: 0 | M48: 0
A49: 47 | B49: 1970 | C49: Load Management Controls Customer Premises | G49: 0 | L49: 0 | M49: 0
A50: 47 | B50: 1975 | C50: Load Management Controls Utility Premises | G50: 0 | L50: 0 | M50: 0
A51: 47 | B51: 1980 | C51: System Supervisor Equipment | E51: 213964.79 | G51: 213964.79 | J51: -10698 | L51: -10698 | M51: 203266.79
A52: 47 | B52: 1985 | C52: Miscellaneous Fixed Assets | G52: 0 | L52: 0 | M52: 0
A53: 47 | B53: 1990 | C53: Other Tangible Property | G53: 0 | L53: 0 | M53: 0
A54: 47 | B54: 1995 | C54: Contributions & Grants | D54: -4773539.49 | E54: -1316274 | G54: -6089813.49 | I54: 647119.04 | J54: 217267.04 | L54: 864386.08 | M54: -5225427.41
A55: 47 | B55: 2440 | C55: Deferred Revenue5
G56: 0 | L56: 0 | M56: 0
C57: Sub-Total | D57: =SUM(D17:D56) -> 36715081.41 | E57: =SUM(E17:E56) -> 2870369.41 | F57: -220985.36 | G57: 39364465.46 | I57: =SUM(I17:I56) -> -14546686.55 | J57: =SUM(J17:J56) -> -1727485.19 | K57: 220985 | L57: -16053186.74 | M57: 23311278.72
C58: Less Socialized Renewable Energy Generation Investments (input as negative) | G58: =D58+E58+F58 -> 0 | L58: =I58+J58+K58 -> 0 | M58: =G58+L58 -> 0
C59: Less Other Non Rate-Regulated Utility Assets (input as negative) | G59: 0 | L59: =I59+J59+K59 -> 0 | M59: 0
C60: Total PP&E | D60: =D57+D58+D59 -> 36715081.41 | E60: =SUM(E57:E59) -> 2870369.41 | F60: =SUM(F57:F59) -> -220985.36 | G60: =SUM(G57:G59) -> 39364465.46 | I60: =SUM(I57:I59) -> -14546686.55 | J60: -1727485.19 | K60: 220985 | L60: -16053186.74 | M60: 23311278.72
C61: Depreciation Expense adj. from gain or loss on the retirement of assets (pool of like assets), if applicable6
C62: Total | J62: =J60+J61 -> -1727485.19
I64: Less: Fully Allocated Depreciation
A65: 10 | C65: Transportation | I65: Transportation
A66: 8 | C66: Stores Equipment | I66: Stores Equipment
I67: Net Depreciation | K67: =J62-K65-K66 -> -1727485.19
A69: Notes:
A71: 1 | B71: Tables in the format outlined above covering all fixed asset accounts should be submitted for the Test Year, Bridge Year and all relevant historical years. At a minimum , the applicant must provide data for the earlier of: 1) all historical years back to its last rebasing; or 2) at least three years of historical actuals, in addition to Bridge Year and Test Year forecasts.
A74: 2 | B74: The "CCA Class" for fixed assets should agree with the CCA Class used for tax purposes in Tax Returns. Fixed Assets sub-components may be used where the underlying asset components are classified under multiple CCA Classes for tax purposes. If an applicant uses any different classes from those shown in the table, an explanation should be provided. (also see note 3).
A77: 3 | B77: The table may need to be customized for a utility's asset categories or for any new asset accounts announced or authorized by the Board.
A79: 4 | B79: The additions in column (E) must not include construction work in progress (CWIP).
A81: 5 | B81: Effective on the date of IFRS adoption, customer contributions will no longer be recorded in Account 1995 Contributions & Grants, but will be recorded in Account 2440, Deferred Revenues.
A83: 6 | B83: The applicant must ensure that all asset disposals have been clearly identified in the Chapter 2 Appendices for all historic, bridge and test years. Where a distributor for general financial reporting purposes under IFRS has accounted for the amount of gain or loss on the retirement of assets in a pool of like assets as a charge or credit to income, for reporting and rate application filings, the distributor shall reclassify such gains and losses as depreciation expense, and disclose the amount separately.
A99: Appendix 2-BA
A100: Fixed Asset Continuity Schedule 1
E102: Accounting Standard | F102: CGAAP
E103: Year | F103: 2013
D105: Cost | J105: Accumulated Depreciation
A106: CCA Class 2 | B106: OEB Account 3 | C106: Description 3 | D106: Opening Balance | E106: Additions 4 | F106: Disposals 6 | G106: Closing Balance | I106: Opening Balance | J106: Additions | K106: Disposals 6 | L106: Closing Balance | M106: Net Book Value
A107: 12 | B107: 1611 | C107: Computer Software (Formally known as Account 1925) | D107: =G17 -> 1085462.72 | E107: 54670.75 | G107: =SUM(D107:F107) -> 1140133.47 | I107: =+L17 -> -630087.07 | J107: -107453.9 | K107: 0 | L107: =SUM(I107:K107) -> -737540.97 | M107: =+G107+L107 -> 402592.5
A108: CEC | B108: 1612 | C108: Land Rights (Formally known as Account 1906) | D108: =G18 -> 42932.04 | E108: 947 | G108: =SUM(D108:F108) -> 43879.04 | I108: =+L18 -> 0 | J108: 0 | K108: 0 | L108: =SUM(I108:K108) -> 0 | M108: =+G108+L108 -> 43879.04
A109: N/A | B109: 1805 | C109: Land | D109: 103344.08 | E109: 695 | G109: 104039.08 | I109: 0 | J109: 0 | K109: 0 | L109: 0 | M109: 104039.08
A110: 47 | B110: 1808 | C110: Buildings | D110: 195950.97 | E110: 24917.26 | G110: 220868.23 | I110: -71326.63 | J110: -3747.43 | K110: 0 | L110: -75074.06 | M110: 145794.17
A111: 13 | B111: 1810 | C111: Leasehold Improvements | D111: 0 | G111: 0 | I111: 0 | J111: 0 | K111: 0 | L111: 0 | M111: 0
A112: 47 | B112: 1815 | C112: Transformer Station Equipment >50 kV | D112: 0 | G112: 0 | I112: 0 | J112: 0 | K112: 0 | L112: 0 | M112: 0
A113: 47 | B113: 1820 | C113: Distribution Station Equipment <50 kV | D113: 604688.71 | E113: 12875 | G113: 617563.71 | I113: -187749.95 | J113: -10484.46 | K113: 0 | L113: -198234.41 | M113: 419329.3
A114: 47 | B114: 1825 | C114: Storage Battery Equipment | D114: 0 | G114: 0 | I114: 0 | J114: 0 | K114: 0 | L114: 0 | M114: 0
A115: 47 | B115: 1830 | C115: Poles, Towers & Fixtures | D115: 6051734.23 | E115: 471688.41 | G115: 6523422.64 | I115: -2426443.2 | J115: -118541.82 | K115: 0 | L115: -2544985.02 | M115: 3978437.62
A116: 47 | B116: 1835 | C116: Overhead Conductors & Devices | D116: 11314398.56 | E116: 700608.48 | G116: 12015007.04 | I116: -7340455.63 | J116: -194411.71 | K116: 499791 | L116: -7035076.34 | M116: 4979930.7
A117: 47 | B117: 1840 | C117: Underground Conduit | D117: 2687172.22 | E117: 30269.8 | G117: 2717442.02 | I117: -289607.53 | J117: -65746.19 | K117: 0 | L117: -355353.72 | M117: 2362088.3
A118: 47 | B118: 1845 | C118: Underground Conductors & Devices | D118: 5677682.96 | E118: 344472.73 | G118: 6022155.69 | I118: -805638.42 | J118: -148259.66 | K118: 0 | L118: -953898.08 | M118: 5068257.61
A119: 47 | B119: 1850 | C119: Line Transformers | D119: 7280069.74 | E119: 604927.6 | F119: -110118 | G119: 7774879.34 | I119: -1226137.47 | J119: -151650.68 | K119: 110118 | L119: -1267670.15 | M119: 6507209.19
A120: 47 | B120: 1855 | C120: Services (Overhead & Underground) | D120: 3903443.29 | E120: 308079.99 | G120: 4211523.28 | I120: -1418655.71 | J120: -67624.72 | K120: 0 | L120: -1486280.43 | M120: 2725242.85
A121: 47 | B121: 1860 | C121: Meters | D121: 2945678 | E121: 237156 | F121: -1313442 | G121: 1869392 | I121: -470562.3 | J121: =-310677.16-417194 -> -727871.16 | L121: -1198433.46 | M121: 670958.54
A122: 47 | B122: 1860 | C122: Meters (Smart Meters) | D122: 0 | E122: 2887735 | G122: 2887735 | I122: 0 | J122: 0 | K122: 0 | L122: 0 | M122: 2887735
A123: N/A | B123: 1905 | C123: Land | D123: 0 | G123: 0 | I123: 0 | J123: 0 | K123: 0 | L123: 0 | M123: 0
A124: 47 | B124: 1908 | C124: Buildings & Fixtures | D124: 0 | G124: 0 | I124: 0 | J124: 0 | K124: 0 | L124: 0 | M124: 0
A125: 13 | B125: 1910 | C125: Leasehold Improvements | D125: 187457.04 | E125: 53272.5 | G125: 240729.54 | I125: -13198.16 | J125: -3892.6 | K125: 0 | L125: -17090.76 | M125: 223638.78
A126: 8 | B126: 1915 | C126: Office Furniture & Equipment (10 years) | D126: 86363.57 | E126: 3059.23 | G126: 89422.8 | I126: -63198.23 | J126: -5093.22 | K126: 0 | L126: -68291.45 | M126: 21131.35
A127: 8 | B127: 1915 | C127: Office Furniture & Equipment (5 years) | D127: 0 | G127: 0 | I127: 0 | J127: 0 | K127: 0 | L127: 0 | M127: 0
A128: 10 | B128: 1920 | C128: Computer Equipment - Hardware | D128: 97941 | G128: 97941 | I128: -97941 | J128: 0 | K128: 0 | L128: -97941 | M128: 0
A129: 45 | B129: 1920 | C129: Computer Equip.-Hardware(Post Mar. 22/04) | D129: 3892 | G129: 3892 | I129: -3892 | J129: 0 | K129: 0 | L129: -3892 | M129: 0
A130: 45.1 | B130: 1920 | C130: Computer Equip.-Hardware(Post Mar. 19/07) | D130: 45925 | E130: 57213.91 | G130: 103138.91 | I130: -4593 | J130: -14850.16 | K130: 0 | L130: -19443.16 | M130: 83695.75
A131: 10 | B131: 1930 | C131: Transportation Equipment | D131: 2671827.72 | E131: 386631.99 | F131: -46600 | G131: 3011859.71 | I131: -1745872.52 | J131: -260859.21 | K131: 46600 | L131: -1960131.73 | M131: 1051727.98
A132: 8 | B132: 1935 | C132: Stores Equipment | D132: 0 | G132: 0 | I132: 0 | J132: 0 | K132: 0 | L132: 0 | M132: 0
A133: 8 | B133: 1940 | C133: Tools, Shop & Garage Equipment | D133: 175797.59 | E133: 16441.83 | G133: 192239.42 | I133: -95858 | J133: -21830.31 | K133: 0 | L133: -117688.31 | M133: 74551.11
A134: 8 | B134: 1945 | C134: Measurement & Testing Equipment | D134: 14462.12 | G134: 14462.12 | I134: -3461 | J134: -1807.98 | K134: 0 | L134: -5268.98 | M134: 9193.14
A135: 8 | B135: 1950 | C135: Power Operated Equipment | D135: 64090.6 | G135: 64090.6 | I135: -12197 | J135: -8011.78 | K135: 0 | L135: -20208.78 | M135: 43881.82
A136: 8 | B136: 1955 | C136: Communications Equipment | D136: 0 | G136: 0 | I136: 0 | J136: 0 | K136: 0 | L136: 0 | M136: 0
A137: 8 | B137: 1955 | C137: Communication Equipment (Smart Meters) | D137: 0 | G137: 0 | I137: 0 | J137: 0 | K137: 0 | L137: 0 | M137: 0
A138: 8 | B138: 1960 | C138: Miscellaneous Equipment | D138: 0 | G138: 0 | I138: 0 | J138: 0 | K138: 0 | L138: 0 | M138: 0
A139: 47 | B139: 1970 | C139: Load Management Controls Customer Premises | D139: 0 | G139: 0 | I139: 0 | J139: 0 | K139: 0 | L139: 0 | M139: 0
A140: 47 | B140: 1975 | C140: Load Management Controls Utility Premises | D140: 0 | G140: 0 | I140: 0 | J140: 0 | K140: 0 | L140: 0 | M140: 0
A141: 47 | B141: 1980 | C141: System Supervisor Equipment | D141: 213964.79 | E141: 42215.85 | G141: 256180.64 | I141: -10698 | J141: -47014.75 | K141: 0 | L141: -57712.75 | M141: 198467.89
A142: 47 | B142: 1985 | C142: Miscellaneous Fixed Assets | D142: 0 | G142: 0 | I142: 0 | J142: 0 | K142: 0 | L142: 0 | M142: 0
A143: 47 | B143: 1990 | C143: Other Tangible Property | D143: 0 | G143: 0 | I143: 0 | J143: 0 | K143: 0 | L143: 0 | M143: 0
A144: 47 | B144: 1995 | C144: Contributions & Grants | D144: -6089813.49 | E144: -700622 | G144: -6790435.49 | I144: 864386.08 | J144: 106624.46 | K144: 0 | L144: 971010.54 | M144: -5819424.95
A145: 47 | B145: 2440 | C145: Deferred Revenue5 | I145: 0 | J145: 0 | K145: 0 | L145: 0
G146: 0 | I146: 0 | J146: 0 | K146: 0 | L146: 0 | M146: 0
C147: Sub-Total | D147: =SUM(D107:D146) -> 39364465.46 | E147: =SUM(E107:E146) -> 5537256.33 | F147: -1470160 | G147: 43431561.79 | I147: =SUM(I107:I146) -> -16053186.74 | J147: =SUM(J107:J146) -> -1852527.28 | K147: 656509 | L147: =SUM(L107:L146) -> -17249205.02 | M147: =SUM(M107:M146) -> 26182356.77
C148: Less Socialized Renewable Energy Generation Investments (input as negative) | G148: 0 | L148: 0 | M148: 0
C149: Less Other Non Rate-Regulated Utility Assets (input as negative) | G149: 0 | L149: 0 | M149: 0
C150: Total PP&E | D150: =SUM(D147:D149) -> 39364465.46 | E150: =SUM(E147:E149) -> 5537256.33 | F150: -1470160 | G150: 43431561.79 | I150: =SUM(I147:I149) -> -16053186.74 | J150: -1852527.28 | K150: 656509 | L150: -17249205.02 | M150: =SUM(M147:M149) -> 26182356.77
C151: Depreciation Expense adj. from gain or loss on the retirement of assets (pool of like assets), if applicable6
C152: Total | J152: =J150+J151 -> -1852527.28
D153: =D150-G60 -> 0
I154: Less: Fully Allocated Depreciation
A155: 10 | C155: Transportation | I155: Transportation
A156: 8 | C156: Stores Equipment | I156: Stores Equipment
I157: Net Depreciation | K157: -1435333.28
A173: Appendix 2-BA
A174: Fixed Asset Continuity Schedule 1
E176: Accounting Standard | F176: CGAAP | G176: Revised
E177: Year | F177: 2013
D179: Cost | J179: Accumulated Depreciation
A180: CCA Class 2 | B180: OEB Account 3 | C180: Description 3 | D180: Opening Balance | E180: Additions 4 | F180: Disposals 6 | G180: Closing Balance | I180: Opening Balance | J180: Additions | K180: Disposals 6 | L180: Closing Balance | M180: Net Book Value
A181: 12 | B181: 1611 | C181: Computer Software (Formally known as Account 1925) | D181: =+G17 -> 1085462.72 | E181: 54670.75 | G181: =SUM(D181:F181) -> 1140133.47 | I181: =+L17 -> -630087.07 | J181: -107453.9 | L181: =SUM(I181:K181) -> -737540.97 | M181: =+G181+L181 -> 402592.5
A182: CEC | B182: 1612 | C182: Land Rights (Formally known as Account 1906) | D182: =+G18 -> 42932.04 | E182: 947 | G182: =SUM(D182:F182) -> 43879.04 | I182: =+L18 -> 0 | L182: =SUM(I182:K182) -> 0 | M182: =+G182+L182 -> 43879.04
A183: N/A | B183: 1805 | C183: Land | D183: 103344.08 | E183: 695 | G183: 104039.08 | I183: 0 | L183: 0 | M183: 104039.08
A184: 47 | B184: 1808 | C184: Buildings | D184: 195950.97 | E184: 24917.26 | G184: 220868.23 | I184: -71326.63 | J184: -3747.43 | L184: -75074.06 | M184: 145794.17
A185: 13 | B185: 1810 | C185: Leasehold Improvements | D185: 0 | G185: 0 | I185: 0 | L185: 0 | M185: 0
A186: 47 | B186: 1815 | C186: Transformer Station Equipment >50 kV | D186: 0 | G186: 0 | I186: 0 | L186: 0 | M186: 0
A187: 47 | B187: 1820 | C187: Distribution Station Equipment <50 kV | D187: 604688.71 | E187: 12875 | G187: 617563.71 | I187: -187749.95 | J187: -10484.46 | L187: -198234.41 | M187: 419329.3
A188: 47 | B188: 1825 | C188: Storage Battery Equipment | D188: 0 | G188: 0 | I188: 0 | L188: 0 | M188: 0
A189: 47 | B189: 1830 | C189: Poles, Towers & Fixtures | D189: 6051734.23 | E189: 471688.41 | G189: 6523422.64 | I189: -2426443.2 | J189: -118541.82 | L189: -2544985.02 | M189: 3978437.62
A190: 47 | B190: 1835 | C190: Overhead Conductors & Devices | D190: 11314398.56 | E190: 700608.48 | G190: 12015007.04 | I190: -7340455.63 | J190: -194411.71 | K190: 499791 | L190: -7035076.34 | M190: 4979930.7
A191: 47 | B191: 1840 | C191: Underground Conduit | D191: 2687172.22 | E191: 30269.8 | G191: 2717442.02 | I191: -289607.53 | J191: -65746.19 | L191: -355353.72 | M191: 2362088.3
A192: 47 | B192: 1845 | C192: Underground Conductors & Devices | D192: 5677682.96 | E192: 344472.73 | G192: 6022155.69 | I192: -805638.42 | J192: -148259.66 | L192: -953898.08 | M192: 5068257.61
A193: 47 | B193: 1850 | C193: Line Transformers | D193: 7280069.74 | E193: 604927.6 | F193: -110118 | G193: 7774879.34 | I193: -1226137.47 | J193: -151650.68 | K193: 110118 | L193: -1267670.15 | M193: 6507209.19
A194: 47 | B194: 1855 | C194: Services (Overhead & Underground) | D194: 3903443.29 | E194: 308079.99 | G194: 4211523.28 | I194: -1418655.71 | J194: -67624.72 | L194: -1486280.43 | M194: 2725242.85
A195: 47 | B195: 1860 | C195: Meters | D195: 2945678 | E195: 237156 | F195: -1313442 | G195: 1869392 | I195: -470562.3 | J195: =-310677.16-176549 -> -487226.16 | L195: -957788.46 | M195: 911603.54
A196: 47 | B196: 1860 | C196: Meters (Smart Meters) | D196: 0 | E196: 2887735 | G196: 2887735 | I196: 0 | J196: -240645 | L196: -240645 | M196: 2647090
A197: N/A | B197: 1905 | C197: Land | D197: 0 | G197: 0 | I197: 0 | L197: 0 | M197: 0
A198: 47 | B198: 1908 | C198: Buildings & Fixtures | D198: 0 | G198: 0 | I198: 0 | L198: 0 | M198: 0
A199: 13 | B199: 1910 | C199: Leasehold Improvements | D199: 187457.04 | E199: 53272.5 | G199: 240729.54 | I199: -13198.16 | J199: -3892.6 | L199: -17090.76 | M199: 223638.78
A200: 8 | B200: 1915 | C200: Office Furniture & Equipment (10 years) | D200: 86363.57 | E200: 3059.23 | G200: 89422.8 | I200: -63198.23 | J200: -5093.22 | L200: -68291.45 | M200: 21131.35
A201: 8 | B201: 1915 | C201: Office Furniture & Equipment (5 years) | D201: 0 | G201: 0 | I201: 0 | L201: 0 | M201: 0
A202: 10 | B202: 1920 | C202: Computer Equipment - Hardware | D202: 97941 | G202: 97941 | I202: -97941 | L202: -97941 | M202: 0
A203: 45 | B203: 1920 | C203: Computer Equip.-Hardware(Post Mar. 22/04) | D203: 3892 | G203: 3892 | I203: -3892 | L203: -3892 | M203: 0
A204: 45.1 | B204: 1920 | C204: Computer Equip.-Hardware(Post Mar. 19/07) | D204: 45925 | E204: 57213.91 | G204: 103138.91 | I204: -4593 | J204: -14850.16 | L204: -19443.16 | M204: 83695.75
A205: 10 | B205: 1930 | C205: Transportation Equipment | D205: 2671827.72 | E205: 386631.99 | F205: -46600 | G205: 3011859.71 | I205: -1745872.52 | J205: -260859.21 | K205: 46600 | L205: -1960131.73 | M205: 1051727.98
A206: 8 | B206: 1935 | C206: Stores Equipment | D206: 0 | G206: 0 | I206: 0 | L206: 0 | M206: 0
A207: 8 | B207: 1940 | C207: Tools, Shop & Garage Equipment | D207: 175797.59 | E207: 16441.83 | G207: 192239.42 | I207: -95858 | J207: -21830.31 | L207: -117688.31 | M207: 74551.11
A208: 8 | B208: 1945 | C208: Measurement & Testing Equipment | D208: 14462.12 | G208: 14462.12 | I208: -3461 | J208: -1807.98 | L208: -5268.98 | M208: 9193.14
A209: 8 | B209: 1950 | C209: Power Operated Equipment | D209: 64090.6 | G209: 64090.6 | I209: -12197 | J209: -8011.78 | L209: -20208.78 | M209: 43881.82
A210: 8 | B210: 1955 | C210: Communications Equipment | D210: 0 | G210: 0 | I210: 0 | L210: 0 | M210: 0
A211: 8 | B211: 1955 | C211: Communication Equipment (Smart Meters) | D211: 0 | G211: 0 | I211: 0 | L211: 0 | M211: 0
A212: 8 | B212: 1960 | C212: Miscellaneous Equipment | D212: 0 | G212: 0 | I212: 0 | L212: 0 | M212: 0
A213: 47 | B213: 1970 | C213: Load Management Controls Customer Premises | D213: 0 | G213: 0 | I213: 0 | L213: 0 | M213: 0
A214: 47 | B214: 1975 | C214: Load Management Controls Utility Premises | D214: 0 | G214: 0 | I214: 0 | L214: 0 | M214: 0
A215: 47 | B215: 1980 | C215: System Supervisor Equipment | D215: 213964.79 | E215: 42215.85 | G215: 256180.64 | I215: -10698 | J215: -47014.75 | L215: -57712.75 | M215: 198467.89
A216: 47 | B216: 1985 | C216: Miscellaneous Fixed Assets | D216: 0 | G216: 0 | I216: 0 | L216: 0 | M216: 0
A217: 47 | B217: 1990 | C217: Other Tangible Property | D217: 0 | G217: 0 | I217: 0 | L217: 0 | M217: 0
A218: 47 | B218: 1995 | C218: Contributions & Grants | D218: -6089813.49 | E218: -700622 | G218: -6790435.49 | I218: 864386.08 | J218: 106624.46 | L218: 971010.54 | M218: -5819424.95
A219: 47 | B219: 2440 | C219: Deferred Revenue5 | D219: 0 | G219: 0 | I219: 0 | L219: 0 | M219: 0
D220: 0 | G220: 0 | I220: 0 | L220: 0 | M220: 0
C221: Sub-Total | D221: =SUM(D181:D220) -> 39364465.46 | E221: =SUM(E181:E220) -> 5537256.33 | F221: -1470160 | G221: 43431561.79 | I221: =SUM(I181:I220) -> -16053186.74 | J221: =SUM(J181:J220) -> -1852527.28 | K221: 656509 | L221: -17249205.02 | M221: =SUM(M181:M220) -> 26182356.77
C222: Less Socialized Renewable Energy Generation Investments (input as negative) | G222: 0 | L222: 0 | M222: 0
C223: Less Other Non Rate-Regulated Utility Assets (input as negative) | G223: 0 | L223: 0 | M223: 0
C224: Total PP&E | D224: =SUM(D221:D223) -> 39364465.46 | E224: =SUM(E221:E223) -> 5537256.33 | F224: -1470160 | G224: 43431561.79 | I224: =SUM(I221:I223) -> -16053186.74 | J224: =SUM(J221:J223) -> -1852527.28 | K224: 656509 | L224: -17249205.02 | M224: 26182356.77
C225: Depreciation Expense adj. from gain or loss on the retirement of assets (pool of like assets), if applicable6
C226: Total | J226: -1435333.28
I228: Less: Fully Allocated Depreciation
A229: 10 | C229: Transportation | I229: Transportation
A230: 8 | C230: Stores Equipment | I230: Stores Equipment
I231: Net Depreciation | K231: -1435333.28
A245: Appendix 2-BA
A246: Fixed Asset Continuity Schedule 1
E248: Accounting Standard | F248: CGAAP | G248: Revised
E249: Year | F249: 2014
D251: Cost | J251: Accumulated Depreciation
A252: CCA Class 2 | B252: OEB Account 3 | C252: Description 3 | D252: Opening Balance | E252: Additions 4 | F252: Disposals 6 | G252: Closing Balance | I252: Opening Balance | J252: Additions | K252: Disposals 6 | L252: Closing Balance | M252: Net Book Value
A253: 12 | B253: 1611 | C253: Computer Software (Formally known as Account 1925) | D253: =+G181 -> 1140133.47 | E253: 137557 | F253: 0 | G253: =SUM(D253:F253) -> 1277690.47 | I253: =+L181 -> -737540.97 | J253: -107619 | L253: =SUM(I253:K253) -> -845159.97 | M253: =+G253+L253 -> 432530.5
A254: CEC | B254: 1612 | C254: Land Rights (Formally known as Account 1906) | D254: =+G182 -> 43879.04 | E254: 0 | F254: 0 | G254: =SUM(D254:F254) -> 43879.04 | I254: =+L182 -> 0 | L254: =SUM(I254:K254) -> 0 | M254: =+G254+L254 -> 43879.04
A255: N/A | B255: 1805 | C255: Land | D255: 104039.08 | E255: 0 | F255: 0 | G255: 104039.08 | I255: 0 | L255: 0 | M255: 104039.08
A256: 47 | B256: 1808 | C256: Buildings | D256: 220868.23 | E256: 4014 | F256: 0 | G256: 224882.23 | I256: -75074.06 | J256: -3989 | L256: -79063.06 | M256: 145819.17
A257: 13 | B257: 1810 | C257: Leasehold Improvements | D257: 0 | E257: 0 | F257: 0 | G257: 0 | I257: 0 | L257: 0 | M257: 0
A258: 47 | B258: 1815 | C258: Transformer Station Equipment >50 kV | D258: 0 | E258: 0 | F258: 0 | G258: 0 | I258: 0 | L258: 0 | M258: 0
A259: 47 | B259: 1820 | C259: Distribution Station Equipment <50 kV | D259: 617563.71 | E259: 0 | F259: 0 | G259: 617563.71 | I259: -198234.41 | J259: -10591 | L259: -208825.41 | M259: 408738.3
A260: 47 | B260: 1825 | C260: Storage Battery Equipment | D260: 0 | E260: 0 | F260: 0 | G260: 0 | I260: 0 | L260: 0 | M260: 0
A261: 47 | B261: 1830 | C261: Poles, Towers & Fixtures | D261: 6523422.64 | E261: 1232100 | F261: -44396 | G261: 7711126.64 | I261: -2544985.02 | J261: -142789 | K261: 41615.86 | L261: -2646158.16 | M261: 5064968.48
A262: 47 | B262: 1835 | C262: Overhead Conductors & Devices | D262: 12015007.04 | E262: 1338932 | F262: -1899.28 | G262: 13352039.76 | I262: -7035076.34 | J262: -211408 | K262: 1899.28 | L262: -7244585.06 | M262: 6107454.7
A263: 47 | B263: 1840 | C263: Underground Conduit | D263: 2717442.02 | E263: 45672 | F263: 0 | G263: 2763114.02 | I263: -355353.72 | J263: -66590 | L263: -421943.72 | M263: 2341170.3
A264: 47 | B264: 1845 | C264: Underground Conductors & Devices | D264: 6022155.69 | E264: 698300 | F264: -1121.82 | G264: 6719333.87 | I264: -953898.08 | J264: -159846 | K264: 1121.82 | L264: -1112622.26 | M264: 5606711.61
... 358 more rows

Sheet Appendix 2-BB Service Life
N1: File Number: | P1: ='LDC Info'!E16 -> EB-2017-0038
N2: Exhibit: | P2: 4
N3: Tab: | P3: 9
N4: Schedule:
N5: Page: | P5: 58
N7: Date: | P7: February 26, 2018
A9: Appendix 2-BB
A10: Service Life Comparison
A11: Table F-1 from Kinetrics Report1
C15: Asset Details | F15: Useful Life | J15: USoA Account Number | K15: USoA Account Description | L15: Current | N15: Proposed | P15: Outside Range of Min, Max TUL?
A16: Parent* | B16: # | C16: Category| Component | Type | F16: MIN UL | G16: TUL | H16: MAX UL | L16: Years | M16: Rate | N16: Years | O16: Rate | P16: Below Min TUL | Q16: Above Max TUL
A17: OH | B17: 1 | C17: Fully Dressed Wood Poles | D17: Overall | F17: 35 | G17: 45 | H17: 75 | J17: 1830 | K17: Poles, Towers, and Fixtures | L17: 25 | M17: =IF(ISERROR(1/L17), "", 1/L17) -> 0.04 | N17: 50 | O17: =IF(ISERROR(1/N17), "", 1/N17) -> 0.02 | P17: =IF(ISBLANK(N17),"",IF(N17<F17,"Yes","No")) -> No | Q17: =IF(ISBLANK(N17),"",IF(N17>H17,"Yes","No")) -> No
D18: Cross Arm | E18: Wood | F18: 20 | G18: 40 | H18: 55 | J18: 1830 | K18: Poles, Towers, and Fixtures | L18: 25 | M18: =IF(ISERROR(1/L18), "", 1/L18) -> 0.04 | N18: 50 | O18: =IF(ISERROR(1/N18), "", 1/N18) -> 0.02 | P18: =IF(ISBLANK(N18),"",IF(N18<F18,"Yes","No")) -> No | Q18: =IF(ISBLANK(N18),"",IF(N18>H18,"Yes","No")) -> No
E19: Steel | F19: 30 | G19: 70 | H19: 95 | J19: 1830 | K19: Poles, Towers, and Fixtures | L19: 25 | M19: 0.04 | N19: 50 | O19: 0.02 | P19: No | Q19: No
B20: 2 | C20: Fully Dressed Concrete Poles | D20: Overall | F20: 50 | G20: 60 | H20: 80 | J20: 1830 | K20: Poles, Towers, and Fixtures | L20: 25 | M20: 0.04 | N20: 50 | O20: 0.02 | P20: No | Q20: No
D21: Cross Arm | E21: Wood | F21: 20 | G21: 40 | H21: 55 | J21: 1830 | K21: Poles, Towers, and Fixtures | L21: 25 | M21: 0.04 | N21: 50 | O21: 0.02 | P21: No | Q21: No
E22: Steel | F22: 30 | G22: 70 | H22: 95 | J22: 1830 | K22: Poles, Towers, and Fixtures | L22: 25 | M22: 0.04 | N22: 50 | O22: 0.02 | P22: No | Q22: No
B23: 3 | C23: Fully Dressed Steel Poles | D23: Overall | F23: 60 | G23: 60 | H23: 80 | J23: 1830 | K23: Poles, Towers, and Fixtures | L23: 25 | M23: 0.04 | N23: 60 | O23: 0.01666666667 | P23: No | Q23: No
D24: Cross Arm | E24: Wood | F24: 20 | G24: 40 | H24: 55 | J24: 1830 | K24: Poles, Towers, and Fixtures | L24: 25 | M24: 0.04 | N24: 50 | O24: 0.02 | P24: No | Q24: No
E25: Steel | F25: 30 | G25: 70 | H25: 95 | J25: 1830 | K25: Poles, Towers, and Fixtures | L25: 25 | M25: 0.04 | N25: 50 | O25: 0.02 | P25: No | Q25: No
B26: 4 | C26: OH Line Switch | F26: 30 | G26: 45 | H26: 55 | J26: 1835 | K26: Overhead Conductors and Devices | L26: 25 | M26: 0.04 | N26: 60 | O26: 0.01666666667 | P26: No | Q26: Yes
B27: 5 | C27: OH Line Switch Motor | F27: 15 | G27: 25 | H27: 25
B28: 6 | C28: OH Line Switch RTU | F28: 15 | G28: 20 | H28: 20
B29: 7 | C29: OH Integral Switches | F29: 35 | G29: 45 | H29: 60 | J29: 1835 | K29: Overhead Conductors and Devices | L29: 25 | M29: 0.04 | N29: 60 | O29: 0.01666666667 | P29: No | Q29: No
B30: 8 | C30: OH Conductors | F30: 50 | G30: 60 | H30: 75 | J30: 1835 | K30: Overhead Conductors and Devices | L30: 25 | M30: 0.04 | N30: 60 | O30: 0.01666666667 | P30: No | Q30: No
B31: 9 | C31: OH Transformers & Voltage Regulators | F31: 30 | G31: 40 | H31: 60 | J31: 1850 | K31: Line Transformers | L31: 25 | M31: 0.04 | N31: 40 | O31: 0.025 | P31: No | Q31: No
B32: 10 | C32: OH Shunt Capacitor Banks | F32: 25 | G32: 30 | H32: 40
B33: 11 | C33: Reclosers | F33: 25 | G33: 40 | H33: 55 | J33: 1850 | K33: Line Transformers | L33: 25 | M33: 0.04 | N33: 40 | O33: 0.025 | P33: No | Q33: No
A34: TS & MS | B34: 12 | C34: Power Transformers | D34: Overall | F34: 30 | G34: 45 | H34: 60 | J34: 1850 | K34: Line Transformers | L34: 25 | M34: 0.04 | N34: 40 | O34: 0.025 | P34: No | Q34: No
D35: Bushing | F35: 10 | G35: 20 | H35: 30 | J35: 1850 | K35: Line Transformers | L35: 25 | M35: 0.04 | N35: 40 | O35: 0.025 | P35: No | Q35: Yes
D36: Tap Changer | F36: 20 | G36: 30 | H36: 60 | J36: 1850 | K36: Line Transformers | L36: 25 | M36: 0.04 | N36: 40 | O36: 0.025 | P36: No | Q36: No
B37: 13 | C37: Station Service Transformer | F37: 30 | G37: 45 | H37: 55 | J37: 1820 | K37: Distribution Station Equipment - Normally Primary Below 50 kV | L37: 25 | M37: 0.04 | N37: 60 | O37: 0.01666666667 | P37: No | Q37: Yes
B38: 14 | C38: Station Grounding Transformer | F38: 30 | G38: 40 | H38: 40 | J38: 1820 | K38: Distribution Station Equipment - Normally Primary Below 50 kV | L38: 25 | M38: 0.04 | N38: 60 | O38: 0.01666666667 | P38: No | Q38: Yes
B39: 15 | C39: Station DC System | D39: Overall | F39: 10 | G39: 20 | H39: 30 | J39: 1820 | K39: Distribution Station Equipment - Normally Primary Below 50 kV | L39: 25 | M39: 0.04 | N39: 60 | O39: 0.01666666667 | P39: No | Q39: Yes
D40: Battery Bank | F40: 10 | G40: 15 | H40: 15 | J40: 1820 | K40: Distribution Station Equipment - Normally Primary Below 50 kV | L40: 25 | M40: 0.04 | N40: 60 | O40: 0.01666666667 | P40: No | Q40: Yes
D41: Charger | F41: 20 | G41: 20 | H41: 30 | J41: 1820 | K41: Distribution Station Equipment - Normally Primary Below 50 kV | L41: 25 | M41: 0.04 | N41: 60 | O41: 0.01666666667 | P41: No | Q41: Yes
B42: 16 | C42: Station Metal Clad Switchgear | D42: Overall | F42: 30 | G42: 40 | H42: 60 | J42: 1820 | K42: Distribution Station Equipment - Normally Primary Below 50 kV | L42: 25 | M42: 0.04 | N42: 60 | O42: 0.01666666667 | P42: No | Q42: No
D43: Removable Breaker | F43: 25 | G43: 40 | H43: 60 | J43: 1820 | K43: Distribution Station Equipment - Normally Primary Below 50 kV | L43: 25 | M43: 0.04 | N43: 60 | O43: 0.01666666667 | P43: No | Q43: No
B44: 17 | C44: Station Independent Breakers | F44: 35 | G44: 45 | H44: 65 | J44: 1820 | K44: Distribution Station Equipment - Normally Primary Below 50 kV | L44: 25 | M44: 0.04 | N44: 60 | O44: 0.01666666667 | P44: No | Q44: No
B45: 18 | C45: Station Switch | F45: 30 | G45: 50 | H45: 60 | J45: 1820 | K45: Distribution Station Equipment - Normally Primary Below 50 kV | L45: 25 | M45: 0.04 | N45: 60 | O45: 0.01666666667 | P45: No | Q45: No
B46: 19 | C46: Electromechanical Relays | F46: 25 | G46: 35 | H46: 50 | J46: 1820 | K46: Distribution Station Equipment - Normally Primary Below 50 kV | L46: 25 | M46: 0.04 | N46: 60 | O46: 0.01666666667 | P46: No | Q46: Yes
B47: 20 | C47: Solid State Relays | F47: 10 | G47: 30 | H47: 45
B48: 21 | C48: Digital & Numeric Relays | F48: 15 | G48: 20 | H48: 20
B49: 22 | C49: Rigid Busbars | F49: 30 | G49: 55 | H49: 60 | J49: 1820 | K49: Distribution Station Equipment - Normally Primary Below 50 kV | L49: 25 | M49: 0.04 | N49: 60 | O49: 0.01666666667 | P49: No | Q49: No
B50: 23 | C50: Steel Structure | F50: 35 | G50: 50 | H50: 90 | J50: 1820 | K50: Distribution Station Equipment - Normally Primary Below 50 kV | L50: 25 | M50: 0.04 | N50: 60 | O50: 0.01666666667 | P50: No | Q50: No
A51: UG | B51: 24 | C51: Primary Paper Insulated Lead Covered (PILC) Cables | F51: 60 | G51: 65 | H51: 75 | J51: 1845 | K51: Underground Conductors and Devices | L51: 25 | M51: 0.04 | N51: 40 | O51: 0.025 | P51: Yes | Q51: No
B52: 25 | C52: Primary Ethylene-Propylene Rubber (EPR) Cables | F52: 20 | G52: 25 | H52: 25
B53: 26 | C53: Primary Non-Tree Retardant (TR) Cross Linked Polyethylene (XLPE) Cables Direct Buried | F53: 20 | G53: 25 | H53: 30 | J53: 1845 | K53: Underground Conductors and Devices | L53: 25 | M53: 0.04 | N53: 40 | O53: 0.025 | P53: No | Q53: Yes
B54: 27 | C54: Primary Non-TR XLPE Cables in Duct | F54: 20 | G54: 25 | H54: 30 | J54: 1845 | K54: Underground Conductors and Devices | L54: 25 | M54: 0.04 | N54: 40 | O54: 0.025 | P54: No | Q54: Yes
B55: 30 | C55: Secondary PILC Cables | F55: 70 | G55: 75 | H55: 80
B56: 31 | C56: Secondary Cables Direct Buried | F56: 25 | G56: 35 | H56: 40 | J56: 1845 | K56: Underground Conductors and Devices | L56: 25 | M56: 0.04 | N56: 40 | O56: 0.025 | P56: No | Q56: No
B57: 32 | C57: Secondary Cables in Duct | F57: 35 | G57: 40 | H57: 60 | J57: 1845 | K57: Underground Conductors and Devices | L57: 25 | M57: 0.04 | N57: 40 | O57: 0.025 | P57: No | Q57: No
B58: 33 | C58: Network Tranformers | D58: Overall | F58: 20 | G58: 35 | H58: 50 | J58: 1850 | K58: Line Transformers | L58: 25 | M58: 0.04 | N58: 40 | O58: 0.025 | P58: No | Q58: No
D59: Protector | F59: 20 | G59: 35 | H59: 40 | J59: 1850 | K59: Line Transformers | L59: 25 | M59: 0.04 | N59: 40 | O59: 0.025 | P59: No | Q59: No
B60: 34 | C60: Pad-Mounted Transformers | F60: 25 | G60: 40 | H60: 45 | J60: 1850 | K60: Line Transformers | L60: 25 | M60: 0.04 | N60: 40 | O60: 0.025 | P60: No | Q60: No
B61: 35 | C61: Submersible/Vault Transformers | F61: 25 | G61: 35 | H61: 45 | J61: 1850 | K61: Line Transformers | L61: 25 | M61: 0.04 | N61: 40 | O61: 0.025 | P61: No | Q61: No
B62: 36 | C62: UG Foundation | F62: 35 | G62: 55 | H62: 70 | J62: 1850 | K62: Line Transformers | L62: 25 | M62: 0.04 | N62: 40 | O62: 0.025 | P62: No | Q62: No
B63: 37 | C63: UG Vaults | D63: Overall | F63: 40 | G63: 60 | H63: 80 | J63: 1850 | K63: Line Transformers | L63: 25 | M63: 0.04 | N63: 40 | O63: 0.025 | P63: No | Q63: No
D64: Roof | F64: 20 | G64: 30 | H64: 45 | J64: 1850 | K64: Line Transformers | L64: 25 | M64: 0.04 | N64: 40 | O64: 0.025 | P64: No | Q64: No
B65: 38 | C65: UG Vault Switches | F65: 20 | G65: 35 | H65: 50 | J65: 1850 | K65: Line Transformers | L65: 25 | M65: 0.04 | N65: 40 | O65: 0.025 | P65: No | Q65: No
B66: 39 | C66: Pad-Mounted Switchgear | F66: 20 | G66: 30 | H66: 45 | J66: 1850 | K66: Line Transformers | L66: 25 | M66: 0.04 | N66: 40 | O66: 0.025 | P66: No | Q66: No
B67: 40 | C67: Ducts | F67: 30 | G67: 50 | H67: 85 | J67: 1840 | K67: Underground Conduit | L67: 25 | M67: 0.04 | N67: 45 | O67: 0.02222222222 | P67: No | Q67: No
B68: 41 | C68: Concrete Encased Duct Banks | F68: 35 | G68: 55 | H68: 80 | J68: 1840 | K68: Underground Conduit | L68: 25 | M68: 0.04 | N68: 45 | O68: 0.02222222222 | P68: No | Q68: No
B69: 42 | C69: Cable Chambers | F69: 50 | G69: 60 | H69: 80
A70: S | B70: 43 | C70: Remote SCADA | F70: 15 | G70: 20 | H70: 30
A73: Table F-2 from Kinetrics Report1
C75: Asset Details | F75: Useful Life Range | J75: USoA Account Number | K75: USoA Account Description | L75: Current | N75: Proposed | P75: Outside Range of Min, Max TUL?
B76: # | C76: Category| Component | Type | L76: Years | M76: Rate | N76: Years | O76: Rate | P76: Below Min Range | Q76: Above Max Range
B77: 1 | C77: Office Equipment | F77: 5 | G77: 15 | J77: 1915 | K77: Office Furniture and Equipment | L77: 10 | M77: =IF(ISERROR(1/L77), "", 1/L77) -> 0.1 | N77: 10 | O77: =IF(ISERROR(1/N77), "", 1/N77) -> 0.1 | P77: =IF(ISBLANK(N77),"",IF(N77<F77,"Yes","No")) -> No | Q77: =IF(ISBLANK(N77),"",IF(N77>G77,"Yes","No")) -> No
B78: 2 | C78: Vehicles | D78: Trucks & Buckets | F78: 5 | G78: 15 | J78: 1930 | K78: Transportation Equipment | L78: 8 | M78: =IF(ISERROR(1/L78), "", 1/L78) -> 0.125 | N78: 10 | O78: =IF(ISERROR(1/N78), "", 1/N78) -> 0.1 | P78: =IF(ISBLANK(N78),"",IF(N78<F78,"Yes","No")) -> No | Q78: =IF(ISBLANK(N78),"",IF(N78>G78,"Yes","No")) -> No
D79: Trailers | F79: 5 | G79: 20 | J79: 1930 | K79: Transportation Equipment | L79: 8 | M79: 0.125 | N79: 10 | O79: 0.1 | P79: No | Q79: No
D80: Vans | F80: 5 | G80: 10 | J80: 1930 | K80: Transportation Equipment | L80: 8 | M80: 0.125 | N80: 8 | O80: 0.125 | P80: No | Q80: No
B81: 3 | C81: Administrative Buildings | F81: 50 | G81: 75 | J81: n/a
B82: 4 | C82: Leasehold Improvements | F82: Lease dependent | J82: 1910 | K82: Leasehold Improvements | L82: 25 | M82: 0.04 | N82: 55 | O82: 0.01818181818
B83: 5 | C83: Station Buildings | D83: Station Buildings | F83: 50 | G83: 75 | J83: 1808 | K83: Buildings and Fixtures | L83: 25 | M83: 0.04 | N83: 55 | O83: 0.01818181818 | P83: No | Q83: No
D84: Parking | F84: 25 | G84: 30 | J84: 1808 | K84: Buildings and Fixtures | L84: 25 | M84: 0.04 | N84: 55 | O84: 0.01818181818 | P84: No | Q84: Yes
D85: Fence | F85: 25 | G85: 60 | J85: 1808 | K85: Buildings and Fixtures | L85: 25 | M85: 0.04 | N85: 55 | O85: 0.01818181818 | P85: No | Q85: No
D86: Roof | F86: 20 | G86: 30 | J86: 1808 | K86: Buildings and Fixtures | L86: 25 | M86: 0.04 | N86: 55 | O86: 0.01818181818 | P86: No | Q86: Yes
B87: 6 | C87: Computer Equipment | D87: Hardware | F87: 3 | G87: 5 | J87: 1920 | K87: Computer Equipment - Hardware | L87: 5 | M87: 0.2 | N87: 5 | O87: 0.2 | P87: No | Q87: No
D88: Software | F88: 2 | G88: 5 | J88: 1611 | K88: Computer Software | L88: 3 | M88: 0.3333333333 | N88: 3 | O88: 0.3333333333 | P88: No | Q88: No
B89: 7 | C89: Equipment | D89: Power Operated | F89: 5 | G89: 10 | J89: 1950 | K89: Power Operated Equipment | L89: 10 | M89: 0.1 | N89: 8 | O89: 0.125 | P89: No | Q89: No
D90: Stores | F90: 5 | G90: 10
D91: Tools, Shop, Garage Equipment | F91: 5 | G91: 10 | J91: 1940 | K91: Tools, Shop and Garage Equipment | L91: 10 | M91: 0.1 | N91: 8 | O91: 0.125 | P91: No | Q91: No
D92: Measurement & Testing Equipment | F92: 5 | G92: 10 | J92: 1945 | K92: Measurement and Testing Equipment | L92: 10 | M92: 0.1 | N92: 8 | O92: 0.125 | P92: No | Q92: No
B93: 8 | C93: Communication | D93: Towers | F93: 60 | G93: 70
D94: Wireless | F94: 2 | G94: 10 | J94: 1955 | K94: Communication Equipment | L94: 0 | N94: 5 | O94: 0.2 | P94: No | Q94: No
B95: 9 | C95: Residential Energy Meters | F95: 25 | G95: 35
B96: 10 | C96: Industrial/Commercial Energy Meters | F96: 25 | G96: 35 | J96: 1860 | K96: Meters | L96: 25 | M96: 0.04 | N96: 25 | O96: 0.04 | P96: No | Q96: No
B97: 11 | C97: Wholesale Energy Meters | F97: 15 | G97: 30 | J97: 1860 | K97: Meters | L97: 25 | M97: 0.04 | N97: 25 | O97: 0.04 | P97: No | Q97: No
B98: 12 | C98: Current & Potential Transformer (CT & PT) | F98: 35 | G98: 50 | J98: 1860 | K98: Meters | L98: 25 | M98: 0.04
B99: 13 | C99: Smart Meters | F99: 5 | G99: 15 | J99: 1860 | K99: Meters | L99: 25 | M99: 0.04 | N99: 12 | O99: 0.08333333333 | P99: No | Q99: No
B100: 14 | C100: Repeaters - Smart Metering | F100: 10 | G100: 15 | J100: 1860 | K100: Meters | L100: 25 | M100: 0.04 | N100: 12 | O100: 0.08333333333 | P100: No | Q100: No
B101: 15 | C101: Data Collectors - Smart Metering | F101: 15 | G101: 20 | J101: 1955 | K101: Meters | L101: 25 | M101: 0.04 | N101: 5 | O101: 0.2 | P101: Yes | Q101: No
A104: * TS & MS = Transformer and Municipal Stations UG = Underground Systems S = Monitoring and Control Systems
A106: Note 1: | B106: Tables F-1 and F-2 above are to be used as a reference in order to complete columns J, K, L and N.
B107: See pages 17-19 of Kinetrics Report

Sheet App.2-C_DepExp
A9: Appendix 2-C
A10: Depreciation and Amortization Expense
A12: This appendix is to be completed in conjunction with the accounting instructions in Appendix 2-B
A14: Scenario that applies | C14: Applicable Years and Accounting Standard | R14: Year Reflected in Schedule Below | S14: Accounting Standard Reflected in Schedule Below
A15: Rebasing for the first time with depreciation policy changes made in 2012. | C15: This appendix must be duplicated and completed for the years 2012 to 2018. The appendix for 2012 is to be completed under CGAAP (prior to changes in depreciation policies). The appendix for 2012 to 2014 must be completed under Revised CGAAP (after changes in depreciation policies). The appendix for 2014 to 2018 is to be completed under MIFRS (2014 if changes to MIFRS are material).
A16: Rebasing for the first time with depreciation policy changes made in 2013. | C16: This appendix must be duplicated and completed for the years 2013 to 2018. The appendix for 2013 is to be completed under CGAAP (prior to changes in depreciation policies). The appendix for 2013 to 2014 must be completed under Revised CGAAP (after changes in depreciation policies). The appendix for 2014 to 2018 is to be completed under MIFRS (2014 if changes to MIFRS are material). | R16: 2013 | S16: CGAAP
A17: Already rebased with depreciation policy changes in a prior rate application | C17: This appendix must be completed for 2014 to 2018. The appendix for 2014 is to be completed under Revised CGAAP (after changes in depreciation policies). The appendix for 2014 to 2018 is to be completed under MIFRS (2014 if changes to MIFRS are material).
C20: Book Values | J20: Service Lives | N20: Depreciation Expense
A21: Account | B21: Description | C21: Opening Net Book Value of Existing Assets as at Date of Policy Change (Jan. 1) 1 | D21: Less Fully Depreciated 7 | E21: Net Amount of Existing Assets Before Policy Change to be Depreciated | F21: Opening Gross Book Value of Assets Acquired After Policy Change 2 | G21: Less Fully Depreciated 8 | H21: Net Amount of Assets Acquired After Policy Change to be Depreciated | I21: Current Year Additions | J21: Average Remaining Life of Assets Existing Before Policy Change 3 | K21: Depreciation Rate Assets Acquired After Policy Change | L21: Life of Assets Acquired After Policy Change 4 | M21: Depreciation Rate on New Additions | N21: Depreciation Expense on Assets Existing Before Policy Change | O21: Depreciation Expense on Assets Acquired After Policy Change | P21: Depreciation Expense on Current Year Additions 5 | Q21: Total Current Year Depreciation Expense | R21: Depreciation Expense per Appendix 2-BA Fixed Assets, Column J | S21: Variance 6
C22: a | D22: b | E22: c = a-b | F22: d | G22: e | H22: f = d- e | I22: g | J22: h | K22: i = 1/h | L22: j | M22: k = 1/j | N22: l = c/h | O22: m = f/j | P22: n = g*0.5/j | Q22: o = l+m+n | R22: p | S22: q = p-o
A23: 1611 | B23: Computer Software (Formally known as Account 1925) | C23: 455375.65 | E23: =C23-D23 -> 455375.65 | F23: 0 | H23: =F23-G23 -> 0 | I23: ='[15]Updated 2-BA'!E107 -> 54670.75 | K23: =IF(J23=0,0,1/J23) -> 0 | L23: 3 | M23: =IF(L23=0,0,1/L23) -> 0.3333333333 | N23: =IF(J23=0,0,+E23/J23) -> 0 | O23: =IF(L23=0,0,+H23/L23) -> 0 | P23: =IF(L23=0,0,+(I23*0.5)/L23) -> 9111.791667 | Q23: =N23+O23+P23 -> 9111.791667 | R23: =-'[15]Updated 2-BA'!J107 -> 107453.9 | S23: =R23-Q23 -> 98342.10833
A24: 1612 | B24: Land Rights (Formally known as Account 1906) | C24: 42932.04 | E24: =C24-D24 -> 42932.04 | F24: 0 | H24: =F24-G24 -> 0 | I24: ='[15]Updated 2-BA'!E108 -> 947 | K24: =IF(J24=0,0,1/J24) -> 0 | M24: =IF(L24=0,0,1/L24) -> 0 | N24: =IF(J24=0,0,+E24/J24) -> 0 | O24: =IF(L24=0,0,+H24/L24) -> 0 | P24: =IF(L24=0,0,+(I24*0.5)/L24) -> 0 | Q24: =N24+O24+P24 -> 0 | R24: =-'[15]Updated 2-BA'!J108 -> 0 | S24: =R24-Q24 -> 0
A25: 1805 | B25: Land | C25: 103344.08 | E25: 103344.08 | F25: 0 | H25: 0 | I25: ='[15]Updated 2-BA'!E109 -> 695 | K25: 0 | M25: 0 | N25: 0 | O25: 0 | P25: 0 | Q25: 0 | R25: =-'[15]Updated 2-BA'!J109 -> 0 | S25: 0
A26: 1808 | B26: Buildings | C26: 124624.34 | E26: 124624.34 | F26: 0 | H26: 0 | I26: ='[15]Updated 2-BA'!E110 -> 24917.26 | K26: 0 | L26: 60 | M26: 0.01666666667 | N26: 0 | O26: 0 | P26: 207.6438333 | Q26: 207.6438333 | R26: =-'[15]Updated 2-BA'!J110 -> 3747.43 | S26: 3539.786167
A27: 1810 | B27: Leasehold Improvements | C27: 0 | E27: 0 | F27: 0 | H27: 0 | I27: ='[15]Updated 2-BA'!E111 -> 0 | K27: 0 | M27: 0 | N27: 0 | O27: 0 | P27: 0 | Q27: 0 | R27: =-'[15]Updated 2-BA'!J111 -> 0 | S27: 0
A28: 1815 | B28: Transformer Station Equipment >50 kV | C28: 0 | E28: 0 | F28: 0 | H28: 0 | I28: ='[15]Updated 2-BA'!E112 -> 0 | K28: 0 | M28: 0 | N28: 0 | O28: 0 | P28: 0 | Q28: 0 | R28: =-'[15]Updated 2-BA'!J112 -> 0 | S28: 0
A29: 1820 | B29: Distribution Station Equipment <50 kV | C29: 416938.76 | E29: 416938.76 | F29: 0 | H29: 0 | I29: ='[15]Updated 2-BA'!E113 -> 12875 | K29: 0 | L29: 60 | M29: 0.01666666667 | N29: 0 | O29: 0 | P29: 107.2916667 | Q29: 107.2916667 | R29: =-'[15]Updated 2-BA'!J113 -> 10484.46 | S29: 10377.16833
A30: 1825 | B30: Storage Battery Equipment | C30: 0 | E30: 0 | F30: 0 | H30: 0 | I30: ='[15]Updated 2-BA'!E114 -> 0 | K30: 0 | M30: 0 | N30: 0 | O30: 0 | P30: 0 | Q30: 0 | R30: =-'[15]Updated 2-BA'!J114 -> 0 | S30: 0
A31: 1830 | B31: Poles, Towers & Fixtures | C31: 3625291.03 | E31: 3625291.03 | F31: 0 | H31: 0 | I31: ='[15]Updated 2-BA'!E115 -> 471688.41 | K31: 0 | L31: 50 | M31: 0.02 | N31: 0 | O31: 0 | P31: 4716.8841 | Q31: 4716.8841 | R31: =-'[15]Updated 2-BA'!J115 -> 118541.82 | S31: 113824.9359
A32: 1835 | B32: Overhead Conductors & Devices | C32: 3973942.93 | E32: 3973942.93 | F32: 0 | H32: 0 | I32: ='[15]Updated 2-BA'!E116 -> 700608.48 | K32: 0 | L32: 60 | M32: 0.01666666667 | N32: 0 | O32: 0 | P32: 5838.404 | Q32: 5838.404 | R32: =-'[15]Updated 2-BA'!J116 -> 194411.71 | S32: 188573.306
A33: 1840 | B33: Underground Conduit | C33: 2397564.69 | E33: 2397564.69 | F33: 0 | H33: 0 | I33: ='[15]Updated 2-BA'!E117 -> 30269.8 | K33: 0 | L33: 45 | M33: 0.02222222222 | N33: 0 | O33: 0 | P33: 336.3311111 | Q33: 336.3311111 | R33: =-'[15]Updated 2-BA'!J117 -> 65746.19 | S33: 65409.85889
A34: 1845 | B34: Underground Conductors & Devices | C34: 4872044.54 | E34: 4872044.54 | F34: 0 | H34: 0 | I34: ='[15]Updated 2-BA'!E118 -> 344472.73 | K34: 0 | L34: 45 | M34: 0.02222222222 | N34: 0 | O34: 0 | P34: 3827.474778 | Q34: 3827.474778 | R34: =-'[15]Updated 2-BA'!J118 -> 148259.66 | S34: 144432.1852
A35: 1850 | B35: Line Transformers | C35: 6053932.27 | E35: 6053932.27 | F35: 0 | H35: 0 | I35: ='[15]Updated 2-BA'!E119 -> 604927.6 | K35: 0 | L35: 40 | M35: 0.025 | N35: 0 | O35: 0 | P35: 7561.595 | Q35: 7561.595 | R35: =-'[15]Updated 2-BA'!J119 -> 151650.68 | S35: 144089.085
A36: 1855 | B36: Services (Overhead & Underground) | C36: 2484787.58 | E36: 2484787.58 | F36: 0 | H36: 0 | I36: ='[15]Updated 2-BA'!E120 -> 308079.99 | K36: 0 | L36: 60 | M36: 0.01666666667 | N36: 0 | O36: 0 | P36: 2567.33325 | Q36: 2567.33325 | R36: =-'[15]Updated 2-BA'!J120 -> 67624.72 | S36: 65057.38675
A37: 1860 | B37: Meters | C37: 2475115.7 | E37: 2475115.7 | F37: 0 | H37: 0 | I37: ='[15]Updated 2-BA'!E121 -> 237156 | K37: 0 | L37: 25 | M37: 0.04 | N37: 0 | O37: 0 | P37: 4743.12 | Q37: 4743.12 | R37: =-'[15]Updated 2-BA'!J121 -> 727871.16 | S37: 723128.04
A38: 1860 | B38: Meters (Smart Meters) | C38: 0 | E38: 0 | F38: 0 | H38: 0 | I38: ='[15]Updated 2-BA'!E122 -> 2887735 | K38: 0 | L38: 12 | M38: 0.08333333333 | N38: 0 | O38: 0 | P38: 120322.2917 | Q38: 120322.2917 | R38: =-'[15]Updated 2-BA'!J122 -> 0 | S38: -120322.2917
A39: 1905 | B39: Land | C39: 0 | E39: 0 | F39: 0 | H39: 0 | I39: ='[15]Updated 2-BA'!E123 -> 0 | K39: 0 | M39: 0 | N39: 0 | O39: 0 | P39: 0 | Q39: 0 | R39: =-'[15]Updated 2-BA'!J123 -> 0 | S39: 0
A40: 1908 | B40: Buildings & Fixtures | C40: 0 | E40: 0 | F40: 0 | H40: 0 | I40: ='[15]Updated 2-BA'!E124 -> 0 | K40: 0 | M40: 0 | N40: 0 | O40: 0 | P40: 0 | Q40: 0 | R40: =-'[15]Updated 2-BA'!J124 -> 0 | S40: 0
A41: 1910 | B41: Leasehold Improvements | C41: 174258.88 | E41: 174258.88 | F41: 0 | H41: 0 | I41: ='[15]Updated 2-BA'!E125 -> 53272.5 | K41: 0 | L41: 55 | M41: 0.01818181818 | N41: 0 | O41: 0 | P41: 484.2954545 | Q41: 484.2954545 | R41: =-'[15]Updated 2-BA'!J125 -> 3892.6 | S41: 3408.304545
A42: 1915 | B42: Office Furniture & Equipment (10 years) | C42: 23165.34 | E42: 23165.34 | F42: 0 | H42: 0 | I42: ='[15]Updated 2-BA'!E126 -> 3059.23 | K42: 0 | L42: 10 | M42: 0.1 | N42: 0 | O42: 0 | P42: 152.9615 | Q42: 152.9615 | R42: =-'[15]Updated 2-BA'!J126 -> 5093.22 | S42: 4940.2585
A43: 1915 | B43: Office Furniture & Equipment (5 years) | C43: 0 | E43: 0 | F43: 0 | H43: 0 | I43: ='[15]Updated 2-BA'!E127 -> 0 | K43: 0 | M43: 0 | N43: 0 | O43: 0 | P43: 0 | Q43: 0 | R43: =-'[15]Updated 2-BA'!J127 -> 0 | S43: 0
A44: 1920 | B44: Computer Equipment - Hardware | C44: 0 | E44: 0 | F44: 0 | H44: 0 | I44: ='[15]Updated 2-BA'!E128 -> 0 | K44: 0 | M44: 0 | N44: 0 | O44: 0 | P44: 0 | Q44: 0 | R44: =-'[15]Updated 2-BA'!J128 -> 0 | S44: 0
A45: 1920 | B45: Computer Equip.-Hardware(Post Mar. 22/04) | C45: 0 | E45: 0 | F45: 0 | H45: 0 | I45: ='[15]Updated 2-BA'!E129 -> 0 | K45: 0 | M45: 0 | N45: 0 | O45: 0 | P45: 0 | Q45: 0 | R45: =-'[15]Updated 2-BA'!J129 -> 0 | S45: 0
A46: 1920 | B46: Computer Equip.-Hardware(Post Mar. 19/07) | C46: 41332 | E46: 41332 | F46: 0 | H46: 0 | I46: ='[15]Updated 2-BA'!E130 -> 57213.91 | K46: 0 | L46: 5 | M46: 0.2 | N46: 0 | O46: 0 | P46: 5721.391 | Q46: 5721.391 | R46: =-'[15]Updated 2-BA'!J130 -> 14850.16 | S46: 9128.769
A47: 1930 | B47: Transportation Equipment | C47: 925955.2 | E47: 925955.2 | F47: 0 | H47: 0 | I47: ='[15]Updated 2-BA'!E131 -> 386631.99 | K47: 0 | L47: 8 | M47: 0.125 | N47: 0 | O47: 0 | P47: 24164.49937 | Q47: 24164.49937 | R47: =-'[15]Updated 2-BA'!J131 -> 260859.21 | S47: 236694.7106
A48: 1935 | B48: Stores Equipment | C48: 0 | E48: 0 | F48: 0 | H48: 0 | I48: ='[15]Updated 2-BA'!E132 -> 0 | K48: 0 | M48: 0 | N48: 0 | O48: 0 | P48: 0 | Q48: 0 | R48: =-'[15]Updated 2-BA'!J132 -> 0 | S48: 0
A49: 1940 | B49: Tools, Shop & Garage Equipment | C49: 79939.59 | E49: 79939.59 | F49: 0 | H49: 0 | I49: ='[15]Updated 2-BA'!E133 -> 16441.83 | K49: 0 | L49: 10 | M49: 0.1 | N49: 0 | O49: 0 | P49: 822.0915 | Q49: 822.0915 | R49: =-'[15]Updated 2-BA'!J133 -> 21830.31 | S49: 21008.2185
A50: 1945 | B50: Measurement & Testing Equipment | C50: 11001.12 | E50: 11001.12 | F50: 0 | H50: 0 | I50: ='[15]Updated 2-BA'!E134 -> 0 | K50: 0 | L50: 8 | M50: 0.125 | N50: 0 | O50: 0 | P50: 0 | Q50: 0 | R50: =-'[15]Updated 2-BA'!J134 -> 1807.98 | S50: 1807.98
A51: 1950 | B51: Power Operated Equipment | C51: 51893.6 | E51: 51893.6 | F51: 0 | H51: 0 | I51: ='[15]Updated 2-BA'!E135 -> 0 | K51: 0 | L51: 8 | M51: 0.125 | N51: 0 | O51: 0 | P51: 0 | Q51: 0 | R51: =-'[15]Updated 2-BA'!J135 -> 8011.78 | S51: 8011.78
A52: 1955 | B52: Communications Equipment | C52: 0 | E52: 0 | F52: 0 | H52: 0 | I52: ='[15]Updated 2-BA'!E136 -> 0 | K52: 0 | M52: 0 | N52: 0 | O52: 0 | P52: 0 | Q52: 0 | R52: =-'[15]Updated 2-BA'!J136 -> 0 | S52: 0
A53: 1955 | B53: Communication Equipment (Smart Meters) | C53: 0 | E53: 0 | F53: 0 | H53: 0 | I53: ='[15]Updated 2-BA'!E137 -> 0 | K53: 0 | M53: 0 | N53: 0 | O53: 0 | P53: 0 | Q53: 0 | R53: =-'[15]Updated 2-BA'!J137 -> 0 | S53: 0
A54: 1960 | B54: Miscellaneous Equipment | C54: 0 | E54: 0 | F54: 0 | H54: 0 | I54: ='[15]Updated 2-BA'!E138 -> 0 | K54: 0 | M54: 0 | N54: 0 | O54: 0 | P54: 0 | Q54: 0 | R54: =-'[15]Updated 2-BA'!J138 -> 0 | S54: 0
A55: 1970 | B55: Load Management Controls Customer Premises | C55: 0 | E55: 0 | F55: 0 | H55: 0 | I55: ='[15]Updated 2-BA'!E139 -> 0 | K55: 0 | M55: 0 | N55: 0 | O55: 0 | P55: 0 | Q55: 0 | R55: =-'[15]Updated 2-BA'!J139 -> 0 | S55: 0
A56: 1975 | B56: Load Management Controls Utility Premises | C56: 0 | E56: 0 | F56: 0 | H56: 0 | I56: ='[15]Updated 2-BA'!E140 -> 0 | K56: 0 | M56: 0 | N56: 0 | O56: 0 | P56: 0 | Q56: 0 | R56: =-'[15]Updated 2-BA'!J140 -> 0 | S56: 0
A57: 1980 | B57: System Supervisor Equipment | C57: 203266.79 | E57: 203266.79 | F57: 0 | H57: 0 | I57: ='[15]Updated 2-BA'!E141 -> 42215.85 | K57: 0 | L57: 5 | M57: 0.2 | N57: 0 | O57: 0 | P57: 4221.585 | Q57: 4221.585 | R57: =-'[15]Updated 2-BA'!J141 -> 47014.75 | S57: 42793.165
A58: 1985 | B58: Miscellaneous Fixed Assets | C58: 0 | E58: 0 | F58: 0 | H58: 0 | I58: ='[15]Updated 2-BA'!E142 -> 0 | K58: 0 | M58: 0 | N58: 0 | O58: 0 | P58: 0 | Q58: 0 | R58: =-'[15]Updated 2-BA'!J142 -> 0 | S58: 0
A59: 1990 | B59: Other Tangible Property | C59: 0 | E59: 0 | F59: 0 | H59: 0 | I59: ='[15]Updated 2-BA'!E143 -> 0 | K59: 0 | M59: 0 | N59: 0 | O59: 0 | P59: 0 | Q59: 0 | R59: =-'[15]Updated 2-BA'!J143 -> 0 | S59: 0
A60: 1995 | B60: Contributions & Grants | C60: -5225427.41 | E60: -5225427.41 | F60: 0 | H60: 0 | I60: ='[15]Updated 2-BA'!E144 -> -700622 | K60: 0 | L60: 25 | M60: 0.04 | N60: 0 | O60: 0 | P60: -14012.44 | Q60: -14012.44 | R60: =-'[15]Updated 2-BA'!J144 -> -106624.46 | S60: -92612.02
B61: Total | C61: =SUM(C23:C60) -> 23311278.72 | D61: =SUM(D23:D60) -> 0 | E61: 23311278.72 | F61: 0 | G61: 0 | H61: 0 | I61: 5537256.33 | N61: =SUM(N23:N60) -> 0 | O61: 0 | P61: 180894.5449 | Q61: 180894.5449 | R61: =SUM(R23:R60) -> 1852527.28 | S61: =SUM(S23:S60) -> 1671632.735
A64: General: | B64: Applicants are to complete this appendix to show the reasonability of the depreciation expense that is included in rate base via. Accumulated depreciation and the revenue requirement.
B65: Applicants must provide a breakdown of depreciation and amortization expense in the above format for all relevant accounts. Balances presented in the table should exclude asset retirement obligations (AROs) and the related depreciation and accretion expense. These should be disclosed separately consistent with the Notes of historical Audited Financial Statements.
A68: Notes:
A69: 1 | B69: This is the net book value of assets that existed as at the date of the utility's change in depreciation policies (i.e. as at Jan. 1, 2012 or Jan. 1, 2013). These assets are to be depreciated at the average remaining service life. This amount will not change in years subsequent to the date of the utility's change in depreciation policies. This column is expected to be used until the assets that existed as at the date of the utility's change in depreciation policies are fully depreciated.
A70: 2 | B70: This is the opening gross book value of assets that have been acquired after the date of the utilities change in depreciation policies (i.e. additions starting in 2012/2013 for those who changed policies Jan. 1, 2012/2013). These assets are to be depreciated at the revised service life. The amount is expected to be equal to the gross book value of the prior year plus the prior year's additions.
A71: 3 | B71: A recalculation should be performed to determine the average remaining life of opening balance of assets (i.e. excluding current year's additions) under the change in policies under CGAAP. For example, Asset A had a useful life of 20 years under CGAAP without the change in policies. On January 1 of the year of policy changes, Asset A was 3 years depreciated. As a result, Asset A would have a remaining service life of 17 years (20 years less 3 years) as at January 1 of the year of policy changes. Due to making the change in policies under CGAAP, management re-assessed the asset useful lives and concluded that the revised useful life of Asset A is now 30 years. Therefore, the average remaining useful life of the opening balance of Asset A is determined to be 27 years (30 years less 3 years) under the revised CGAAP as at January 1 of the year of policy changes.
A72: 4 | B72: The useful life used should be consistent with the OEB's regulatory accounting policies as set out in the Accounting Procedures Handbook for Electricity Distributors, effective Jan. 1, 2012 and also with the Report of the Board, Transition to International Financial Reporting Standards, EB-2008-0408, and the Kinectrics Report.
A73: 5 | B73: Board policy of the "half-year" rule - the applicant must ensure that additions in the year attract a half-year depreciation expense in the first year. Deviations from this standard practice must be supported in the application.
A74: 6 | B74: The applicant must provide an explanation of material variances in evidence.
A75: 7 | B75: This should include assets in column a (excel column C) that become fully depreciated since the date of the policy change. The amount input in b (excel column D) should equal the net book value of the asset as at the date of depreciation policy change
A76: 8 | B76: This should include assets in column d (excel column f) that have become fully depreciated. The amount input in e (excel column G) should equal the gross book value of the asset
A80: Scenario that applies | C80: Applicable Years and Accounting Standard | R80: Year Reflected in Schedule Below | S80: Accounting Standard Reflected in Schedule Below
A81: Rebasing for the first time with depreciation policy changes made in 2012. | C81: This appendix must be duplicated and completed for the years 2012 to 2018. The appendix for 2012 is to be completed under CGAAP (prior to changes in depreciation policies). The appendix for 2012 to 2014 must be completed under Revised CGAAP (after changes in depreciation policies). The appendix for 2014 to 2018 is to be completed under MIFRS (2014 if changes to MIFRS are material).
A82: Rebasing for the first time with depreciation policy changes made in 2013. | C82: This appendix must be duplicated and completed for the years 2013 to 2018. The appendix for 2013 is to be completed under CGAAP (prior to changes in depreciation policies). The appendix for 2013 to 2014 must be completed under Revised CGAAP (after changes in depreciation policies). The appendix for 2014 to 2018 is to be completed under MIFRS (2014 if changes to MIFRS are material). | R82: 2013 | S82: Revised CGAAP
A83: Already rebased with depreciation policy changes in a prior rate application | C83: This appendix must be completed for 2014 to 2018. The appendix for 2014 is to be completed under Revised CGAAP (after changes in depreciation policies). The appendix for 2014 to 2018 is to be completed under MIFRS (2014 if changes to MIFRS are material).
C86: Book Values | J86: Service Lives | N86: Depreciation Expense
A87: Account | B87: Description | C87: Opening Net Book Value of Existing Assets as at Date of Policy Change (Jan. 1) 1 | D87: Less Fully Depreciated 7 | E87: Net Amount of Existing Assets Before Policy Change to be Depreciated | F87: Opening Gross Book Value of Assets Acquired After Policy Change 2 | G87: Less Fully Depreciated 8 | H87: Net Amount of Assets Acquired After Policy Change to be Depreciated | I87: Current Year Additions | J87: Average Remaining Life of Assets Existing Before Policy Change 3 | K87: Depreciation Rate Assets Acquired After Policy Change | L87: Life of Assets Acquired After Policy Change 4 | M87: Depreciation Rate on New Additions | N87: Depreciation Expense on Assets Existing Before Policy Change | O87: Depreciation Expense on Assets Acquired After Policy Change | P87: Depreciation Expense on Current Year Additions 5 | Q87: Total Current Year Depreciation Expense | R87: Depreciation Expense per Appendix 2-BA Fixed Assets, Column J | S87: Variance 6
C88: a | D88: b | E88: c = a-b | F88: d | G88: e | H88: f = d- e | I88: g | J88: h | K88: i = 1/h | L88: j | M88: k = 1/j | N88: l = c/h | O88: m = f/j | P88: n = g*0.5/j | Q88: o = l+m+n | R88: p | S88: q = p-o
A89: 1611 | B89: Computer Software (Formally known as Account 1925) | C89: 455375.65 | E89: =C89-D89 -> 455375.65 | F89: 54670.75 | H89: =F89-G89 -> 54670.75 | I89: 54670.75 | J89: 5.683774757 | K89: =IF(J89=0,0,1/J89) -> 0.175939414 | L89: 3 | M89: =IF(L89=0,0,1/L89) -> 0.3333333333 | N89: =IF(J89=0,0,+E89/J89) -> 80118.525 | O89: =IF(H89=0,0,+H89/L89) -> 18223.58333 | P89: =IF(I89=0,0,+I89*0.5/L89) -> 9111.791667 | Q89: =SUM(N89:P89) -> 107453.9 | R89: =-'[15]Updated 2-BA'!J181 -> 107453.9 | S89: =R89-Q89 -> -2.225424396e-07
A90: 1612 | B90: Land Rights (Formally known as Account 1906) | C90: 42932.04 | E90: =C90-D90 -> 42932.04 | F90: 947 | H90: =F90-G90 -> 947 | I90: 947 | K90: 0 | M90: 0 | N90: 0 | O90: =IF(L90=0,0,+H90/L90) -> 0 | P90: =IF(L90=0,0,+(I90*0.5)/L90) -> 0 | Q90: =SUM(N90:P90) -> 0 | R90: =-'[15]Updated 2-BA'!J182 -> 0 | S90: =R90-Q90 -> 0
A91: 1805 | B91: Land | C91: 103344.08 | E91: 103344.08 | F91: 695 | H91: 695 | I91: 695 | K91: 0 | M91: 0 | N91: 0 | O91: 0 | P91: 0 | Q91: 0 | R91: =-'[15]Updated 2-BA'!J183 -> 0 | S91: 0
A92: 1808 | B92: Buildings | C92: 124624.34 | E92: 124624.34 | F92: 24917.26 | H92: 24917.26 | I92: 24917.26 | J92: 39.88618971 | K92: 0.0250713344 | L92: 60 | M92: 0.01666666667 | N92: 3124.498502 | O92: =IF(H92=0,0,+H92/L92) -> 415.2876667 | P92: 207.6438333 | Q92: 3747.430002 | R92: =-'[15]Updated 2-BA'!J184 -> 3747.43 | S92: -2.131243491e-06
A93: 1810 | B93: Leasehold Improvements | C93: 0 | E93: 0 | F93: 0 | H93: 0 | I93: 0 | K93: 0 | M93: 0 | N93: 0 | O93: 0 | P93: =IF(I93=0,0,+I93*0.5/L93) -> 0 | Q93: 0 | R93: =-'[15]Updated 2-BA'!J185 -> 0 | S93: 0
A94: 1815 | B94: Transformer Station Equipment >50 kV | C94: 0 | E94: 0 | F94: 0 | H94: 0 | I94: 0 | K94: 0 | M94: 0 | N94: 0 | O94: 0 | P94: 0 | Q94: 0 | R94: =-'[15]Updated 2-BA'!J186 -> 0 | S94: 0
A95: 1820 | B95: Distribution Station Equipment <50 kV | C95: 416938.76 | E95: 416938.76 | F95: 12875 | H95: 12875 | I95: 12875 | J95: 41.0268411 | K95: 0.02437428701 | L95: 60 | M95: 0.01666666667 | N95: 10162.585 | O95: 214.5833333 | P95: 107.2916667 | Q95: 10484.46 | R95: =-'[15]Updated 2-BA'!J187 -> 10484.46 | S95: 1.322223397e-07
A96: 1825 | B96: Storage Battery Equipment | C96: 0 | E96: 0 | F96: 0 | H96: 0 | I96: 0 | K96: 0 | M96: 0 | N96: 0 | O96: 0 | P96: 0 | Q96: 0 | R96: =-'[15]Updated 2-BA'!J188 -> 0 | S96: 0
A97: 1830 | B97: Poles, Towers & Fixtures | C97: 3625291.03 | E97: 3625291.03 | F97: 471688.41 | H97: 471688.41 | I97: 471688.41 | J97: 34.72794772 | K97: 0.02879525183 | L97: 50 | M97: 0.02 | N97: 104391.1682 | O97: 9433.7682 | P97: 4716.8841 | Q97: 118541.8205 | R97: =-'[15]Updated 2-BA'!J189 -> 118541.82 | S97: -0.000465606543
A98: 1835 | B98: Overhead Conductors & Devices | C98: 3973942.93 | E98: 3973942.93 | F98: 700608.48 | H98: 700608.48 | I98: 700608.48 | J98: 22.46479142 | K98: 0.04451410126 | L98: 60 | M98: 0.01666666667 | N98: 176896.498 | O98: 11676.808 | P98: 5838.404 | Q98: 194411.71 | R98: =-'[15]Updated 2-BA'!J190 -> 194411.71 | S98: 4.456203897e-06
A99: 1840 | B99: Underground Conduit | C99: 2397564.69 | E99: 2397564.69 | F99: 30269.8 | H99: 30269.8 | I99: 30269.8 | J99: 37.03534928 | K99: 0.02700123043 | L99: 45 | M99: 0.02222222222 | N99: 64737.19667 | O99: 672.6622222 | P99: 336.3311111 | Q99: 65746.19 | R99: =-'[15]Updated 2-BA'!J191 -> 65746.19 | S99: -1.713677193e-06
A100: 1845 | B100: Underground Conductors & Devices | C100: 4872044.54 | E100: 4872044.54 | F100: 344472.73 | H100: 344472.73 | I100: 344472.73 | J100: 35.6202881 | K100: 0.0280738886 | L100: 45 | M100: 0.02222222222 | N100: 136777.2357 | O100: 7654.949556 | P100: 3827.474778 | Q100: 148259.66 | R100: =-'[15]Updated 2-BA'!J192 -> 148259.66 | S100: -2.125452738e-07
A101: 1850 | B101: Line Transformers | C101: 6053932.27 | D101: 110118 | E101: 5943814.27 | F101: 604927.6 | H101: 604927.6 | I101: 604927.6 | J101: 46.94211805 | K101: 0.02130283084 | L101: 40 | M101: 0.025 | N101: 126620.0699 | O101: 15123.19 | P101: 7561.595 | Q101: 149304.8549 | R101: =-'[15]Updated 2-BA'!J193 -> 151650.68 | S101: 2345.825068
A102: 1855 | B102: Services (Overhead & Underground) | C102: 2484787.58 | E102: 2484787.58 | F102: 308079.99 | H102: 308079.99 | I102: 308079.99 | J102: 41.46653488 | K102: 0.02411583227 | L102: 60 | M102: 0.01666666667 | N102: 59922.7205 | O102: 5134.6665 | P102: 2567.33325 | Q102: 67624.72025 | R102: =-'[15]Updated 2-BA'!J194 -> 67624.72 | S102: -0.0002525487216
A103: 1860 | B103: Meters | C103: 2475115.7 | E103: 2475115.7 | F103: 237156 | H103: 237156 | I103: 237156 | J103: 8.005879468 | K103: 0.1249082008 | L103: 12 | M103: 0.08333333333 | N103: =IF(J103=0,0,+E103/J103) -> 309162.2488 | O103: =IF(H103=0,0,+H103/12) -> 19763 | P103: 9881.5 | Q103: 338806.7488 | R103: =-'[15]Updated 2-BA'!J195 -> 487226.16 | S103: 148419.4112
A104: 1860 | B104: Meters (Smart Meters) | C104: 0 | E104: 0 | F104: 2887735 | H104: 2887735 | J104: 0 | K104: 0 | L104: 12 | M104: 0.08333333333 | N104: 0 | O104: =IF(H104=0,0,+H104/L104) -> 240644.5833 | P104: 0 | Q104: 240644.5833 | R104: =-'[15]Updated 2-BA'!J196 -> 240645 | S104: 0.4166666667
A105: 1905 | B105: Land | C105: 0 | E105: 0 | F105: 0 | H105: 0 | I105: 0 | K105: 0 | M105: 0 | N105: 0 | O105: 0 | P105: 0 | Q105: 0 | R105: =-'[15]Updated 2-BA'!J197 -> 0 | S105: 0
A106: 1908 | B106: Buildings & Fixtures | C106: 0 | E106: 0 | F106: 0 | H106: 0 | I106: 0 | K106: 0 | M106: 0 | N106: 0 | O106: 0 | P106: 0 | Q106: 0 | R106: =-'[15]Updated 2-BA'!J198 -> 0 | S106: 0
A107: 1910 | B107: Leasehold Improvements | C107: 174258.88 | E107: 174258.88 | F107: 53272.5 | H107: 53272.5 | I107: 53272.5 | J107: 71.42595649 | K107: 0.01400051255 | L107: 55 | M107: 0.01818181818 | N107: 2439.713636 | O107: 968.5909091 | P107: 484.2954545 | Q107: 3892.599999 | R107: =-'[15]Updated 2-BA'!J199 -> 3892.6 | S107: 5.911151675e-07
A108: 1915 | B108: Office Furniture & Equipment (10 years) | C108: 23165.34 | E108: 23165.34 | F108: 3059.23 | H108: 3059.23 | I108: 3059.23 | J108: 4.99863248 | K108: 0.2000547158 | L108: 10 | M108: 0.1 | N108: 4634.335509 | O108: 305.923 | P108: 152.9615 | Q108: 5093.220009 | R108: =-'[15]Updated 2-BA'!J200 -> 5093.22 | S108: -9.459592548e-06
A109: 1915 | B109: Office Furniture & Equipment (5 years) | C109: 0 | E109: 0 | F109: 0 | H109: 0 | I109: 0 | K109: 0 | M109: 0 | N109: 0 | O109: 0 | P109: 0 | Q109: 0 | R109: =-'[15]Updated 2-BA'!J201 -> 0 | S109: 0
A110: 1920 | B110: Computer Equipment - Hardware | C110: 0 | E110: 0 | F110: 0 | H110: 0 | I110: 0 | J110: 0 | K110: 0 | M110: 0 | N110: 0 | O110: 0 | P110: 0 | Q110: 0 | R110: =-'[15]Updated 2-BA'!J202 -> 0 | S110: 0
A111: 1920 | B111: Computer Equip.-Hardware(Post Mar. 22/04) | C111: 0 | E111: 0 | F111: 0 | H111: 0 | I111: 0 | J111: 0 | K111: 0 | M111: 0 | N111: 0 | O111: 0 | P111: 0 | Q111: 0 | R111: =-'[15]Updated 2-BA'!J203 -> 0 | S111: 0
A112: 1920 | B112: Computer Equip.-Hardware(Post Mar. 19/07) | C112: 41332 | E112: 41332 | F112: 57213.91 | H112: 57213.91 | I112: 57213.91 | J112: 10 | K112: 0.1 | L112: 5 | M112: 0.2 | N112: 4133.2 | O112: 11442.782 | P112: 5721.391 | Q112: 21297.373 | R112: =-'[15]Updated 2-BA'!J204 -> 14850.16 | S112: -6447.213
A113: 1930 | B113: Transportation Equipment | C113: 925955.2 | D113: 46600 | E113: 879355.2 | F113: 386631.99 | H113: 386631.99 | I113: 386631.99 | J113: 4.915731164 | K113: 0.2034285372 | L113: 8 | M113: 0.125 | N113: 178885.942 | O113: 48328.99875 | P113: 24164.49937 | Q113: 251379.4402 | R113: =-'[15]Updated 2-BA'!J205 -> 260859.21 | S113: 9479.769835
A114: 1935 | B114: Stores Equipment | C114: 0 | E114: 0 | F114: 0 | H114: 0 | I114: 0 | K114: 0 | M114: 0 | N114: 0 | O114: 0 | P114: 0 | Q114: 0 | R114: =-'[15]Updated 2-BA'!J206 -> 0 | S114: 0
A115: 1940 | B115: Tools, Shop & Garage Equipment | C115: 79939.59 | E115: 79939.59 | F115: 16441.83 | H115: 16441.83 | I115: 16441.83 | J115: 4.128250539 | K115: 0.2422333603 | L115: 10 | M115: 0.1 | N115: 19364.0355 | O115: 1644.183 | P115: 822.0915 | Q115: 21830.31 | R115: =-'[15]Updated 2-BA'!J207 -> 21830.31 | S115: -3.919933079e-06
A116: 1945 | B116: Measurement & Testing Equipment | C116: 11001.12 | E116: 11001.12 | F116: 0 | H116: 0 | I116: 0 | J116: 6.084757529 | K116: 0.1643450861 | L116: 8 | M116: 0.125 | N116: 1807.980014 | O116: 0 | P116: 0 | Q116: 1807.980014 | R116: =-'[15]Updated 2-BA'!J208 -> 1807.98 | S116: -1.3542744e-05
A117: 1950 | B117: Power Operated Equipment | C117: 51893.6 | E117: 51893.6 | F117: 0 | H117: 0 | I117: 0 | J117: 6.477162361 | K117: 0.1543885955 | L117: 8 | M117: 0.125 | N117: 8011.780022 | O117: 0 | P117: 0 | Q117: 8011.780022 | R117: =-'[15]Updated 2-BA'!J209 -> 8011.78 | S117: -2.156218761e-05
A118: 1955 | B118: Communications Equipment | C118: 0 | E118: 0 | F118: 0 | H118: 0 | I118: 0 | K118: 0 | M118: 0 | N118: 0 | O118: 0 | P118: 0 | Q118: 0 | R118: =-'[15]Updated 2-BA'!J210 -> 0 | S118: 0
A119: 1955 | B119: Communication Equipment (Smart Meters) | C119: 0 | E119: 0 | F119: 0 | H119: 0 | I119: 0 | K119: 0 | M119: 0 | N119: 0 | O119: 0 | P119: 0 | Q119: 0 | R119: =-'[15]Updated 2-BA'!J211 -> 0 | S119: 0
A120: 1960 | B120: Miscellaneous Equipment | C120: 0 | E120: 0 | F120: 0 | H120: 0 | I120: 0 | K120: 0 | M120: 0 | N120: 0 | O120: 0 | P120: 0 | Q120: 0 | R120: =-'[15]Updated 2-BA'!J212 -> 0 | S120: 0
A121: 1970 | B121: Load Management Controls Customer Premises | C121: 0 | E121: 0 | F121: 0 | H121: 0 | I121: 0 | K121: 0 | M121: 0 | N121: 0 | O121: 0 | P121: 0 | Q121: 0 | R121: =-'[15]Updated 2-BA'!J213 -> 0 | S121: 0
A122: 1975 | B122: Load Management Controls Utility Premises | C122: 0 | E122: 0 | F122: 0 | H122: 0 | I122: 0 | K122: 0 | M122: 0 | N122: 0 | O122: 0 | P122: 0 | Q122: 0 | R122: =-'[15]Updated 2-BA'!J214 -> 0 | S122: 0
A123: 1980 | B123: System Supervisor Equipment | C123: 203266.79 | E123: 203266.79 | F123: 42215.85 | H123: 42215.85 | I123: 42215.85 | J123: 5.917520212 | K123: 0.1689897058 | L123: 5 | M123: 0.2 | N123: 34349.99505 | O123: 8443.17 | P123: 4221.585 | Q123: 47014.75005 | R123: =-'[15]Updated 2-BA'!J215 -> 47014.75 | S123: -5.081039853e-05
A124: 1985 | B124: Miscellaneous Fixed Assets | C124: 0 | E124: 0 | F124: 0 | H124: 0 | I124: 0 | K124: 0 | M124: 0 | N124: 0 | O124: 0 | P124: 0 | Q124: 0 | R124: =-'[15]Updated 2-BA'!J216 -> 0 | S124: 0
A125: 1990 | B125: Other Tangible Property | C125: 0 | E125: 0 | F125: 0 | H125: 0 | I125: 0 | K125: 0 | M125: 0 | N125: 0 | O125: 0 | P125: 0 | Q125: 0 | R125: =-'[15]Updated 2-BA'!J217 -> 0 | S125: 0
A126: 1995 | B126: Contributions & Grants | C126: -5225427.41 | E126: -5225427.41 | F126: -700622 | H126: -700622 | I126: -700622 | J126: 45.72 | K126: 0.02187226597 | L126: 60 | M126: 0.01666666667 | N126: -114291.9381 | O126: -11677.03333 | P126: -5838.516667 | Q126: -131807.4881 | R126: =-'[15]Updated 2-BA'!J218 -> -106624.46 | S126: 25183.0281
B127: Total | C127: =SUM(C89:C126) -> 23311278.72 | D127: =SUM(D89:D126) -> 156718 | E127: 23154560.72 | F127: 5537256.33 | G127: 0 | H127: 5537256.33 | I127: =SUM(I89:I126) -> 2649521.33 | J127: =SUM(J89:J126) -> 472.5277253 | K127: 1.793409151 | L127: 616 | M127: 1.665959596 | N127: 1211247.79 | O127: 388413.6965 | P127: 73884.55657 | Q127: 1673546.043 | R127: 1852527.28 | S127: 178981.2371
A130: General: | B130: Applicants are to complete this appendix to show the reasonability of the depreciation expense that is included in rate base via. Accumulated depreciation and the revenue requirement.
B131: Applicants must provide a breakdown of depreciation and amortization expense in the above format for all relevant accounts. Balances presented in the table should exclude asset retirement obligations (AROs) and the related depreciation and accretion expense. These should be disclosed separately consistent with the Notes of historical Audited Financial Statements.
A134: Notes:
A135: 1 | B135: This is the net book value of assets that existed as at the date of the utility's change in depreciation policies (i.e. as at Jan. 1, 2012 or Jan. 1, 2013). These assets are to be depreciated at the average remaining service life. This amount will not change in years subsequent to the date of the utility's change in depreciation policies. This column is expected to be used until the assets that existed as at the date of the utility's change in depreciation policies are fully depreciated.
A136: 2 | B136: This is the opening gross book value of assets that have been acquired after the date of the utilities change in depreciation policies (i.e. additions starting in 2012/2013 for those who changed policies Jan. 1, 2012/2013). These assets are to be depreciated at the revised service life. The amount is expected to be equal to the gross book value of the prior year plus the prior year's additions.
A137: 3 | B137: A recalculation should be performed to determine the average remaining life of opening balance of assets (i.e. excluding current year's additions) under the change in policies under CGAAP. For example, Asset A had a useful life of 20 years under CGAAP without the change in policies. On January 1 of the year of policy changes, Asset A was 3 years depreciated. As a result, Asset A would have a remaining service life of 17 years (20 years less 3 years) as at January 1 of the year of policy changes. Due to making the change in policies under CGAAP, management re-assessed the asset useful lives and concluded that the revised useful life of Asset A is now 30 years. Therefore, the average remaining useful life of the opening balance of Asset A is determined to be 27 years (30 years less 3 years) under the revised CGAAP as at January 1 of the year of policy changes.
A138: 4 | B138: The useful life used should be consistent with the OEB's regulatory accounting policies as set out in the Accounting Procedures Handbook for Electricity Distributors, effective Jan. 1, 2012 and also with the Report of the Board, Transition to International Financial Reporting Standards, EB-2008-0408, and the Kinectrics Report.
A139: 5 | B139: Board policy of the "half-year" rule - the applicant must ensure that additions in the year attract a half-year depreciation expense in the first year. Deviations from this standard practice must be supported in the application.
A140: 6 | B140: The applicant must provide an explanation of material variances in evidence.
A141: 7 | B141: This should include assets in column a (excel column C) that become fully depreciated since the date of the policy change. The amount input in b (excel column D) should equal the net book value of the asset as at the date of depreciation policy change
A142: 8 | B142: This should include assets in column d (excel column f) that have become fully depreciated. The amount input in e (excel column G) should equal the gross book value of the asset
A147: Scenario that applies | C147: Applicable Years and Accounting Standard | R147: Year Reflected in Schedule Below | S147: Accounting Standard Reflected in Schedule Below
A148: Rebasing for the first time with depreciation policy changes made in 2012. | C148: This appendix must be duplicated and completed for the years 2012 to 2018. The appendix for 2012 is to be completed under CGAAP (prior to changes in depreciation policies). The appendix for 2012 to 2014 must be completed under Revised CGAAP (after changes in depreciation policies). The appendix for 2014 to 2018 is to be completed under MIFRS (2014 if changes to MIFRS are material).
A149: Rebasing for the first time with depreciation policy changes made in 2013. | C149: This appendix must be duplicated and completed for the years 2013 to 2018. The appendix for 2013 is to be completed under CGAAP (prior to changes in depreciation policies). The appendix for 2013 to 2014 must be completed under Revised CGAAP (after changes in depreciation policies). The appendix for 2014 to 2018 is to be completed under MIFRS (2014 if changes to MIFRS are material). | R149: 2014 | S149: Revised CGAAP
A150: Already rebased with depreciation policy changes in a prior rate application | C150: This appendix must be completed for 2014 to 2018. The appendix for 2014 is to be completed under Revised CGAAP (after changes in depreciation policies). The appendix for 2014 to 2018 is to be completed under MIFRS (2014 if changes to MIFRS are material).
C153: Book Values | J153: Service Lives | N153: Depreciation Expense
A154: Account | B154: Description | C154: Opening Net Book Value of Existing Assets as at Date of Policy Change (Jan. 1) 1 | D154: Less Fully Depreciated 7 | E154: Net Amount of Existing Assets Before Policy Change to be Depreciated | F154: Opening Gross Book Value of Assets Acquired After Policy Change 2 | G154: Less Fully Depreciated 8 | H154: Net Amount of Assets Acquired After Policy Change to be Depreciated | I154: Current Year Additions | J154: Average Remaining Life of Assets Existing Before Policy Change 3 | K154: Depreciation Rate Assets Acquired After Policy Change | L154: Life of Assets Acquired After Policy Change 4 | M154: Depreciation Rate on New Additions | N154: Depreciation Expense on Assets Existing Before Policy Change | O154: Depreciation Expense on Assets Acquired After Policy Change | P154: Depreciation Expense on Current Year Additions 5 | Q154: Total Current Year Depreciation Expense | R154: Depreciation Expense per Appendix 2-BA Fixed Assets, Column J | S154: Variance 6
C155: a | D155: b | E155: c = a-b | F155: d | G155: e | H155: f = d- e | I155: g | J155: h | K155: i = 1/h | L155: j | M155: k = 1/j | N155: l = c/h | O155: m = f/j | P155: n = g*0.5/j | Q155: o = l+m+n | R155: p | S155: q = p-o
A156: 1611 | B156: Computer Software (Formally known as Account 1925) | C156: 455375.65 | D156: =C156/J156 -> 97224.07109 | E156: =C156-D156 -> 358151.5789 | F156: =H89 -> 54670.75 | H156: =F156-G156 -> 54670.75 | I156: 137557 | J156: =IF(J89=0,0,+J89-1) -> 4.683774757 | K156: 0.0893300795 | L156: 3 | M156: =IF(L156=0,0,1/L156) -> 0.3333333333 | N156: =IF(J156=0,0,+E156/J156) -> 76466.43945 | O156: =IF(H156=0,0,+H156/L156) -> 18223.58333 | P156: =IF(I156=0,0,+I156*0.5/L156) -> 22926.16667 | Q156: =SUM(N156:P156) -> 117616.1895 | R156: =-'[15]Updated 2-BA'!J253 -> 107619 | S156: =R156-Q156 -> -9997.189454
A157: 1612 | B157: Land Rights (Formally known as Account 1906) | C157: 42932.04 | E157: =C157-D157 -> 42932.04 | F157: =H90 -> 947 | H157: =F157-G157 -> 947 | I157: 0 | J157: =IF(J90=0,0,+J90-1) -> 0 | K157: 0 | M157: =IF(L157=0,0,1/L157) -> 0 | N157: 0 | O157: 0 | P157: 0 | Q157: 0 | R157: =-'[15]Updated 2-BA'!J254 -> 0 | S157: =R157-Q157 -> 0
A158: 1805 | B158: Land | C158: 103344.08 | E158: 103344.08 | F158: 695 | H158: 695 | I158: 0 | J158: 0 | K158: 0 | M158: 0 | N158: 0 | O158: 0 | P158: 0 | Q158: 0 | R158: =-'[15]Updated 2-BA'!J255 -> 0 | S158: 0
A159: 1808 | B159: Buildings | C159: 124624.34 | E159: 124624.34 | F159: 24917.26 | H159: 24917.26 | I159: 4014 | J159: 38.88618971 | K159: 0.0604596196 | L159: 60 | M159: 0.01666666667 | N159: 3204.848326 | O159: 415.2876667 | P159: 33.45 | Q159: 3653.585993 | R159: =-'[15]Updated 2-BA'!J256 -> 3989 | S159: 335.4140071
A160: 1810 | B160: Leasehold Improvements | C160: 0 | E160: 0 | F160: 0 | H160: 0 | I160: 0 | J160: =IF(J93=0,0,+J93-1) -> 0 | K160: 0 | M160: 0 | N160: 0 | O160: 0 | P160: 0 | Q160: 0 | R160: =-'[15]Updated 2-BA'!J257 -> 0 | S160: 0
A161: 1815 | B161: Transformer Station Equipment >50 kV | C161: 0 | E161: 0 | F161: 0 | H161: 0 | I161: 0 | J161: 0 | K161: 0 | M161: 0 | N161: 0 | O161: 0 | P161: 0 | Q161: 0 | R161: =-'[15]Updated 2-BA'!J258 -> 0 | S161: 0
A162: 1820 | B162: Distribution Station Equipment <50 kV | C162: 416938.76 | E162: 416938.76 | F162: 12875 | H162: 12875 | I162: 0 | J162: 40.0268411 | K162: 0.05869121141 | L162: 60 | M162: 0.01666666667 | N162: 10416.47925 | O162: 214.5833333 | P162: 0 | Q162: 10631.06259 | R162: =-'[15]Updated 2-BA'!J259 -> 10591 | S162: -40.06258814
A163: 1825 | B163: Storage Battery Equipment | C163: 0 | E163: 0 | F163: 0 | H163: 0 | I163: 0 | J163: 0 | K163: 0 | M163: 0 | N163: 0 | O163: 0 | P163: 0 | Q163: 0 | R163: =-'[15]Updated 2-BA'!J260 -> 0 | S163: 0
A164: 1830 | B164: Poles, Towers & Fixtures | C164: 3625291.03 | E164: 3625291.03 | F164: 471688.41 | H164: 471688.41 | I164: 1232100 | J164: 33.72794772 | K164: 0.06219891134 | L164: 50 | M164: 0.02 | N164: 107486.2622 | O164: 9433.7682 | P164: 12321 | Q164: 129241.0304 | R164: =-'[15]Updated 2-BA'!J261 -> 142789 | S164: 13547.96965
A165: 1835 | B165: Overhead Conductors & Devices | C165: 3973942.93 | E165: 3973942.93 | F165: 700608.48 | H165: 700608.48 | I165: 1338932 | J165: 21.46479142 | K165: 0.09480514031 | L165: 60 | M165: 0.01666666667 | N165: 185137.738 | O165: 11676.808 | P165: 11157.76667 | Q165: 207972.3127 | R165: =-'[15]Updated 2-BA'!J262 -> 211408 | S165: 3435.68732
A166: 1840 | B166: Underground Conduit | C166: 2397564.69 | E166: 2397564.69 | F166: 30269.8 | H166: 30269.8 | I166: 45672 | J166: 36.03534928 | K166: 0.04553224475 | L166: 45 | M166: 0.02222222222 | N166: 66533.68811 | O166: 672.6622222 | P166: 507.4666667 | Q166: 67713.817 | R166: =-'[15]Updated 2-BA'!J263 -> 66590 | S166: -1123.817001
A167: 1845 | B167: Underground Conductors & Devices | C167: 4872044.54 | E167: 4872044.54 | F167: 344472.73 | H167: 344472.73 | I167: 698300 | J167: 34.6202881 | K167: 0.04545630548 | L167: 45 | M167: 0.02222222222 | N167: 140728.0184 | O167: 7654.949556 | P167: 7758.888889 | Q167: 156141.8568 | R167: =-'[15]Updated 2-BA'!J264 -> 159846 | S167: 3704.143178
A168: 1850 | B168: Line Transformers | C168: 6053932.27 | D168: 110118 | E168: 5943814.27 | F168: 604927.6 | H168: 604927.6 | I168: 552591 | J168: 45.94211805 | K168: 0.04604041501 | L168: 40 | M168: 0.025 | N168: 129376.1481 | O168: 15123.19 | P168: 6907.3875 | Q168: 151406.7256 | R168: =-'[15]Updated 2-BA'!J265 -> 161023 | S168: 9616.274369
A169: 1855 | B169: Services (Overhead & Underground) | C169: 2484787.58 | E169: 2484787.58 | F169: 308079.99 | H169: 308079.99 | I169: 523811 | J169: 40.46653488 | K169: 0.06062470019 | L169: 60 | M169: 0.01666666667 | N169: 61403.51743 | O169: 5134.6665 | P169: 4365.091667 | Q169: 70903.2756 | R169: =-'[15]Updated 2-BA'!J266 -> 74557 | S169: 3653.724404
A170: 1860 | B170: Meters | C170: 2475115.7 | D170: 1313442 | E170: 1161673.7 | F170: 237156 | H170: 237156 | I170: 134232 | J170: 7.005879468 | K170: 0 | L170: 25 | M170: 0.04 | N170: =IF(J170=0,0,+E170/J170)-50000 -> 115814.1145 | O170: 9486.24 | P170: 2684.64 | Q170: 127984.9945 | R170: =-'[15]Updated 2-BA'!J267-R171 -> 77460 | S170: -50524.99446
A171: 1860 | B171: Meters (Smart Meters) | C171: 0 | E171: 0 | F171: 2887735 | H171: 2887735 | I171: 0 | J171: 0 | K171: 0.09607464017 | L171: 12 | M171: 0.08333333333 | N171: 0 | O171: 240644.5833 | P171: 0 | Q171: 240644.5833 | R171: 240645 | S171: 0.4166666667
A172: 1905 | B172: Land | C172: 0 | E172: 0 | F172: 0 | H172: 0 | I172: 0 | J172: 0 | K172: 0 | M172: 0 | N172: 0 | O172: 0 | P172: 0 | Q172: 0 | R172: =-'[15]Updated 2-BA'!J269 -> 0 | S172: 0
A173: 1908 | B173: Buildings & Fixtures | C173: 0 | E173: 0 | F173: 0 | H173: 0 | I173: 0 | J173: 0 | K173: 0 | M173: 0 | N173: 0 | O173: 0 | P173: 0 | Q173: 0 | R173: =-'[15]Updated 2-BA'!J270 -> 0 | S173: 0
A174: 1910 | B174: Leasehold Improvements | C174: 174258.88 | E174: 174258.88 | F174: 53272.5 | H174: 53272.5 | I174: 47056.27 | J174: 70.42595649 | K174: 0.04152659598 | L174: 55 | M174: 0.01818181818 | N174: 2474.355886 | O174: 968.5909091 | P174: 427.7842727 | Q174: 3870.731068 | R174: =-'[15]Updated 2-BA'!J271 -> 4805 | S174: 934.2689318
A175: 1915 | B175: Office Furniture & Equipment (10 years) | C175: 23165.34 | E175: 23165.34 | F175: 3059.23 | H175: 3059.23 | I175: 2395 | J175: 3.99863248 | K175: 0.1745610196 | L175: 10 | M175: 0.1 | N175: 5793.315619 | O175: 305.923 | P175: 119.75 | Q175: 6218.988619 | R175: =-'[15]Updated 2-BA'!J272 -> 2424 | S175: -3794.988619
A176: 1915 | B176: Office Furniture & Equipment (5 years) | C176: 0 | E176: 0 | F176: 0 | H176: 0 | I176: 0 | J176: 0 | K176: 0 | M176: 0 | N176: 0 | O176: 0 | P176: 0 | Q176: 0 | R176: =-'[15]Updated 2-BA'!J273 -> 0 | S176: 0
A177: 1920 | B177: Computer Equipment - Hardware | C177: 0 | E177: 0 | F177: 0 | H177: 0 | I177: 0 | J177: 0 | K177: 0 | M177: 0 | N177: 0 | O177: 0 | P177: 0 | Q177: 0 | R177: =-'[15]Updated 2-BA'!J274 -> 0 | S177: 0
A178: 1920 | B178: Computer Equip.-Hardware(Post Mar. 22/04) | C178: 0 | E178: 0 | F178: 0 | H178: 0 | I178: 0 | J178: 0 | K178: 0 | M178: 0 | N178: 0 | O178: 0 | P178: 0 | Q178: 0 | R178: =-'[15]Updated 2-BA'!J275 -> 0 | S178: 0
A179: 1920 | B179: Computer Equip.-Hardware(Post Mar. 19/07) | C179: 41332 | E179: 41332 | F179: 57213.91 | H179: 57213.91 | I179: 34018.25 | J179: 9 | K179: 0.1651694979 | L179: 5 | M179: 0.2 | N179: 4592.444444 | O179: 11442.782 | P179: 3401.825 | Q179: 19437.05144 | R179: =-'[15]Updated 2-BA'!J276 -> 24029.46 | S179: 4592.408556
A180: 1930 | B180: Transportation Equipment | C180: 925955.2 | D180: =46600+23326 -> 69926 | E180: 856029.2 | F180: 386631.99 | H180: 386631.99 | I180: 137334 | J180: 3.915731164 | K180: 0.2050671232 | L180: 8 | M180: 0.125 | N180: =IF(J180=0,0,+E180/J180)-50000 -> 168612.8629 | O180: 48328.99875 | P180: 8583.375 | Q180: 225525.2366 | R180: =-'[15]Updated 2-BA'!J277 -> 216635 | S180: -8890.23665
A181: 1935 | B181: Stores Equipment | C181: 0 | E181: 0 | F181: 0 | H181: 0 | I181: 0 | J181: 0 | K181: 0 | M181: 0 | N181: 0 | O181: 0 | P181: 0 | Q181: 0 | R181: =-'[15]Updated 2-BA'!J278 -> 0 | S181: 0
A182: 1940 | B182: Tools, Shop & Garage Equipment | C182: 79939.59 | E182: 79939.59 | F182: 16441.83 | H182: 16441.83 | I182: 23803.41 | J182: 3.128250539 | K182: 0.2133395298 | L182: 10 | M182: 0.1 | N182: 25554.08814 | O182: 1644.183 | P182: 1190.1705 | Q182: 28388.44164 | R182: =-'[15]Updated 2-BA'!J279 -> 21336 | S182: -7052.441643
A183: 1945 | B183: Measurement & Testing Equipment | C183: 11001.12 | E183: 11001.12 | F183: 0 | H183: 0 | I183: 0 | J183: 5.084757529 | K183: 0.1573140603 | L183: 8 | M183: 0.125 | N183: 2163.548593 | O183: 0 | P183: 0 | Q183: 2163.548593 | R183: =-'[15]Updated 2-BA'!J280 -> 1808 | S183: -355.5485934
A184: 1950 | B184: Power Operated Equipment | C184: 51893.6 | E184: 51893.6 | F184: 0 | H184: 0 | I184: 0 | J184: 5.477162361 | K184: 0.1460527571 | L184: 8 | M184: 0.125 | N184: 9474.541118 | O184: 0 | P184: 0 | Q184: 9474.541118 | R184: =-'[15]Updated 2-BA'!J281 -> 8011 | S184: -1463.541118
A185: 1955 | B185: Communications Equipment | C185: 0 | E185: 0 | F185: 0 | H185: 0 | I185: 0 | J185: 0 | K185: 0 | M185: 0 | N185: 0 | O185: 0 | P185: 0 | Q185: 0 | R185: =-'[15]Updated 2-BA'!J282 -> 0 | S185: 0
A186: 1955 | B186: Communication Equipment (Smart Meters) | C186: 0 | E186: 0 | F186: 0 | H186: 0 | I186: 0 | J186: 0 | K186: 0 | M186: 0 | N186: 0 | O186: 0 | P186: 0 | Q186: 0 | R186: =-'[15]Updated 2-BA'!J283 -> 0 | S186: 0
A187: 1960 | B187: Miscellaneous Equipment | C187: 0 | E187: 0 | F187: 0 | H187: 0 | I187: 0 | J187: 0 | K187: 0 | M187: 0 | N187: 0 | O187: 0 | P187: 0 | Q187: 0 | R187: =-'[15]Updated 2-BA'!J284 -> 0 | S187: 0
A188: 1970 | B188: Load Management Controls Customer Premises | C188: 0 | E188: 0 | F188: 0 | H188: 0 | I188: 0 | J188: 0 | K188: 0 | M188: 0 | N188: 0 | O188: 0 | P188: 0 | Q188: 0 | R188: =-'[15]Updated 2-BA'!J285 -> 0 | S188: 0
A189: 1975 | B189: Load Management Controls Utility Premises | C189: 0 | E189: 0 | F189: 0 | H189: 0 | I189: 0 | J189: 0 | K189: 0 | M189: 0 | N189: 0 | O189: 0 | P189: 0 | Q189: 0 | R189: =-'[15]Updated 2-BA'!J286 -> 0 | S189: 0
A190: 1980 | B190: System Supervisor Equipment | C190: 203266.79 | E190: 203266.79 | F190: 42215.85 | H190: 42215.85 | I190: 3856.31 | J190: 4.917520212 | K190: 0.1232499989 | L190: 5 | M190: 0.2 | N190: 41335.22207 | O190: 8443.17 | P190: 385.631 | Q190: 50164.02307 | R190: =-'[15]Updated 2-BA'!J287 -> 51622 | S190: 1457.97693
A191: 1985 | B191: Miscellaneous Fixed Assets | C191: 0 | E191: 0 | F191: 0 | H191: 0 | I191: 0 | J191: 0 | K191: 0 | M191: 0 | N191: 0 | O191: 0 | P191: 0 | Q191: 0 | R191: =-'[15]Updated 2-BA'!J288 -> 0 | S191: 0
A192: 1990 | B192: Other Tangible Property | C192: 0 | E192: 0 | F192: 0 | H192: 0 | I192: 0 | J192: 0 | K192: 0 | M192: 0 | N192: 0 | O192: 0 | P192: 0 | Q192: 0 | R192: =-'[15]Updated 2-BA'!J289 -> 0 | S192: 0
A193: 1995 | B193: Contributions & Grants | C193: -5225427.41 | E193: -5225427.41 | F193: -700622 | H193: -700622 | I193: 0 | J193: 44.72 | K193: 0.0411002101 | L193: 60 | M193: 0.01666666667 | N193: -116847.6612 | O193: -11677.03333 | P193: 0 | Q193: -128524.6946 | R193: =-'[15]Updated 2-BA'!J290 -> -119932 | S193: 8592.694559
B194: Total | C194: =SUM(C156:C193) -> 23311278.72 | D194: =SUM(D156:D193) -> 1590710.071 | E194: 21720568.65 | F194: 5537256.33 | G194: 0 | H194: 5537256.33 | I194: 4915672.24 | N194: =SUM(N156:N193) -> 1039719.971 | O194: =SUM(O156:O193) -> 378136.9365 | P194: 82770.39383 | Q194: 1500627.302 | R194: 1467255.46 | S194: -33371.84155
A197: General: | B197: Applicants are to complete this appendix to show the reasonability of the depreciation expense that is included in rate base via. Accumulated depreciation and the revenue requirement.
B198: Applicants must provide a breakdown of depreciation and amortization expense in the above format for all relevant accounts. Balances presented in the table should exclude asset retirement obligations (AROs) and the related depreciation and accretion expense. These should be disclosed separately consistent with the Notes of historical Audited Financial Statements.
A201: Notes:
A202: 1 | B202: This is the net book value of assets that existed as at the date of the utility's change in depreciation policies (i.e. as at Jan. 1, 2012 or Jan. 1, 2013). These assets are to be depreciated at the average remaining service life. This amount will not change in years subsequent to the date of the utility's change in depreciation policies. This column is expected to be used until the assets that existed as at the date of the utility's change in depreciation policies are fully depreciated.
A203: 2 | B203: This is the opening gross book value of assets that have been acquired after the date of the utilities change in depreciation policies (i.e. additions starting in 2012/2013 for those who changed policies Jan. 1, 2012/2013). These assets are to be depreciated at the revised service life. The amount is expected to be equal to the gross book value of the prior year plus the prior year's additions.
A204: 3 | B204: A recalculation should be performed to determine the average remaining life of opening balance of assets (i.e. excluding current year's additions) under the change in policies under CGAAP. For example, Asset A had a useful life of 20 years under CGAAP without the change in policies. On January 1 of the year of policy changes, Asset A was 3 years depreciated. As a result, Asset A would have a remaining service life of 17 years (20 years less 3 years) as at January 1 of the year of policy changes. Due to making the change in policies under CGAAP, management re-assessed the asset useful lives and concluded that the revised useful life of Asset A is now 30 years. Therefore, the average remaining useful life of the opening balance of Asset A is determined to be 27 years (30 years less 3 years) under the revised CGAAP as at January 1 of the year of policy changes.
A205: 4 | B205: The useful life used should be consistent with the OEB's regulatory accounting policies as set out in the Accounting Procedures Handbook for Electricity Distributors, effective Jan. 1, 2012 and also with the Report of the Board, Transition to International Financial Reporting Standards, EB-2008-0408, and the Kinectrics Report.
A206: 5 | B206: Board policy of the "half-year" rule - the applicant must ensure that additions in the year attract a half-year depreciation expense in the first year. Deviations from this standard practice must be supported in the application.
A207: 6 | B207: The applicant must provide an explanation of material variances in evidence.
A208: 7 | B208: This should include assets in column a (excel column C) that become fully depreciated since the date of the policy change. The amount input in b (excel column D) should equal the net book value of the asset as at the date of depreciation policy change
A209: 8 | B209: This should include assets in column d (excel column f) that have become fully depreciated. The amount input in e (excel column G) should equal the gross book value of the asset
A215: Scenario that applies | C215: Applicable Years and Accounting Standard | R215: Year Reflected in Schedule Below | S215: Accounting Standard Reflected in Schedule Below
A216: Rebasing for the first time with depreciation policy changes made in 2012. | C216: This appendix must be duplicated and completed for the years 2012 to 2018. The appendix for 2012 is to be completed under CGAAP (prior to changes in depreciation policies). The appendix for 2012 to 2014 must be completed under Revised CGAAP (after changes in depreciation policies). The appendix for 2014 to 2018 is to be completed under MIFRS (2014 if changes to MIFRS are material).
A217: Rebasing for the first time with depreciation policy changes made in 2013. | C217: This appendix must be duplicated and completed for the years 2013 to 2018. The appendix for 2013 is to be completed under CGAAP (prior to changes in depreciation policies). The appendix for 2013 to 2014 must be completed under Revised CGAAP (after changes in depreciation policies). The appendix for 2014 to 2018 is to be completed under MIFRS (2014 if changes to MIFRS are material). | R217: 2014 | S217: MIFRS
A218: Already rebased with depreciation policy changes in a prior rate application | C218: This appendix must be completed for 2014 to 2018. The appendix for 2014 is to be completed under Revised CGAAP (after changes in depreciation policies). The appendix for 2014 to 2018 is to be completed under MIFRS (2014 if changes to MIFRS are material).
C221: Book Values | J221: Service Lives | N221: Depreciation Expense
A222: Account | B222: Description | C222: Opening Net Book Value of Existing Assets as at Date of Policy Change (Jan. 1) 1 | D222: Less Fully Depreciated 7 | E222: Net Amount of Existing Assets Before Policy Change to be Depreciated | F222: Opening Gross Book Value of Assets Acquired After Policy Change 2 | G222: Less Fully Depreciated 8 | H222: Net Amount of Assets Acquired After Policy Change to be Depreciated | I222: Current Year Additions | J222: Average Remaining Life of Assets Existing Before Policy Change 3 | K222: Depreciation Rate Assets Acquired After Policy Change | L222: Life of Assets Acquired After Policy Change 4 | M222: Depreciation Rate on New Additions | N222: Depreciation Expense on Assets Existing Before Policy Change | O222: Depreciation Expense on Assets Acquired After Policy Change | P222: Depreciation Expense on Current Year Additions 5 | Q222: Total Current Year Depreciation Expense | R222: Depreciation Expense per Appendix 2-BA Fixed Assets, Column J | S222: Variance 6
C223: a | D223: b | E223: c = a-b | F223: d | G223: e | H223: f = d- e | I223: g | J223: h | K223: i = 1/h | L223: j | M223: k = 1/j | N223: l = c/h | O223: m = f/j | P223: n = g*0.5/j | Q223: o = l+m+n | R223: p | S223: q = p-o
A224: 1611 | B224: Computer Software (Formally known as Account 1925) | C224: 455375.65 | D224: =(C224/J224)+D156 -> 220840.6546 | E224: =C224-D224 -> 234534.9954 | F224: =H156+I156 -> 192227.75 | H224: =F224-G224 -> 192227.75 | I224: 137557 | J224: =IF(J156=0,0,+J156-1) -> 3.683774757 | K224: =1/J224 -> 0.2714606798 | L224: 3 | M224: 0.3333333333 | N224: =IF(J224=0,0,+E224/J224)-35263 -> 28404.02929 | O224: =IF(H224=0,0,+H224/L224) -> 64075.91667 | P224: =IF(I224=0,0,+I224*0.5/L224) -> 22926.16667 | Q224: =SUM(N224:P224) -> 115406.1126 | R224: =-'[15]Updated 2-BA'!J324 -> 107619 | S224: =R224-Q224 -> -7787.112623
A225: 1612 | B225: Land Rights (Formally known as Account 1906) | C225: 42932.04 | E225: =C225-D225 -> 42932.04 | F225: =H157+I157 -> 947 | H225: =F225-G225 -> 947 | I225: 0 | J225: =IF(J157=0,0,+J157-1) -> 0 | K225: 0 | M225: 0 | N225: =IF(J225=0,0,+E225/J225) -> 0 | O225: 0 | P225: 0 | Q225: 0 | R225: =-'[15]Updated 2-BA'!J325 -> 0 | S225: =R225-Q225 -> 0
A226: 1805 | B226: Land | C226: 103344.08 | E226: 103344.08 | F226: 695 | H226: 695 | I226: 0 | J226: 0 | K226: 0 | M226: 0 | N226: 0 | O226: 0 | P226: 0 | Q226: 0 | R226: =-'[15]Updated 2-BA'!J326 -> 0 | S226: 0
A227: 1808 | B227: Buildings | C227: 124624.34 | E227: 124624.34 | F227: 28931.26 | H227: 28931.26 | I227: 4014 | J227: 37.88618971 | K227: 0.02759661538 | L227: 60 | M227: 0.01666666667 | N227: 3289.439792 | O227: 482.1876667 | P227: 33.45 | Q227: 3805.077459 | R227: =-'[15]Updated 2-BA'!J327 -> 3989 | S227: 183.9225412
A228: 1810 | B228: Leasehold Improvements | C228: 0 | E228: 0 | F228: 0 | H228: 0 | I228: 0 | J228: 0 | K228: 0 | M228: 0 | N228: 0 | O228: 0 | P228: 0 | Q228: 0 | R228: =-'[15]Updated 2-BA'!J328 -> 0 | S228: 0
A229: 1815 | B229: Transformer Station Equipment >50 kV | C229: 0 | E229: 0 | F229: 0 | H229: 0 | I229: 0 | J229: 0 | K229: 0 | M229: 0 | N229: 0 | O229: 0 | P229: 0 | Q229: 0 | R229: =-'[15]Updated 2-BA'!J329 -> 0 | S229: 0
A230: 1820 | B230: Distribution Station Equipment <50 kV | C230: 416938.76 | E230: 416938.76 | F230: 12875 | H230: 12875 | I230: 0 | J230: 39.0268411 | K230: 0.0265918974 | L230: 60 | M230: 0.01666666667 | N230: 10683.38477 | O230: 214.5833333 | P230: 0 | Q230: 10897.96811 | R230: =-'[15]Updated 2-BA'!J330 -> 10591 | S230: -306.9681065
A231: 1825 | B231: Storage Battery Equipment | C231: 0 | E231: 0 | F231: 0 | H231: 0 | I231: 0 | J231: 0 | K231: 0 | M231: 0 | N231: 0 | O231: 0 | P231: 0 | Q231: 0 | R231: =-'[15]Updated 2-BA'!J331 -> 0 | S231: 0
A232: 1830 | B232: Poles, Towers & Fixtures | C232: 3625291.03 | E232: 3625291.03 | F232: 1703788.41 | H232: 1703788.41 | I232: 1232100 | J232: 32.72794772 | K232: 0.02133214622 | L232: 50 | M232: 0.02 | N232: 110770.4969 | O232: 34075.7682 | P232: 12321 | Q232: 157167.2651 | R232: =-'[15]Updated 2-BA'!J332 -> 142789 | S232: -14378.26507
A233: 1835 | B233: Overhead Conductors & Devices | C233: 3973942.93 | E233: 3973942.93 | F233: 2039540.48 | H233: 2039540.48 | I233: 1149937 | J233: 20.46479142 | K233: 0.03024664701 | L233: 60 | M233: 0.01666666667 | N233: =IF(J233=0,0,+E233/J233)-25000 -> 169184.3847 | O233: 33992.34133 | P233: 9582.808333 | Q233: 212759.5344 | R233: =-'[15]Updated 2-BA'!J333 -> 211408 | S233: -1351.534393
A234: 1840 | B234: Underground Conduit | C234: 2397564.69 | E234: 2397564.69 | F234: 75941.8 | H234: 75941.8 | I234: 45672 | J234: 35.03534928 | K234: 0.0281157435 | L234: 45 | M234: 0.02222222222 | N234: 68432.73263 | O234: 1687.595556 | P234: 507.4666667 | Q234: 70627.79486 | R234: =-'[15]Updated 2-BA'!J334 -> 66590 | S234: -4037.794856
A235: 1845 | B235: Underground Conductors & Devices | C235: 4872044.54 | E235: 4872044.54 | F235: 1042772.73 | H235: 1042772.73 | I235: 698300 | J235: 33.6202881 | K235: 0.02461842766 | L235: 45 | M235: 0.02222222222 | N235: 144913.8248 | O235: 23172.72733 | P235: 7758.888889 | Q235: 175845.441 | R235: =-'[15]Updated 2-BA'!J335 -> 159846 | S235: -15999.44104
A236: 1850 | B236: Line Transformers | C236: 6053932.27 | D236: =D168 -> 110118 | E236: 5943814.27 | F236: 1157518.6 | H236: 1157518.6 | I236: 552591 | J236: 44.94211805 | K236: 0.02068153819 | L236: 40 | M236: 0.025 | N236: 132254.8765 | O236: 28937.965 | P236: 6907.3875 | Q236: 168100.229 | R236: =-'[15]Updated 2-BA'!J336 -> 161023 | S236: -7077.228954
A237: 1855 | B237: Services (Overhead & Underground) | C237: 2484787.58 | E237: 2484787.58 | F237: 831890.99 | H237: 831890.99 | I237: 523811 | J237: 39.46653488 | K237: 0.01985773292 | L237: 60 | M237: 0.01666666667 | N237: 62959.35499 | O237: 13864.84983 | P237: 4365.091667 | Q237: 81189.29649 | R237: =-'[15]Updated 2-BA'!J337 -> 74557 | S237: -6632.296492
A238: 1860 | B238: Meters | C238: 2475115.7 | D238: =D170+188635 -> 1502077 | E238: 973038.7 | F238: 371388 | H238: 371388 | I238: 134232 | J238: 6.005879468 | K238: 0 | L238: 25 | M238: 0.04 | N238: =IF(J238=0,0,+E238/J238)-105000 -> 57014.35696 | O238: 14855.52 | P238: 2684.64 | Q238: 74554.51696 | R238: =-'[15]Updated 2-BA'!J338-R239 -> 77460 | S238: 2905.483042
A239: 1860 | B239: Meters (Smart Meters) | C239: 0 | E239: 0 | F239: 2887735 | H239: 2887735 | I239: 0 | J239: 0 | K239: 0.0889342742 | L239: 12 | M239: 0.08333333333 | N239: 0 | O239: 240644.5833 | P239: 0 | Q239: 240644.5833 | R239: 240645 | S239: 0.4166666667
A240: 1905 | B240: Land | C240: 0 | E240: 0 | F240: 0 | H240: 0 | I240: 0 | J240: 0 | K240: 0 | M240: 0 | N240: 0 | O240: 0 | P240: 0 | Q240: 0 | R240: =-'[15]Updated 2-BA'!J340 -> 0 | S240: 0
A241: 1908 | B241: Buildings & Fixtures | C241: 0 | E241: 0 | F241: 0 | H241: 0 | I241: 0 | J241: 0 | K241: 0 | M241: 0 | N241: 0 | O241: 0 | P241: 0 | Q241: 0 | R241: =-'[15]Updated 2-BA'!J341 -> 0 | S241: 0
A242: 1910 | B242: Leasehold Improvements | C242: 174258.88 | E242: 174258.88 | F242: 100328.77 | H242: 100328.77 | I242: 47056.27 | J242: 69.42595649 | K242: 0.01353709633 | L242: 55 | M242: 0.01818181818 | N242: 2509.9961 | O242: 1824.159455 | P242: 427.7842727 | Q242: 4761.939827 | R242: =-'[15]Updated 2-BA'!J342 -> 4805 | S242: 43.06017319
... 264 more rows

Sheet App.2-D_Overhead
F1: File Number: | G1: =EBNUMBER -> EB-2017-0038
F2: Exhibit: | G2: 4
F3: Tab: | G3: 2
F4: Schedule:
F5: Page:
F7: Date: | G7: February 26, 2018
A9: Appendix 2-D
A10: Overhead Expense
A12: Applicants are to provide a breakdown of OM&A before capitalization in the below table. OM&A before capitalization may be broken down by cost center, program, drivers or another format best suited to focus on capitalized vs. uncapitalized OM&A.
A14: OM&A Before Capitalization
B15: =F15-4 -> 2014 | C15: =F15-3 -> 2015 | D15: =F15-2 -> 2016 | E15: =F15-1 -> 2017 | F15: =TestYear -> 2018
B16: Historical Year | C16: Historical Year | D16: Historical Year | E16: Bridge Year | F16: Test Year
A17: Distribution | B17: 688177.11 | C17: 448729.17 | D17: 378375.58 | E17: 384807.9649 | F17: 413024.7003
A18: Billing and Collecting | B18: 1259465.01 | C18: 1111467.55 | D18: 981647.08 | E18: 998335.0804 | F18: 1040306.777
A19: Community Relations | B19: 22871 | C19: 21168 | D19: 24584 | E19: 24953 | F19: 25327
A20: Administrative and General | B20: =3655306.52+721269 -> 4376575.52 | C20: =4232026.07+702173 -> 4934199.07 | D20: =4632478.1+641918 -> 5274396.1 | E20: =4798766.0027+657802 -> 5456568.003 | F20: =5003436.82192176+687703 -> 5691139.822
A27: Total OM&A Before Capitalization (B) | B27: =SUM(B17:B26) -> 6347088.64 | C27: =SUM(C17:C26) -> 6515563.79 | D27: =SUM(D17:D26) -> 6659002.76 | E27: =SUM(E17:E26) -> 6864664.048 | F27: =SUM(F17:F26) -> 7169798.299
A29: Applicants are to provide a breakdown of capitalized OM&A in the below table. Capitalized OM&A may be broken down using the categories listed in the table below if possible. Otherwise, applicants are to provide its own break down of capitalized OM&A.
A31: Capitalized OM&A | G31: Directly | H31: Explanation for Change in Overhead Capitalized
B32: =F32-4 -> 2014 | C32: =F32-3 -> 2015 | D32: =F32-2 -> 2016 | E32: =F32-1 -> 2017 | F32: =TestYear -> 2018 | G32: Attributable?
B33: Historical Year | C33: Historical Year | D33: Historical Year | E33: Bridge Year | F33: Test Year | G33: (Yes/No)
A35: Labour Burden | B35: 744139.28 | C35: 723340.68 | D35: 666501.99 | E35: 682754.8253 | F35: 713030.4829 | G35: Yes | H35: Training expenses no longer Capitalized under MIFRS
A36: Material Burden | B36: 0 | C36: 0 | D36: 0 | E36: 0 | F36: 0 | G36: Yes | H36: No Changes necessary on transition to MIFRS
A37: Vehicle Burden | B37: 0 | C37: 0 | D37: 0 | E37: 0 | F37: 0 | G37: Yes | H37: No Changes necessary on transition to MIFRS
A45: Insert description of additional item(s) and new rows if needed
A47: Total Capitalized OM&A (A) | B47: =SUM(B34:B46) -> 744139.28 | C47: =SUM(C34:C46) -> 723340.68 | D47: =SUM(D34:D46) -> 666501.99 | E47: =SUM(E34:E46) -> 682754.8253 | F47: =SUM(F34:F46) -> 713030.4829
A49: % of Capitalized OM&A (=A/B) | B49: =IF(ISERROR(B47/B27),"0%",B47/B27) -> 0.1172410411 | C49: =IF(ISERROR(C47/C27),"0%",C47/C27) -> 0.1110173583 | D49: =IF(ISERROR(D47/D27),"0%",D47/D27) -> 0.100090361 | E49: =IF(ISERROR(E47/E27),"0%",E47/E27) -> 0.09945932103 | F49: =IF(ISERROR(F47/F27),"0%",F47/F27) -> 0.09944916902

Sheet App.2-EA_Account 1575 (2015)
H1: File Number: | I1: =EBNUMBER -> EB-2017-0038
H2: Exhibit:
H3: Tab:
H4: Schedule:
H5: Page:
H7: Date: | I7: February 26, 2018
A9: Appendix 2-EA
A10: Account 1575 - IFRS-CGAAP Transitional PP&E Amounts
A11: 2015 Adopters of IFRS for Financial Reporting Purposes
A13: For applicants that adopted IFRS on January 1, 2015 for financial reporting purposes
A14: Not required
B17: 2014 | C17: =TestYear-3 -> 2015 | D17: =TestYear-2 -> 2016 | E17: =CONCATENATE(TestYear-1," Bridge Year") -> 2017 Bridge Year | F17: =CONCATENATE(TestYear," Rebasing Year") -> 2018 Rebasing Year
A18: Reporting Basis | B18: CGAAP | C18: CGAAP | D18: CGAAP | E18: MIFRS | F18: MIFRS
B19: Actual | C19: Actual | D19: Actual | E19: Forecast | F19: Forecast
D20: $ | E20: $
A21: PP&E Values under CGAAP
A22: Opening net PP&E - Note 1
A23: Net Additions - Note 4
A24: Net Depreciation (amounts should be negative) - Note 4
A25: Closing net PP&E (1)
A27: PP&E Values under MIFRS (Starts from 2014, the transition year)
A28: Opening net PP&E - Note 1
A29: Net Additions - Note 4
A30: Net Depreciation (amounts should be negative) - Note 4
A31: Closing net PP&E (2)
A33: Difference in Closing net PP&E, former CGAAP vs. revised CGAAP | B33: =B25-B31 -> 0 | C33: =C25-C31 -> 0 | D33: =D25-D31 -> 0 | E33: =E25-E31 -> 0
A36: Effect on Deferral and Variance Account Rate Riders
A37: Closing balance in Account 1575 | F37: =IF(ISERROR(E33), 0, E33) -> 0 | H37: WACC
A38: Return on Rate Base Associated with Account 1575 balance at WACC - Note 2 | F38: =E33*I37*I38 -> 0 | G38: # of years of rate rider disposition period
A39: Amount included in Deferral and Variance Account Rate Rider Calculation | F39: =F37+F38 -> 0
A41: Notes:
A42: 1 For an applicant that adopted IFRS on January 1, 2015, the PP&E values as of January 1, 2014 under both CGAAP and MIFRS should be the same.
A43: 2 Return on rate base associated with deferred balance is calculated as:
A44: the deferral account closing balance as of 2017 x WACC X # of years of rate rider disposition period
A45: * Please note that the calculation should be adjusted once WACC is updated and finalized in the rate application.
A46: 3 The PP&E deferral account is cleared by including the total balance in the deferral and variance account rate rider calculation.
A47: 4 Net additions are additions net of disposals; Net depreciation is additions to depreciation net of disposals.

Sheet App.2-EB_Account 1576 (2012)
K1: File Number: | L1: =EBNUMBER -> EB-2017-0038
K2: Exhibit:
K3: Tab:
K4: Schedule:
K5: Page:
K7: Date: | L7: February 26, 2018
A9: Appendix 2-EB
A10: Account 1576 - Accounting Changes under CGAAP
A11: 2012 Changes in Accounting Policies under CGAAP
A13: For applicants with a balance in Account 1576 and made capitalization and depreciation expense accounting policy changes under CGAAP effective January 1, 2012. This is the first time the applicant is rebasing with changes in these accounting policies.
B17: Prior Years Rebasing | C17: 2012 | D17: 2013 | E17: 2014 | F17: 2015 | G17: 2016 | H17: 2017 | I17: 2018 Rebasing Year
A18: Reporting Basis | B18: CGAAP | C18: CGAAP | D18: CGAAP | E18: CGAAP | F18: MIFRS - Note 5 | G18: MIFRS | H18: MIFRS | I18: MIFRS
B19: Forecast | C19: Actual | D19: Actual | E19: Actual | F19: Actual | G19: Actual | H19: Forecast | I19: Forecast
C20: $ | D20: $ | E20: $ | F20: $ | G20: $ | H20: $
A21: PP&E Values under former CGAAP
A22: Opening net PP&E - Note 1 | D22: =+C25 -> 0 | E22: =+D25 -> 0 | F22: =+E25 -> 0 | G22: =+F25 -> 0 | H22: =+G25 -> 0
A23: Net Additions - Note 4
A24: Net Depreciation (amounts should be negative) - Note 4
A25: Closing net PP&E (1) | C25: =C22+C23+C24 -> 0 | D25: 0 | E25: 0 | F25: 0 | G25: 0 | H25: 0
A27: PP&E Values under revised CGAAP (Starts from 2012)
A28: Opening net PP&E - Note 1 | D28: =+C31 -> 0 | E28: =+D31 -> 0 | F28: =+E31 -> 0 | G28: =+F31 -> 0 | H28: =+G31 -> 0
A29: Net Additions - Note 4
A30: Net Depreciation (amounts should be negative) - Note 4
A31: Closing net PP&E (2) | C31: =SUM(C28:C30) -> 0 | D31: 0 | E31: 0 | F31: 0 | G31: 0 | H31: 0
A33: Difference in Closing net PP&E, former CGAAP vs. revised CGAAP | C33: =C25-C31 -> 0 | D33: 0 | E33: 0 | F33: 0 | G33: 0 | H33: 0
A36: Effect on Deferral and Variance Account Rate Riders
A37: Closing balance in Account 1576 | I37: =IF(ISERROR(H33), 0, H33) -> 0 | K37: WACC
A38: Return on Rate Base Associated with Account 1576 balance at WACC - Note 2 | I38: =H33*L37*L38 -> 0 | J38: # of years of rate rider disposition period
A39: Amount included in Deferral and Variance Account Rate Rider Calculation | I39: =I37+I38 -> 0
A41: Notes:
A42: 1 For an applicant that made the capitalization and depreciation expense accounting policy changes on January 1, 2012, the PP&E values as of January 1, 2012 under both former CGAAP and revised CGAAP should be the same.
A43: 2 Return on rate base associated with Account 1576 balance is calculated as:
A44: the variance account ending balance as of 2017 x WACC X # of years of rate rider disposition period
A45: * Please note that the calculation should be adjusted once WACC is updated and finalized in the rate application.
A46: 3 Account 1576 is cleared by including the total balance in the deferral and variance account rate rider calculation.
A47: 4 Net additions are additions net of disposals; Net depreciation is additions to depreciation net of disposals.
A48: 5 Differences due to the adoption of MIFRS are to be shown separately in Account 1575 in Appendix 2-EA as Accounts 1575 and 1576 cannot be used interchangably.

Sheet App.2-EC_Account 1576 (2013)
J1: File Number: | K1: =EBNUMBER -> EB-2017-0038
J2: Exhibit: | K2: 9
J3: Tab: | K3: 6
J4: Schedule:
J5: Page: | K5: 15
J7: Date: | K7: February 26, 2018
A9: Appendix 2-EC
A10: Account 1576 - Accounting Changes under CGAAP
A11: 2013 Changes in Accounting Policies under CGAAP
A12: completd
A13: For applicants with a balance in Account 1576 and made capitalization and depreciation expense accounting policy changes under CGAAP effective January 1, 2013. This is the first time the applicant is rebasing with changes in these accounting policies.
B17: Prior Years Rebasing | C17: 2013 | D17: 2014 | E17: 2015 | F17: 2016 | G17: 2017 | H17: 2018 Rebasing Year
A18: Reporting Basis | B18: CGAAP | C18: CGAAP | D18: CGAAP | E18: MIFRS - Note 5 | F18: MIFRS | G18: MIFRS | H18: MIFRS
B19: Actual | C19: Actual | D19: Actual | E19: Actual | F19: Actual | G19: Forecast | H19: Forecast
C20: $ | D20: $ | F20: $
A21: PP&E Values under former CGAAP
A22: Opening net PP&E - Note 1 | C22: 39364465 | D22: =+C25 -> 42005166 | E22: =+D25 -> 44429037 | F22: =+E25 -> 46472217.11 | G22: =+F25 -> 48635872.11
A23: Net Additions - Note 4 | C23: 4325411 | D23: 4187750 | E23: 3737560.106 | F23: 3066981 | G23: 3197590
A24: Net Depreciation (amounts should be negative) - Note 4 | C24: -1684710 | D24: -1763879 | E24: -1694380 | F24: -903326 | G24: -2368405
A25: Closing net PP&E (1) | C25: =SUM(C22:C24) -> 42005166 | D25: =SUM(D22:D24) -> 44429037 | E25: =SUM(E22:E24) -> 46472217.11 | F25: =SUM(F22:F24) -> 48635872.11 | G25: =SUM(G22:G24) -> 49465057.11
A27: PP&E Values under revised CGAAP (Starts from 2012)
A28: Opening net PP&E - Note 1 | C28: =C22 -> 39364465 | D28: =+C31 -> 42235543.05 | E28: =+D31 -> 44841233.72 | F28: =+E31 -> 47198199 | G28: =+F31 -> 49605409.53
A29: Net Additions - Note 4 | C29: 4067096.33 | D29: 3922844.58 | E29: 3536093.41 | F29: 2772051.91 | G29: 2819217
A30: Net Depreciation (amounts should be negative) - Note 4 | C30: -1196018.28 | D30: -1317153.91 | E30: -1179128.13 | F30: -364841.38 | G30: -1833070.65
A31: Closing net PP&E (2) | C31: =SUM(C28:C30) -> 42235543.05 | D31: =SUM(D28:D30) -> 44841233.72 | E31: =SUM(E28:E30) -> 47198199 | F31: =SUM(F28:F30) -> 49605409.53 | G31: =SUM(G28:G30) -> 50591555.88
A33: Difference in Closing net PP&E, former CGAAP vs. revised CGAAP | C33: =C25-C31 -> -230377.05 | D33: =D25-D31 -> -412196.72 | E33: =E25-E31 -> -725981.8938 | F33: =F25-F31 -> -969537.4238 | G33: =G25-G31 -> -1126498.774
A36: Effect on Deferral and Variance Account Rate Riders
A37: Closing balance in Account 1576 | H37: =IF(ISERROR(G33), 0, G33) -> -1126498.774 | J37: WACC | K37: 0.0602
A38: Return on Rate Base Associated with Account 1576 balance at WACC - Note 2 | H38: =G33*K37*K38 -> -67815.22618 | I38: # of years of rate rider disposition period | K38: 1
A39: Amount included in Deferral and Variance Account Rate Rider Calculation | H39: =H37+H38 -> -1194314
A41: Notes:
A42: 1 For an applicant that made the capitalization and depreciation expense accounting policy changes on January 1, 2013, the PP&E values as of January 1, 2013 under both former CGAAP and revised CGAAP should be the same.
A43: 2 Return on rate base associated with Account 1576 balance is calculated as:
A44: the variance account ending balance as of 2017 x WACC X # of years of rate rider disposition period
A45: * Please note that the calculation should be adjusted once WACC is updated and finalized in the rate application.
A46: 3 Account 1576 is cleared by including the total balance in the deferral and variance account rate rider calculation.
A47: 4 Net additions are additions net of disposals; Net depreciation is additions to depreciation net of disposals.
A48: 5 Differences due to the adoption of MIFRS are to be shown separately in Account 1575 in Appendix 2-EA as Accounts 1575 and 1576 cannot be used interchangably.

Sheet App.2-FA Proposed REG Invest.
J1: File Number: | K1: =EBNUMBER -> EB-2017-0038
J2: Exhibit:
J3: Tab:
J4: Schedule:
J5: Page:
J7: Date: | K7: February 26, 2018
A9: Appendix 2-FA
A10: Renewable Generation Connection Investment Summary (past investments or over the future rate setting period)
A12: Enter the details of the Renewable Generation Connection projects as described in the appropriate section of the Filing Requirements.
A13: All costs entered on this page will be transferred to the appropriate cells in the appendices that follow.
A14: For Part A, Renewable Enabling Improvements (REI), these amounts will be transferred to Appendix 2 - FB
A15: For Part B, Expansions, these amounts will be transferred to Appendix 2 - FC
A17: If there are more than five projects proposed to be in-service in a certain year, please amend the tables below and ensure that the formulae for the Total Amounts in any given rate year are updated.
A18: Based on the current methodology and allocation, amounts allocated represent 6% for REI Connection Investments and 17% for Expansion Investments. (EB-2009-0349, 6-10-2010, p. 15, note 9)
A20: There are two scenarios described below. Separate sets of spreadsheets (2-FA, 2-FB, 2-FC) should be submited for each scenario as required.
A21: Scenario 1: Past Investments with No Recovery. The distributor has made investments in the past (during the IRM Years), but has not received approval for these projects and therefore did not receive
A22: revenue from the IESO under Regulation 330/09 and did not receive ratepayer revenue for the direct benefit portion of the investment.
A23: The WCA percentage, debt percentages, interest rates, kWh, tax rates, amortization period, CCA Class and percentage should correspond to the distributor's last Cost of Service approval.
A24: The Direct Benefit portion of the calculated Revenue Requirement for each year should be summed and can be applied for recovery from the distributor's ratepayers through a rate rider.
A25: The Provincial Recovery portion of the calculated Revenue Requirement for each year should be summed and can be applied for recovery from the IESO through a separate order.
A27: Scenario 2: Investments in the Test Year and Beyond. Distributor plans to make investments in 2017 and/or beyond. These investments should be added to 2-FA in the appropriate year.
A28: The WCA percentage, debt percentages, interest rates, kWh, tax rates, amortization period, CCA Class and percentage should correspond to the distributor's current application.
A30: Part A | G30: Test Year
A31: REI Investments (Direct Benefit at 6%) | C31: =D31-1 -> 2014 | D31: =E31-1 -> 2015 | E31: =F31-1 -> 2016 | F31: =G31-1 -> 2017 | G31: =TestYear -> 2018 | H31: =G31+1 -> 2019 | I31: =H31+1 -> 2020 | J31: =I31+1 -> 2021 | K31: =J31+1 -> 2022
A32: Project 1
A33: Name: REI Connection Project
A34: Capital Costs | C34: 0 | D34: 0 | E34: 0 | F34: 0 | G34: 0 | H34: 0 | I34: 0 | J34: 0 | K34: 0
A35: OM&A (Start-Up) | C35: 0 | D35: 0 | E35: 0 | F35: 0 | G35: 0 | H35: 0 | I35: 0 | J35: 0 | K35: 0
A36: OM&A (Ongoing) | C36: 0 | D36: 0 | E36: 0 | F36: 0 | G36: 0 | H36: 0 | I36: 0 | J36: 0 | K36: 0
A38: Project 2
A39: Name: REI Connection Project
A40: Capital Costs | C40: 0 | D40: 0 | E40: 0 | F40: 0 | G40: 0 | H40: 0 | I40: 0 | J40: 0 | K40: 0
A41: OM&A (Start-Up) | C41: 0 | D41: 0 | E41: 0 | F41: 0 | G41: 0 | H41: 0 | I41: 0 | J41: 0 | K41: 0
A42: OM&A (Ongoing) | C42: 0 | D42: 0 | E42: 0 | F42: 0 | G42: 0 | H42: 0 | I42: 0 | J42: 0 | K42: 0
A44: Project 3
A45: Name: REI Connection Project
A46: Capital Costs | C46: 0 | D46: 0 | E46: 0 | F46: 0 | G46: 0 | H46: 0 | I46: 0 | J46: 0 | K46: 0
A47: OM&A (Start-Up) | C47: 0 | D47: 0 | E47: 0 | F47: 0 | G47: 0 | H47: 0 | I47: 0 | J47: 0 | K47: 0
A48: OM&A (Ongoing) | C48: 0 | D48: 0 | E48: 0 | F48: 0 | G48: 0 | H48: 0 | I48: 0 | J48: 0 | K48: 0
A50: Project 4
A51: Name: REI Connection Project
A52: Capital Costs | C52: 0 | D52: 0 | E52: 0 | F52: 0 | G52: 0 | H52: 0 | I52: 0 | J52: 0 | K52: 0
A53: OM&A (Start-Up) | C53: 0 | D53: 0 | E53: 0 | F53: 0 | G53: 0 | H53: 0 | I53: 0 | J53: 0 | K53: 0
A54: OM&A (Ongoing) | C54: 0 | D54: 0 | E54: 0 | F54: 0 | G54: 0 | H54: 0 | I54: 0 | J54: 0 | K54: 0
A56: Project 5
A57: Name: REI Connection Project
A58: Capital Costs | C58: 0 | D58: 0 | E58: 0 | F58: 0 | G58: 0 | H58: 0 | I58: 0 | J58: 0 | K58: 0
A59: OM&A (Start-Up) | C59: 0 | D59: 0 | E59: 0 | F59: 0 | G59: 0 | H59: 0 | I59: 0 | J59: 0 | K59: 0
A60: OM&A (Ongoing) | C60: 0 | D60: 0 | E60: 0 | F60: 0 | G60: 0 | H60: 0 | I60: 0 | J60: 0 | K60: 0
A62: Total Capital Costs | C62: =SUM(C58,C52,C46,C40,C34) -> 0 | D62: 0 | E62: 0 | F62: 0 | G62: =SUM(G58,G52,G46,G40,G34) -> 0 | H62: =SUM(H58,H52,H46,H40,H34) -> 0 | I62: 0 | J62: 0 | K62: 0
A63: Total OM&A (Start-Up) | C63: 0 | D63: 0 | E63: 0 | F63: 0 | G63: =SUM(G59,G53,G47,G41,G35) -> 0 | H63: 0 | I63: 0 | J63: 0 | K63: 0
A64: Total OM&A (Ongoing) | C64: 0 | D64: 0 | E64: 0 | F64: 0 | G64: =SUM(G60,G54,G48,G42,G36) -> 0 | H64: 0 | I64: 0 | J64: 0 | K64: 0
A67: Part B | G67: Test Year
A68: Expansion Investments (Direct Benefit at 17%) | C68: =D68-1 -> 2014 | D68: =E68-1 -> 2015 | E68: =F68-1 -> 2016 | F68: =G68-1 -> 2017 | G68: =TestYear -> 2018 | H68: =G68+1 -> 2019 | I68: =H68+1 -> 2020 | J68: =I68+1 -> 2021 | K68: =J68+1 -> 2022
A69: Project 1
A70: Name: Expansion Connection Project
A71: Capital Costs | C71: 0 | D71: 0 | E71: 0 | F71: 0 | G71: 0 | H71: 0 | I71: 0 | J71: 0 | K71: 0
A72: OM&A (Start-Up) | C72: 0 | D72: 0 | E72: 0 | F72: 0 | G72: 0 | H72: 0 | I72: 0 | J72: 0 | K72: 0
A73: OM&A (Ongoing) | C73: 0 | D73: 0 | E73: 0 | F73: 0 | G73: 0 | H73: 0 | I73: 0 | J73: 0 | K73: 0
A75: Project 2
A76: Name: Expansion Connection Project
A77: Capital Costs | C77: 0 | D77: 0 | E77: 0 | F77: 0 | G77: 0 | H77: 0 | I77: 0 | J77: 0 | K77: 0
A78: OM&A (Start-Up) | C78: 0 | D78: 0 | E78: 0 | F78: 0 | G78: 0 | H78: 0 | I78: 0 | J78: 0 | K78: 0
A79: OM&A (Ongoing) | C79: 0 | D79: 0 | E79: 0 | F79: 0 | G79: 0 | H79: 0 | I79: 0 | J79: 0 | K79: 0
A81: Project 3
A82: Name: Expansion Connection Project
A83: Capital Costs | C83: 0 | D83: 0 | E83: 0 | F83: 0 | G83: 0 | H83: 0 | I83: 0 | J83: 0 | K83: 0
A84: OM&A (Start-Up) | C84: 0 | D84: 0 | E84: 0 | F84: 0 | G84: 0 | H84: 0 | I84: 0 | J84: 0 | K84: 0
A85: OM&A (Ongoing) | C85: 0 | D85: 0 | E85: 0 | F85: 0 | G85: 0 | H85: 0 | I85: 0 | J85: 0 | K85: 0
A87: Project 4
A88: Name: Expansion Connection Project
A89: Capital Costs | C89: 0 | D89: 0 | E89: 0 | F89: 0 | G89: 0 | H89: 0 | I89: 0 | J89: 0 | K89: 0
A90: OM&A (Start-Up) | C90: 0 | D90: 0 | E90: 0 | F90: 0 | G90: 0 | H90: 0 | I90: 0 | J90: 0 | K90: 0
A91: OM&A (Ongoing) | C91: 0 | D91: 0 | E91: 0 | F91: 0 | G91: 0 | H91: 0 | I91: 0 | J91: 0 | K91: 0
A93: Project 5
A94: Name: Expansion Connection Project
A95: Capital Costs | C95: 0 | D95: 0 | E95: 0 | F95: 0 | G95: 0 | H95: 0 | I95: 0 | J95: 0 | K95: 0
A96: OM&A (Start-Up) | C96: 0 | D96: 0 | E96: 0 | F96: 0 | G96: 0 | H96: 0 | I96: 0 | J96: 0 | K96: 0
A97: OM&A (Ongoing) | C97: 0 | D97: 0 | E97: 0 | F97: 0 | G97: 0 | H97: 0 | I97: 0 | J97: 0 | K97: 0
A99: Total Capital Costs | C99: =SUM(C95,C89,C83,C77,C71) -> 0 | D99: 0 | E99: 0 | F99: 0 | G99: =SUM(G95,G89,G83,G77,G71) -> 0 | H99: =SUM(H95,H89,H83,H77,H71) -> 0 | I99: 0 | J99: 0 | K99: 0
A100: Total OM&A (Start-Up) | C100: 0 | D100: 0 | E100: 0 | F100: 0 | G100: =SUM(G96,G90,G84,G78,G72) -> 0 | H100: 0 | I100: 0 | J100: 0 | K100: 0
A101: Total OM&A (Ongoing) | C101: 0 | D101: 0 | E101: 0 | F101: 0 | G101: =SUM(G97,G91,G85,G79,G73) -> 0 | H101: 0 | I101: 0 | J101: 0 | K101: 0

Sheet App.2-FB Calc of REG Improvemnt
N1: File Number: | O1: =EBNUMBER -> EB-2017-0038
N2: Exhibit:
N3: Tab:
N4: Schedule:
N5: Page:
N7: Date: | O7: February 26, 2018
A9: Appendix 2-FB
A10: Calculation of Renewable Generation Connection Direct Benefits/Provincial Amount: Renewable Enabling Improvement Investments
A12: This table will calculate the distributor/provincial shares of the investments entered in Part A of Appendix 2-FA.
A13: Enter values in green shaded cells: WCA percentage, debt percentages, interest rates, kWh, tax rates, amortization period, CCA Class and percentage.
A14: For historical investments, enter these variables for your last cost of service test year. For 2017 and beyond, enter variables as in the application.
A15: Rate Riders are not calculated for the Test Year as these assets and costs are already in the distributor's rate base/revenue requirement.
C17: =F17-1 -> 2014 | F17: =I17-1 -> 2015 | I17: =L17-1 -> 2016 | L17: =BridgeYear -> 2017 | O17: =CONCATENATE(TestYear," Test Year") -> 2018 Test Year | R17: =TestYear+1 -> 2019 | U17: =R17+1 -> 2020 | V17: 2016 | X17: =U17+1 -> 2021 | AA17: =X17+1 -> 2022
D18: Direct Benefit | E18: Provincial | G18: Direct Benefit | H18: Provincial | J18: Direct Benefit | K18: Provincial | M18: Direct Benefit | N18: Provincial | P18: Direct Benefit | Q18: Provincial | S18: Direct Benefit | T18: Provincial | V18: Direct Benefit | W18: Provincial | Y18: Direct Benefit | Z18: Provincial | AB18: Direct Benefit | AC18: Provincial
C19: Total | D19: 0.06 | E19: 0.94 | F19: Total | G19: 0.06 | H19: 0.94 | I19: Total | J19: 0.06 | K19: 0.94 | L19: Total | M19: 0.06 | N19: 0.94 | O19: Total | P19: 0.06 | Q19: 0.94 | R19: Total | S19: 0.06 | T19: 0.94 | U19: Total | V19: 0.06 | W19: 0.94 | X19: Total | Y19: 0.06 | Z19: 0.94 | AA19: Total | AB19: 0.06 | AC19: 0.94
A20: Net Fixed Assets (average) | C20: =D82 -> 0 | D20: =C20*D19 -> 0 | E20: =C20*E19 -> 0 | F20: =E82 -> 0 | G20: =F20*G19 -> 0 | H20: =F20*H19 -> 0 | I20: =F82 -> 0 | J20: =I20*J19 -> 0 | K20: =I20*K19 -> 0 | L20: =G82 -> 0 | M20: =L20*M19 -> 0 | N20: =L20*N19 -> 0 | O20: =H82 -> 0 | P20: =O20*P19 -> 0 | Q20: =O20*Q19 -> 0 | R20: =I82 -> 0 | S20: =R20*S19 -> 0 | T20: =R20*T19 -> 0 | U20: =J82 -> 0 | V20: =U20*V19 -> 0 | W20: =U20*W19 -> 0 | X20: =K82 -> 0 | Y20: =X20*Y19 -> 0 | Z20: =X20*Z19 -> 0 | AA20: =L82 -> 0 | AB20: =AA20*AB19 -> 0 | AC20: =AA20*AC19 -> 0
A21: Incremental OM&A (on-going, N/A for Provincial Recovery) | C21: ='App.2-FA Proposed REG Invest.'!C64 -> 0 | D21: =C21 -> 0 | F21: ='App.2-FA Proposed REG Invest.'!D64 -> 0 | G21: =F21 -> 0 | I21: ='App.2-FA Proposed REG Invest.'!E64 -> 0 | J21: =I21 -> 0 | L21: ='App.2-FA Proposed REG Invest.'!F64 -> 0 | M21: =L21 -> 0 | O21: ='App.2-FA Proposed REG Invest.'!G64 -> 0 | P21: =O21 -> 0 | R21: ='App.2-FA Proposed REG Invest.'!H64 -> 0 | S21: =R21 -> 0 | U21: ='App.2-FA Proposed REG Invest.'!I64 -> 0 | V21: =U21 -> 0 | X21: ='App.2-FA Proposed REG Invest.'!J64 -> 0 | Y21: =X21 -> 0 | AA21: ='App.2-FA Proposed REG Invest.'!K64 -> 0 | AB21: =AA21 -> 0
A22: Incremental OM&A (start-up, applicable for Provincial Recovery) | C22: ='App.2-FA Proposed REG Invest.'!C63 -> 0 | D22: =C22*D19 -> 0 | E22: =C22*E19 -> 0 | F22: ='App.2-FA Proposed REG Invest.'!D63 -> 0 | G22: =F22*G19 -> 0 | H22: =F22*H19 -> 0 | I22: ='App.2-FA Proposed REG Invest.'!E63 -> 0 | J22: =I22*J19 -> 0 | K22: =I22*K19 -> 0 | L22: ='App.2-FA Proposed REG Invest.'!F63 -> 0 | M22: =L22*M19 -> 0 | N22: =L22*N19 -> 0 | O22: ='App.2-FA Proposed REG Invest.'!G63 -> 0 | P22: =O22*P19 -> 0 | Q22: =O22*Q19 -> 0 | R22: ='App.2-FA Proposed REG Invest.'!H63 -> 0 | S22: =R22*S19 -> 0 | T22: =R22*T19 -> 0 | U22: ='App.2-FA Proposed REG Invest.'!I63 -> 0 | V22: =U22*V19 -> 0 | W22: =U22*W19 -> 0 | X22: ='App.2-FA Proposed REG Invest.'!J63 -> 0 | Y22: =X22*Y19 -> 0 | Z22: =X22*Z19 -> 0 | AA22: ='App.2-FA Proposed REG Invest.'!K63 -> 0 | AB22: =AA22*AB19 -> 0 | AC22: =AA22*AC19 -> 0
A23: WCA | D23: =(D21+D22)*$B$23 -> 0 | E23: =E22*$B$23 -> 0 | G23: =(G21+G22)*$B$23 -> 0 | H23: =H22*$B$23 -> 0 | J23: =(J21+J22)*$B$23 -> 0 | K23: =K22*$B$23 -> 0 | M23: =(M21+M22)*$B$23 -> 0 | N23: =N22*$B$23 -> 0 | P23: =(P21+P22)*$B$23 -> 0 | Q23: =Q22*$B$23 -> 0 | S23: =(S21+S22)*$B$23 -> 0 | T23: =T22*$B$23 -> 0 | V23: =(V21+V22)*$B$23 -> 0 | W23: =W22*$B$23 -> 0 | Y23: =(Y21+Y22)*$B$23 -> 0 | Z23: =Z22*$B$23 -> 0 | AB23: =(AB21+AB22)*$B$23 -> 0 | AC23: =AC22*$B$23 -> 0
A24: Rate Base | D24: =SUM(D20+D23) -> 0 | E24: =SUM(E20+E23) -> 0 | G24: =SUM(G20+G23) -> 0 | H24: =SUM(H20+H23) -> 0 | J24: =SUM(J20+J23) -> 0 | K24: =SUM(K20+K23) -> 0 | M24: =SUM(M20+M23) -> 0 | N24: =SUM(N20+N23) -> 0 | P24: =SUM(P20+P23) -> 0 | Q24: =SUM(Q20+Q23) -> 0 | S24: =SUM(S20+S23) -> 0 | T24: =SUM(T20+T23) -> 0 | V24: =SUM(V20+V23) -> 0 | W24: =SUM(W20+W23) -> 0 | Y24: =SUM(Y20+Y23) -> 0 | Z24: =SUM(Z20+Z23) -> 0 | AB24: =SUM(AB20+AB23) -> 0 | AC24: =SUM(AC20+AC23) -> 0
A27: Deemed ST Debt | D27: =D24*$B$27 -> 0 | E27: =E24*$B$27 -> 0 | G27: =G24*$B$27 -> 0 | H27: =H24*$B$27 -> 0 | J27: =J24*$B$27 -> 0 | K27: =K24*$B$27 -> 0 | M27: =M24*$B$27 -> 0 | N27: =N24*$B$27 -> 0 | P27: =P24*$B$27 -> 0 | Q27: =Q24*$B$27 -> 0 | S27: =S24*$B$27 -> 0 | T27: =T24*$B$27 -> 0 | V27: =V24*$B$27 -> 0 | W27: =W24*$B$27 -> 0 | Y27: =Y24*$B$27 -> 0 | Z27: =Z24*$B$27 -> 0 | AB27: =AB24*$B$27 -> 0 | AC27: =AC24*$B$27 -> 0
A28: Deemed LT Debt | D28: =D24*$B$28 -> 0 | E28: =E24*$B$28 -> 0 | G28: =G24*$B$28 -> 0 | H28: =H24*$B$28 -> 0 | J28: =J24*$B$28 -> 0 | K28: =K24*$B$28 -> 0 | M28: =M24*$B$28 -> 0 | N28: =N24*$B$28 -> 0 | P28: =P24*$B$28 -> 0 | Q28: =Q24*$B$28 -> 0 | S28: =S24*$B$28 -> 0 | T28: =T24*$B$28 -> 0 | V28: =V24*$B$28 -> 0 | W28: =W24*$B$28 -> 0 | Y28: =Y24*$B$28 -> 0 | Z28: =Z24*$B$28 -> 0 | AB28: =AB24*$B$28 -> 0 | AC28: =AC24*$B$28 -> 0
A29: Deemed Equity | D29: =D24*$B$29 -> 0 | E29: =E24*$B$29 -> 0 | G29: =G24*$B$29 -> 0 | H29: =H24*$B$29 -> 0 | J29: =J24*$B$29 -> 0 | K29: =K24*$B$29 -> 0 | M29: =M24*$B$29 -> 0 | N29: =N24*$B$29 -> 0 | P29: =P24*$B$29 -> 0 | Q29: =Q24*$B$29 -> 0 | S29: =S24*$B$29 -> 0 | T29: =T24*$B$29 -> 0 | V29: =V24*$B$29 -> 0 | W29: =W24*$B$29 -> 0 | Y29: =Y24*$B$29 -> 0 | Z29: =Z24*$B$29 -> 0 | AB29: =AB24*$B$29 -> 0 | AC29: =AC24*$B$29 -> 0
A31: ST Interest | D31: =D27*$B31 -> 0 | E31: 0 | G31: =G27*$B31 -> 0 | H31: 0 | J31: =J27*$B31 -> 0 | K31: 0 | M31: =M27*$B31 -> 0 | N31: 0 | P31: =P27*$B31 -> 0 | Q31: 0 | S31: =S27*$B31 -> 0 | T31: 0 | V31: =V27*$B31 -> 0 | W31: 0 | Y31: =Y27*$B31 -> 0 | Z31: 0 | AB31: =AB27*$B31 -> 0 | AC31: 0
A32: LT Interest | D32: 0 | E32: 0 | G32: 0 | H32: 0 | J32: 0 | K32: 0 | M32: 0 | N32: 0 | P32: 0 | Q32: 0 | S32: 0 | T32: 0 | V32: 0 | W32: 0 | Y32: 0 | Z32: 0 | AB32: 0 | AC32: 0
A33: ROE | D33: 0 | E33: 0 | G33: 0 | H33: 0 | J33: 0 | K33: 0 | M33: 0 | N33: 0 | P33: 0 | Q33: 0 | S33: 0 | T33: 0 | V33: 0 | W33: 0 | Y33: 0 | Z33: 0 | AB33: 0 | AC33: 0
A34: Cost of Capital Total | D34: =SUM(D31:D33) -> 0 | E34: =SUM(E31:E33) -> 0 | G34: =SUM(G31:G33) -> 0 | H34: =SUM(H31:H33) -> 0 | J34: =SUM(J31:J33) -> 0 | K34: =SUM(K31:K33) -> 0 | M34: =SUM(M31:M33) -> 0 | N34: =SUM(N31:N33) -> 0 | P34: =SUM(P31:P33) -> 0 | Q34: =SUM(Q31:Q33) -> 0 | S34: =SUM(S31:S33) -> 0 | T34: =SUM(T31:T33) -> 0 | V34: =SUM(V31:V33) -> 0 | W34: =SUM(W31:W33) -> 0 | Y34: =SUM(Y31:Y33) -> 0 | Z34: =SUM(Z31:Z33) -> 0 | AB34: =SUM(AB31:AB33) -> 0 | AC34: =SUM(AC31:AC33) -> 0
A36: OM&A | D36: =D21+D22 -> 0 | E36: =E22 -> 0 | G36: =G21+G22 -> 0 | H36: =H22 -> 0 | J36: =J21+J22 -> 0 | K36: =K22 -> 0 | M36: =M21+M22 -> 0 | N36: =N22 -> 0 | P36: =P21+P22 -> 0 | Q36: =Q22 -> 0 | S36: =S21+S22 -> 0 | T36: =T22 -> 0 | V36: =V21+V22 -> 0 | W36: =W22 -> 0 | Y36: =Y21+Y22 -> 0 | Z36: =Z22 -> 0 | AB36: =AB21+AB22 -> 0 | AC36: =AC22 -> 0
A37: Amortization | C37: =D77 -> 0 | D37: =C37*D$19 -> 0 | E37: =C37*E$19 -> 0 | F37: =E77 -> 0 | G37: =F37*G$19 -> 0 | H37: =F37*H$19 -> 0 | I37: =F77 -> 0 | J37: =I37*J$19 -> 0 | K37: =I37*K$19 -> 0 | L37: =G77 -> 0 | M37: =L37*M$19 -> 0 | N37: =L37*N$19 -> 0 | O37: =H77 -> 0 | P37: =O37*P$19 -> 0 | Q37: =O37*Q$19 -> 0 | R37: =I76+I77 -> 0 | S37: =R37*S$19 -> 0 | T37: =R37*T$19 -> 0 | U37: =J76+J77 -> 0 | V37: =U37*V$19 -> 0 | W37: =U37*W$19 -> 0 | X37: =K76+K77 -> 0 | Y37: =X37*Y$19 -> 0 | Z37: =X37*Z$19 -> 0 | AA37: =L76+L77 -> 0 | AB37: =AA37*AB$19 -> 0 | AC37: =AA37*AC$19 -> 0
A38: Grossed-up PILs | D38: =D65 -> 0 | E38: =E65 -> 0 | G38: =G65 -> 0 | H38: =H65 -> 0 | J38: =J65 -> 0 | K38: =K65 -> 0 | M38: =M65 -> 0 | N38: =N65 -> 0 | P38: =P65 -> 0 | Q38: =Q65 -> 0 | S38: =S65 -> 0 | T38: =T65 -> 0 | V38: =V65 -> 0 | W38: =W65 -> 0 | Y38: =Y65 -> 0 | Z38: =Z65 -> 0 | AB38: =AB65 -> 0 | AC38: =AC65 -> 0
A40: Revenue Requirement | D40: =SUM(D34:D38) -> 0 | E40: =SUM(E34:E38) -> 0 | G40: =SUM(G34:G38) -> 0 | H40: =SUM(H34:H38) -> 0 | J40: =SUM(J34:J38) -> 0 | K40: =SUM(K34:K38) -> 0 | M40: =SUM(M34:M38) -> 0 | N40: =SUM(N34:N38) -> 0 | P40: =SUM(P34:P38) -> 0 | Q40: =SUM(Q34:Q38) -> 0 | S40: =SUM(S34:S38) -> 0 | T40: =SUM(T34:T38) -> 0 | V40: =SUM(V34:V38) -> 0 | W40: =SUM(W34:W38) -> 0 | Y40: =SUM(Y34:Y38) -> 0 | Z40: =SUM(Z34:Z38) -> 0 | AB40: =SUM(AB34:AB38) -> 0 | AC40: =SUM(AC34:AC38) -> 0
A43: Provincial Rate Protection | E43: =E40 -> 0 | H43: =H40 -> 0 | K43: =K40 -> 0 | N43: =N40 -> 0 | Q43: =Q40 -> 0 | T43: =T40 -> 0 | W43: =W40 -> 0 | Z43: =Z40 -> 0 | AC43: =AC40 -> 0
A45: Monthly Amount Paid by IESO | E45: =E43/12 -> 0 | H45: =H43/12 -> 0 | K45: =K43/12 -> 0 | N45: =N43/12 -> 0 | Q45: =Q43/12 -> 0 | T45: =T43/12 -> 0 | W45: =W43/12 -> 0 | Z45: =Z43/12 -> 0 | AC45: =AC43/12 -> 0
A47: Note 1: The difference between the actual costs of approved eligible investments and revenue received from the IESO should be recorded in a variance account. The Board may provide
A48: regulatory accounting guidance regarding a variance account either in an individual proceeding or on a generic basis.
A49: Note 2: For the 2016 Test Year, Costs and Revenues of the Direct Benefit are to be included in the test year applicant Rate Base and Revenues.
A51: PILs Calculation
D52: =C17 -> 2014 | G52: =F17 -> 2015 | J52: =I17 -> 2016 | M52: =L17 -> 2017 | P52: =O17 -> 2018 Test Year | S52: =R17 -> 2019 | V52: =U17 -> 2020 | Y52: =X17 -> 2021 | AB52: =AA17 -> 2022
A53: Income Tax | D53: Direct Benefit | E53: Provincial | G53: Direct Benefit | H53: Provincial | J53: Direct Benefit | K53: Provincial | M53: Direct Benefit | N53: Provincial | P53: Direct Benefit | Q53: Provincial | S53: Direct Benefit | T53: Provincial | V53: Direct Benefit | W53: Provincial | Y53: Direct Benefit | Z53: Provincial | AB53: Direct Benefit | AC53: Provincial
X54: Total | AA54: Total
A55: Net Income - ROE on Rate Base | D55: =D33 -> 0 | E55: =E33 -> 0 | G55: =G33 -> 0 | H55: =H33 -> 0 | J55: =J33 -> 0 | K55: =K33 -> 0 | M55: =M33 -> 0 | N55: =N33 -> 0 | P55: =P33 -> 0 | Q55: =Q33 -> 0 | S55: =S33 -> 0 | T55: =T33 -> 0 | V55: =V33 -> 0 | W55: =W33 -> 0 | Y55: =Y33 -> 0 | Z55: =Z33 -> 0 | AB55: =AB33 -> 0 | AC55: =AC33 -> 0
A56: Amortization (6% DB and 94% P) | D56: =D37 -> 0 | E56: =E37 -> 0 | G56: =G37 -> 0 | H56: =H37 -> 0 | J56: =J37 -> 0 | K56: =K37 -> 0 | M56: =M37 -> 0 | N56: =N37 -> 0 | P56: =P37 -> 0 | Q56: =Q37 -> 0 | S56: =S37 -> 0 | T56: =T37 -> 0 | V56: =V37 -> 0 | W56: =W37 -> 0 | Y56: =Y37 -> 0 | Z56: =Z37 -> 0 | AB56: =AB37 -> 0 | AC56: =AC37 -> 0
A57: CCA (6% DB and 94% P) | D57: =-D94*D$19 -> 0 | E57: =-D94*E$19 -> 0 | G57: =-E94*G19 -> 0 | H57: =-E94*H$19 -> 0 | J57: =-F94*J$19 -> 0 | K57: =-F94*K$19 -> 0 | M57: =-G94*M$19 -> 0 | N57: =-G94*N$19 -> 0 | P57: =-H94*P$19 -> 0 | Q57: =-H94*Q$19 -> 0 | S57: =-I94*S$19 -> 0 | T57: =-I94*T$19 -> 0 | V57: =-J94*V$19 -> 0 | W57: =-J94*W$19 -> 0 | Y57: =-K94*Y$19 -> 0 | Z57: =-K94*Z$19 -> 0 | AB57: =-L94*AB$19 -> 0 | AC57: =-L94*AC$19 -> 0
A58: Taxable income | D58: =SUM(D55:D57) -> 0 | E58: =SUM(E55:E57) -> 0 | G58: =SUM(G55:G57) -> 0 | H58: =SUM(H55:H57) -> 0 | J58: =SUM(J55:J57) -> 0 | K58: =SUM(K55:K57) -> 0 | M58: =SUM(M55:M57) -> 0 | N58: =SUM(N55:N57) -> 0 | P58: =SUM(P55:P57) -> 0 | Q58: =SUM(Q55:Q57) -> 0 | S58: =SUM(S55:S57) -> 0 | T58: =SUM(T55:T57) -> 0 | V58: =SUM(V55:V57) -> 0 | W58: =SUM(W55:W57) -> 0 | Y58: =SUM(Y55:Y57) -> 0 | Z58: =SUM(Z55:Z57) -> 0 | AB58: =SUM(AB55:AB57) -> 0 | AC58: =SUM(AC55:AC57) -> 0
A60: Tax Rate (to be entered)
A62: Income Taxes Payable | D62: =D58*D60 -> 0 | E62: =E58*E60 -> 0 | G62: =G58*G60 -> 0 | H62: =H58*H60 -> 0 | J62: =J58*J60 -> 0 | K62: =K58*K60 -> 0 | M62: =M58*M60 -> 0 | N62: =N58*N60 -> 0 | P62: =P58*P60 -> 0 | Q62: =Q58*Q60 -> 0 | S62: =S58*S60 -> 0 | T62: =T58*T60 -> 0 | V62: =V58*V60 -> 0 | W62: =W58*W60 -> 0 | Y62: =Y58*Y60 -> 0 | Z62: =Z58*Z60 -> 0 | AB62: =AB58*AB60 -> 0 | AC62: =AC58*AC60 -> 0
A63: Gross Up
A64: Income Taxes Payable | D64: =D62/(1-D60) -> 0 | E64: =E62/(1-E60) -> 0 | G64: =G62/(1-G60) -> 0 | H64: =H62/(1-H60) -> 0 | J64: =J62/(1-J60) -> 0 | K64: =K62/(1-K60) -> 0 | M64: =M62/(1-M60) -> 0 | N64: =N62/(1-N60) -> 0 | P64: =P62/(1-P60) -> 0 | Q64: =Q62/(1-Q60) -> 0 | S64: =S62/(1-S60) -> 0 | T64: =T62/(1-T60) -> 0 | V64: =V62/(1-V60) -> 0 | W64: =W62/(1-W60) -> 0 | Y64: =Y62/(1-Y60) -> 0 | Z64: =Z62/(1-Z60) -> 0 | AB64: =AB62/(1-AB60) -> 0 | AC64: =AC62/(1-AC60) -> 0
A65: Grossed Up PILs | D65: =SUM(D64:D64) -> 0 | E65: =SUM(E64:E64) -> 0 | G65: =SUM(G64:G64) -> 0 | H65: =SUM(H64:H64) -> 0 | J65: =SUM(J64:J64) -> 0 | K65: =SUM(K64:K64) -> 0 | M65: =SUM(M64:M64) -> 0 | N65: =SUM(N64:N64) -> 0 | P65: =SUM(P64:P64) -> 0 | Q65: =SUM(Q64:Q64) -> 0 | S65: =SUM(S64:S64) -> 0 | T65: =SUM(T64:T64) -> 0 | V65: =SUM(V64:V64) -> 0 | W65: =SUM(W64:W64) -> 0 | Y65: =SUM(Y64:Y64) -> 0 | Z65: =SUM(Z64:Z64) -> 0 | AB65: =SUM(AB64:AB64) -> 0 | AC65: =SUM(AC64:AC64) -> 0
D68: =E68-1 -> 2014 | E68: =F68-1 -> 2015 | F68: =G68-1 -> 2016 | G68: =H68-1 -> 2017 | H68: =TestYear -> 2018 | I68: =H68+1 -> 2019 | J68: =I68+1 -> 2020 | K68: =J68+1 -> 2021 | L68: =K68+1 -> 2022
A69: Net Fixed Assets
B70: Enter applicable amortization in years: | C70: 25
A71: Opening Gross Fixed Assets | E71: =D73 -> 0 | F71: 0 | G71: 0 | H71: 0 | I71: 0 | J71: 0 | K71: 0 | L71: 0
A72: Gross Capital Additions | D72: ='App.2-FA Proposed REG Invest.'!C62 -> 0 | E72: ='App.2-FA Proposed REG Invest.'!D62 -> 0 | F72: ='App.2-FA Proposed REG Invest.'!E62 -> 0 | G72: ='App.2-FA Proposed REG Invest.'!F62 -> 0 | H72: ='App.2-FA Proposed REG Invest.'!G62 -> 0 | I72: ='App.2-FA Proposed REG Invest.'!H62 -> 0 | J72: ='App.2-FA Proposed REG Invest.'!I62 -> 0 | K72: ='App.2-FA Proposed REG Invest.'!J62 -> 0 | L72: ='App.2-FA Proposed REG Invest.'!K62 -> 0
A73: Closing Gross Fixed Assets | D73: =SUM(D71:D72) -> 0 | E73: 0 | F73: 0 | G73: 0 | H73: 0 | I73: 0 | J73: 0 | K73: 0 | L73: 0
A75: Opening Accumulated Amortization | E75: =+D78 -> 0 | F75: =E78 -> 0 | G75: 0 | H75: 0 | I75: 0 | J75: 0 | K75: 0 | L75: 0
A76: Current Year Amortization (before additions) | D76: =IF(ISERROR(D71/$C$70), 0, D71/$C$70) -> 0 | E76: 0 | F76: 0 | G76: 0 | H76: 0 | I76: 0 | J76: 0 | K76: 0 | L76: 0
A77: Additions (half year) | D77: =D72/$C$70/2 -> 0 | E77: =E72/$C$70/2 -> 0 | F77: =F72/$C$70/2 -> 0 | G77: =G72/$C$70/2 -> 0 | H77: =H72/$C$70/2 -> 0 | I77: =I72/C70/2 -> 0 | J77: =J72/C70/2 -> 0 | K77: =K72/C70/2 -> 0 | L77: =L72/C70/2 -> 0
A78: Closing Accumulated Amortization | D78: =SUM(D75+D76+D77) -> 0 | E78: =SUM(E75+E76+E77) -> 0 | F78: =SUM(F75+F76+F77) -> 0 | G78: =SUM(G75+G76+G77) -> 0 | H78: =SUM(H75+H76+H77) -> 0 | I78: =SUM(I75:I77) -> 0 | J78: =SUM(J75:J77) -> 0 | K78: =SUM(K75:K77) -> 0 | L78: =SUM(L75:L77) -> 0
A80: Opening Net Fixed Assets | D80: =D71-D75 -> 0 | E80: =E71-E75 -> 0 | F80: =F71-F75 -> 0 | G80: =G71-G75 -> 0 | H80: =H71-H75 -> 0 | I80: =H81 -> 0 | J80: =I81 -> 0 | K80: =J81 -> 0 | L80: =K81 -> 0
A81: Closing Net Fixed Assets | D81: =D73-D78 -> 0 | E81: 0 | F81: 0 | G81: 0 | H81: 0 | I81: 0 | J81: 0 | K81: 0 | L81: 0
A82: Average Net Fixed Assets | D82: =SUM(D80:D81)/2 -> 0 | E82: 0 | F82: 0 | G82: 0 | H82: 0 | I82: 0 | J82: 0 | K82: 0 | L82: 0
A84: UCC for PILs Calculation
D85: =D68 -> 2014 | E85: =E68 -> 2015 | F85: 2016 | G85: 2017 | H85: 2018 | I85: 2019 | J85: 2020 | K85: 2021 | L85: 2022
A87: Opening UCC | E87: =D95 -> 0 | F87: 0 | G87: 0 | H87: 0 | I87: 0 | J87: 0 | K87: 0 | L87: 0
A88: Capital Additions (from Appendix 2-FA) | D88: =D72 -> 0 | E88: 0 | F88: 0 | G88: 0 | H88: 0 | I88: 0 | J88: 0 | K88: 0 | L88: 0
A89: UCC Before Half Year Rule | D89: =SUM(D87:D88) -> 0 | E89: 0 | F89: 0 | G89: 0 | H89: 0 | I89: 0 | J89: 0 | K89: 0 | L89: 0
A90: Half Year Rule (1/2 Additions - Disposals) | D90: =D88/2 -> 0 | E90: 0 | F90: 0 | G90: 0 | H90: 0 | I90: 0 | J90: 0 | K90: 0 | L90: 0
A91: Reduced UCC | D91: =D89-D90 -> 0 | E91: 0 | F91: 0 | G91: 0 | H91: 0 | I91: 0 | J91: 0 | K91: 0 | L91: 0
A92: CCA Rate Class (to be entered) | C92: 47 | D92: =C92 -> 47 | E92: =D92 -> 47 | F92: 47 | G92: 47 | H92: 47 | I92: 47 | J92: 47 | K92: 47 | L92: 47
A93: CCA Rate (to be entered) | C93: 0.08 | D93: =C93 -> 0.08 | E93: 0.08 | F93: 0.08 | G93: 0.08 | H93: 0.08 | I93: 0.08 | J93: 0.08 | K93: 0.08 | L93: 0.08
A94: CCA | D94: =D91*D93 -> 0 | E94: 0 | F94: 0 | G94: 0 | H94: 0 | I94: 0 | J94: 0 | K94: 0 | L94: 0
A95: Closing UCC | D95: =D89-D94 -> 0 | E95: 0 | F95: 0 | G95: 0 | H95: 0 | I95: 0 | J95: 0 | K95: 0 | L95: 0

Sheet App.2-FC Calc of REG Expansion
N1: File Number: | O1: =EBNUMBER -> EB-2017-0038
N2: Exhibit:
N3: Tab:
N4: Schedule:
N5: Page:
N7: Date: | O7: February 26, 2018
A9: Appendix 2-FC
A10: Calculation of Renewable Generation Connection Direct Benefits/Provincial Amount: Renewable Expansion Investments
A12: This table will calculate the distributor/provincial shares of the investments entered in Part B of Appendix 2-FA.
A13: Enter values in green shaded cells: WCA percentage, debt percentages, interest rates, kWh, tax rates, amortization period, CCA Class and percentage.
A14: For historical investments, enter these variables for your last cost of service test year. For 2016 and beyond, enter variables as in the application.
A15: Rate Riders are not calculated for the Test Year as these assets and costs are already in the distributor's rate base.
D18: =G18-1 -> 2014 | G18: =J18-1 -> 2015 | J18: =M18-1 -> 2016 | M18: =BridgeYear -> 2017 | P18: =CONCATENATE(TestYear," Test Year") -> 2018 Test Year | S18: =TestYear+1 -> 2019 | T18: 2016 | V18: =S18+1 -> 2020 | Y18: =V18+1 -> 2021 | AB18: =Y18+1 -> 2022
E19: Direct Benefit | F19: Provincial | H19: Direct Benefit | I19: Provincial | K19: Direct Benefit | L19: Provincial | N19: Direct Benefit | O19: Provincial | Q19: Direct Benefit | R19: Provincial | T19: Direct Benefit | U19: Provincial | W19: Direct Benefit | X19: Provincial | Z19: Direct Benefit | AA19: Provincial | AC19: Direct Benefit | AD19: Provincial
D20: Total | E20: 0.17 | F20: 0.83 | G20: Total | H20: 0.17 | I20: 0.83 | J20: Total | K20: 0.17 | L20: 0.83 | M20: Total | N20: 0.17 | O20: 0.83 | P20: Total | Q20: 0.17 | R20: 0.83 | S20: Total | T20: 0.17 | U20: 0.83 | V20: Total | W20: 0.17 | X20: 0.83 | Y20: Total | Z20: 0.17 | AA20: 0.83 | AB20: Total | AC20: 0.17 | AD20: 0.83
A21: Net Fixed Assets (average) | D21: =D82 -> 0 | E21: =D21*E20 -> 0 | F21: =D21*F20 -> 0 | G21: =E82 -> 0 | H21: =G21*H20 -> 0 | I21: =G21*I20 -> 0 | J21: =F82 -> 0 | K21: =J21*K20 -> 0 | L21: =J21*L20 -> 0 | M21: =G82 -> 0 | N21: =M21*N20 -> 0 | O21: =M21*O20 -> 0 | P21: =H82 -> 0 | Q21: =P21*Q20 -> 0 | R21: =P21*R20 -> 0 | S21: =I82 -> 0 | T21: =S21*T20 -> 0 | U21: =S21*U20 -> 0 | V21: =J82 -> 0 | W21: =V21*W20 -> 0 | X21: =V21*X20 -> 0 | Y21: =K82 -> 0 | Z21: =Y21*Z20 -> 0 | AA21: =Y21*AA20 -> 0 | AB21: =L82 -> 0 | AC21: =AB21*AC20 -> 0 | AD21: =AB21*AD20 -> 0
A22: Incremental OM&A (on-going, N/A for Provincial Recovery) | D22: ='App.2-FA Proposed REG Invest.'!C101 -> 0 | E22: =D22 -> 0 | G22: ='App.2-FA Proposed REG Invest.'!D$101 -> 0 | H22: =G22 -> 0 | J22: ='App.2-FA Proposed REG Invest.'!E$101 -> 0 | K22: =J22 -> 0 | M22: ='App.2-FA Proposed REG Invest.'!F$101 -> 0 | N22: =M22 -> 0 | P22: ='App.2-FA Proposed REG Invest.'!G$101 -> 0 | Q22: =P22 -> 0 | S22: ='App.2-FA Proposed REG Invest.'!H$101 -> 0 | T22: =S22 -> 0 | V22: ='App.2-FA Proposed REG Invest.'!I$101 -> 0 | W22: =V22 -> 0 | Y22: ='App.2-FA Proposed REG Invest.'!J$101 -> 0 | Z22: =Y22 -> 0 | AB22: ='App.2-FA Proposed REG Invest.'!K$101 -> 0 | AC22: =AB22 -> 0
A23: Incremental OM&A (start-up, applicable for Provincial Recovery) | D23: ='App.2-FA Proposed REG Invest.'!C100 -> 0 | E23: =D23*E20 -> 0 | F23: =D23*F20 -> 0 | G23: ='App.2-FA Proposed REG Invest.'!D$100 -> 0 | H23: =G23*H20 -> 0 | I23: =G23*I20 -> 0 | J23: ='App.2-FA Proposed REG Invest.'!E$100 -> 0 | K23: =J23*K20 -> 0 | L23: =J23*L20 -> 0 | M23: ='App.2-FA Proposed REG Invest.'!F$100 -> 0 | N23: =M23*N20 -> 0 | O23: =M23*O20 -> 0 | P23: ='App.2-FA Proposed REG Invest.'!G$100 -> 0 | Q23: =P23*Q20 -> 0 | R23: =P23*R20 -> 0 | S23: ='App.2-FA Proposed REG Invest.'!H$100 -> 0 | T23: =S23*T20 -> 0 | U23: =S23*U20 -> 0 | V23: ='App.2-FA Proposed REG Invest.'!I$100 -> 0 | W23: =V23*W20 -> 0 | X23: =V23*X20 -> 0 | Y23: ='App.2-FA Proposed REG Invest.'!J$100 -> 0 | Z23: =Y23*Z20 -> 0 | AA23: =Y23*AA20 -> 0 | AB23: ='App.2-FA Proposed REG Invest.'!K$100 -> 0 | AC23: =AB23*AC20 -> 0 | AD23: =AB23*AD20 -> 0
A24: WCA | E24: =(E22+E23)*$B$24 -> 0 | F24: =F23*$B$24 -> 0 | H24: =(H22+H23)*$B$24 -> 0 | I24: =I23*$B$24 -> 0 | K24: =(K22+K23)*$B$24 -> 0 | L24: =L23*$B$24 -> 0 | N24: =(N22+N23)*$B$24 -> 0 | O24: =O23*$B$24 -> 0 | Q24: =(Q22+Q23)*$B$24 -> 0 | R24: =R23*$B$24 -> 0 | T24: =(T22+T23)*$B$24 -> 0 | U24: =U23*$B$24 -> 0 | W24: =(W22+W23)*$B$24 -> 0 | X24: =X23*$B$24 -> 0 | Z24: =(Z22+Z23)*$B$24 -> 0 | AA24: =AA23*$B$24 -> 0 | AC24: =(AC22+AC23)*$B$24 -> 0 | AD24: =AD23*$B$24 -> 0
A25: Rate Base | E25: =SUM(E21+E24) -> 0 | F25: =SUM(F21+F24) -> 0 | H25: =SUM(H21+H24) -> 0 | I25: =SUM(I21+I24) -> 0 | K25: =SUM(K21+K24) -> 0 | L25: =SUM(L21+L24) -> 0 | N25: =SUM(N21+N24) -> 0 | O25: =SUM(O21+O24) -> 0 | Q25: =SUM(Q21+Q24) -> 0 | R25: =SUM(R21+R24) -> 0 | T25: =SUM(T21+T24) -> 0 | U25: =SUM(U21+U24) -> 0 | W25: =SUM(W21+W24) -> 0 | X25: =SUM(X21+X24) -> 0 | Z25: =SUM(Z21+Z24) -> 0 | AA25: =SUM(AA21+AA24) -> 0 | AC25: =SUM(AC21+AC24) -> 0 | AD25: =SUM(AD21+AD24) -> 0
A28: Deemed ST Debt | E28: =E25*$B$28 -> 0 | F28: =F25*$B$28 -> 0 | H28: =H25*$B$28 -> 0 | I28: =I25*$B$28 -> 0 | K28: =K25*$B$28 -> 0 | L28: =L25*$B$28 -> 0 | N28: =N25*$B$28 -> 0 | O28: =O25*$B$28 -> 0 | Q28: =Q25*$B$28 -> 0 | R28: =R25*$B$28 -> 0 | T28: =T25*$B$28 -> 0 | U28: =U25*$B$28 -> 0 | W28: =W25*$B$28 -> 0 | X28: =X25*$B$28 -> 0 | Z28: =Z25*$B$28 -> 0 | AA28: =AA25*$B$28 -> 0 | AC28: =AC25*$B$28 -> 0 | AD28: =AD25*$B$28 -> 0
A29: Deemed LT Debt | E29: =E25*$B$29 -> 0 | F29: =F25*$B$29 -> 0 | H29: =H25*$B$29 -> 0 | I29: =I25*$B$29 -> 0 | K29: =K25*$B$29 -> 0 | L29: =L25*$B$29 -> 0 | N29: =N25*$B$29 -> 0 | O29: =O25*$B$29 -> 0 | Q29: =Q25*$B$29 -> 0 | R29: =R25*$B$29 -> 0 | T29: =T25*$B$29 -> 0 | U29: =U25*$B$29 -> 0 | W29: =W25*$B$29 -> 0 | X29: =X25*$B$29 -> 0 | Z29: =Z25*$B$29 -> 0 | AA29: =AA25*$B$29 -> 0 | AC29: =AC25*$B$29 -> 0 | AD29: =AD25*$B$29 -> 0
A30: Deemed Equity | E30: =E25*$B$30 -> 0 | F30: =F25*$B$30 -> 0 | H30: =H25*$B$30 -> 0 | I30: =I25*$B$30 -> 0 | K30: =K25*$B$30 -> 0 | L30: =L25*$B$30 -> 0 | N30: =N25*$B$30 -> 0 | O30: =O25*$B$30 -> 0 | Q30: =Q25*$B$30 -> 0 | R30: =R25*$B$30 -> 0 | T30: =T25*$B$30 -> 0 | U30: =U25*$B$30 -> 0 | W30: =W25*$B$30 -> 0 | X30: =X25*$B$30 -> 0 | Z30: =Z25*$B$30 -> 0 | AA30: =AA25*$B$30 -> 0 | AC30: =AC25*$B$30 -> 0 | AD30: =AD25*$B$30 -> 0
A32: ST Interest | E32: =E28*$B$32 -> 0 | F32: =F28*$B$32 -> 0 | H32: =H28*$B$32 -> 0 | I32: =I28*$B$32 -> 0 | K32: =K28*$B$32 -> 0 | L32: =L28*$B$32 -> 0 | N32: =N28*$B$32 -> 0 | O32: =O28*$B$32 -> 0 | Q32: =Q28*$B$32 -> 0 | R32: =R28*$B$32 -> 0 | T32: =T28*$B$32 -> 0 | U32: =U28*$B$32 -> 0 | W32: =W28*$B$32 -> 0 | X32: =X28*$B$32 -> 0 | Z32: =Z28*$B$32 -> 0 | AA32: =AA28*$B$32 -> 0 | AC32: =AC28*$B$32 -> 0 | AD32: =AD28*$B$32 -> 0
A33: LT Interest | E33: =E29*$B$33 -> 0 | F33: =F29*$B$33 -> 0 | H33: =H29*$B$33 -> 0 | I33: =I29*$B$33 -> 0 | K33: =K29*$B$33 -> 0 | L33: =L29*$B$33 -> 0 | N33: =N29*$B$33 -> 0 | O33: =O29*$B$33 -> 0 | Q33: =Q29*$B$33 -> 0 | R33: =R29*$B$33 -> 0 | T33: =T29*$B$33 -> 0 | U33: =U29*$B$33 -> 0 | W33: =W29*$B$33 -> 0 | X33: =X29*$B$33 -> 0 | Z33: =Z29*$B$33 -> 0 | AA33: =AA29*$B$33 -> 0 | AC33: =AC29*$B$33 -> 0 | AD33: =AD29*$B$33 -> 0
A34: ROE | E34: =E30*$B$34 -> 0 | F34: =F30*$B$34 -> 0 | H34: =H30*$B$34 -> 0 | I34: =I30*$B$34 -> 0 | K34: =K30*$B$34 -> 0 | L34: =L30*$B$34 -> 0 | N34: =N30*$B$34 -> 0 | O34: =O30*$B$34 -> 0 | Q34: =Q30*$B$34 -> 0 | R34: =R30*$B$34 -> 0 | T34: =T30*$B$34 -> 0 | U34: =U30*$B$34 -> 0 | W34: =W30*$B$34 -> 0 | X34: =X30*$B$34 -> 0 | Z34: =Z30*$B$34 -> 0 | AA34: =AA30*$B$34 -> 0 | AC34: =AC30*$B$34 -> 0 | AD34: =AD30*$B$34 -> 0
A35: Cost of Capital Total | E35: =SUM(E32:E34) -> 0 | F35: =SUM(F32:F34) -> 0 | H35: =SUM(H32:H34) -> 0 | I35: =SUM(I32:I34) -> 0 | K35: =SUM(K32:K34) -> 0 | L35: =SUM(L32:L34) -> 0 | N35: =SUM(N32:N34) -> 0 | O35: =SUM(O32:O34) -> 0 | Q35: =SUM(Q32:Q34) -> 0 | R35: =SUM(R32:R34) -> 0 | T35: =SUM(T32:T34) -> 0 | U35: =SUM(U32:U34) -> 0 | W35: =SUM(W32:W34) -> 0 | X35: =SUM(X32:X34) -> 0 | Z35: =SUM(Z32:Z34) -> 0 | AA35: =SUM(AA32:AA34) -> 0 | AC35: =SUM(AC32:AC34) -> 0 | AD35: =SUM(AD32:AD34) -> 0
A37: OM&A | E37: =E22+E23 -> 0 | F37: =F23 -> 0 | H37: =H22+H23 -> 0 | I37: =I23 -> 0 | K37: =K22+K23 -> 0 | L37: =L23 -> 0 | N37: =N22+N23 -> 0 | O37: =O23 -> 0 | Q37: =Q22+Q23 -> 0 | R37: =R23 -> 0 | T37: =T22+T23 -> 0 | U37: =U23 -> 0 | W37: =W22+W23 -> 0 | X37: =X23 -> 0 | Z37: =Z22+Z23 -> 0 | AA37: =AA23 -> 0 | AC37: =AC22+AC23 -> 0 | AD37: =AD23 -> 0
A38: Amortization | D38: =D78 -> 0 | E38: =D38*E$20 -> 0 | F38: =D38*F$20 -> 0 | G38: =E78 -> 0 | H38: =G38*H$20 -> 0 | I38: =G38*I$20 -> 0 | J38: =F78 -> 0 | K38: =J38*K$20 -> 0 | L38: =J38*L$20 -> 0 | M38: =G78 -> 0 | N38: =M38*N$20 -> 0 | O38: =M38*O$20 -> 0 | P38: =H76+H77 -> 0 | Q38: =P38*Q$20 -> 0 | R38: =P38*R$20 -> 0 | S38: =I76+I77 -> 0 | T38: =S38*T$20 -> 0 | U38: =S38*U$20 -> 0 | V38: =J76+J77 -> 0 | W38: =V38*W$20 -> 0 | X38: =V38*X$20 -> 0 | Y38: =K76+K77 -> 0 | Z38: =Y38*Z$20 -> 0 | AA38: =Y38*AA$20 -> 0 | AB38: =L76+L77 -> 0 | AC38: =AB38*AC$20 -> 0 | AD38: =AB38*AD$20 -> 0
A39: Grossed-up PILs | E39: =E66 -> 0 | F39: =F66 -> 0 | H39: =H66 -> 0 | I39: =I66 -> 0 | K39: =K66 -> 0 | L39: =L66 -> 0 | N39: =N66 -> 0 | O39: =O66 -> 0 | Q39: =Q66 -> 0 | R39: =R66 -> 0 | T39: =T66 -> 0 | U39: =U66 -> 0 | W39: =W66 -> 0 | X39: =X66 -> 0 | Z39: =Z66 -> 0 | AA39: =AA66 -> 0 | AC39: =AC66 -> 0 | AD39: =AD66 -> 0
A41: Revenue Requirement | E41: =SUM(E35:E39) -> 0 | F41: =SUM(F35:F39) -> 0 | H41: =SUM(H35:H39) -> 0 | I41: =SUM(I35:I39) -> 0 | K41: =SUM(K35:K39) -> 0 | L41: =SUM(L35:L39) -> 0 | N41: =SUM(N35:N39) -> 0 | O41: =SUM(O35:O39) -> 0 | Q41: =SUM(Q35:Q39) -> 0 | R41: =SUM(R35:R39) -> 0 | T41: =SUM(T35:T39) -> 0 | U41: =SUM(U35:U39) -> 0 | W41: =SUM(W35:W39) -> 0 | X41: =SUM(X35:X39) -> 0 | Z41: =SUM(Z35:Z39) -> 0 | AA41: =SUM(AA35:AA39) -> 0 | AC41: =SUM(AC35:AC39) -> 0 | AD41: =SUM(AD35:AD39) -> 0
A44: Provincial Rate Protection | F44: =F41 -> 0 | I44: =I41 -> 0 | L44: =L41 -> 0 | O44: =O41 -> 0 | R44: =R41 -> 0 | U44: =U41 -> 0 | X44: =X41 -> 0 | AA44: =AA41 -> 0 | AD44: =AD41 -> 0
A46: Monthly Amount Paid by IESO | F46: =F44/12 -> 0 | I46: =I44/12 -> 0 | L46: =L44/12 -> 0 | O46: =O44/12 -> 0 | R46: =R44/12 -> 0 | U46: =U44/12 -> 0 | X46: =X44/12 -> 0 | AA46: =AA44/12 -> 0 | AD46: =AD44/12 -> 0
A48: Note 1: The difference between the actual costs of approved eligible investments and revenue received from the IESO should be recorded in a variance account. The Board may provide
A49: regulatory accounting guidance regarding a variance account either in an individual proceeding or on a generic basis.
A50: Note 2: For the 2016 Test Year, Costs and Revenues of the Direct Benefit are to be included in the test year applicant Rate Base and Revenues.
A52: PILs Calculation
E53: =D18 -> 2014 | H53: =G18 -> 2015 | K53: =J18 -> 2016 | N53: =M18 -> 2017 | Q53: =P18 -> 2018 Test Year | T53: =S18 -> 2019 | W53: =V18 -> 2020 | Z53: =Y18 -> 2021 | AC53: =AB18 -> 2022
A54: Income Tax | E54: Direct Benefit | F54: Provincial | H54: Direct Benefit | I54: Provincial | K54: Direct Benefit | L54: Provincial | N54: Direct Benefit | O54: Provincial | Q54: Direct Benefit | R54: Provincial | T54: Direct Benefit | U54: Provincial | W54: Direct Benefit | X54: Provincial | Z54: Direct Benefit | AA54: Provincial | AC54: Direct Benefit | AD54: Provincial
V55: Total | Y55: Total | AB55: Total
A56: Net Income - ROE on Rate Base | E56: =E34 -> 0 | F56: =F34 -> 0 | H56: =H34 -> 0 | I56: =I34 -> 0 | K56: =K34 -> 0 | L56: =L34 -> 0 | N56: =N34 -> 0 | O56: =O34 -> 0 | Q56: =Q34 -> 0 | R56: =R34 -> 0 | T56: =T34 -> 0 | U56: =U34 -> 0 | W56: =W34 -> 0 | X56: =X34 -> 0 | Z56: =Z34 -> 0 | AA56: =AA34 -> 0 | AC56: =AC34 -> 0 | AD56: =AD34 -> 0
A57: Amortization (17% DB and 83% P) | E57: =E38 -> 0 | F57: =F38 -> 0 | H57: =H38 -> 0 | I57: =I38 -> 0 | K57: =K38 -> 0 | L57: =L38 -> 0 | N57: =N38 -> 0 | O57: =O38 -> 0 | Q57: =Q38 -> 0 | R57: =R38 -> 0 | T57: =T38 -> 0 | U57: =U38 -> 0 | W57: =W38 -> 0 | X57: =X38 -> 0 | Z57: =Z38 -> 0 | AA57: =AA38 -> 0 | AC57: =AC38 -> 0 | AD57: =AD38 -> 0
A58: CCA (17% DB and 83% P) | E58: =-D94*E$20 -> 0 | F58: =-D94*F$20 -> 0 | H58: =-E94*H$20 -> 0 | I58: =-E94*I$20 -> 0 | K58: =-F94*K$20 -> 0 | L58: =-F94*L$20 -> 0 | N58: =-G94*N$20 -> 0 | O58: =-G94*O$20 -> 0 | Q58: =-H94*Q$20 -> 0 | R58: =-H94*R$20 -> 0 | T58: =-I94*T$20 -> 0 | U58: =-I94*U$20 -> 0 | W58: =-J94*W$20 -> 0 | X58: =-J94*X$20 -> 0 | Z58: =-K94*Z$20 -> 0 | AA58: =-K94*AA$20 -> 0 | AC58: =-L94*AC$20 -> 0 | AD58: =-L94*AD$20 -> 0
A59: Taxable income | E59: =SUM(E56:E58) -> 0 | F59: =SUM(F56:F58) -> 0 | H59: =SUM(H56:H58) -> 0 | I59: =SUM(I56:I58) -> 0 | K59: =SUM(K56:K58) -> 0 | L59: =SUM(L56:L58) -> 0 | N59: =SUM(N56:N58) -> 0 | O59: =SUM(O56:O58) -> 0 | Q59: =SUM(Q56:Q58) -> 0 | R59: =SUM(R56:R58) -> 0 | T59: =SUM(T56:T58) -> 0 | U59: =SUM(U56:U58) -> 0 | W59: =SUM(W56:W58) -> 0 | X59: =SUM(X56:X58) -> 0 | Z59: =SUM(Z56:Z58) -> 0 | AA59: =SUM(AA56:AA58) -> 0 | AC59: =SUM(AC56:AC58) -> 0 | AD59: =SUM(AD56:AD58) -> 0
A61: Tax Rate (to be entered)
A63: Income Taxes Payable | E63: =E59*E61 -> 0 | F63: =F59*F61 -> 0 | H63: =H59*H61 -> 0 | I63: =I59*I61 -> 0 | K63: =K59*K61 -> 0 | L63: =L59*L61 -> 0 | N63: =N59*N61 -> 0 | O63: =O59*O61 -> 0 | Q63: =Q59*Q61 -> 0 | R63: =R59*R61 -> 0 | T63: =T59*T61 -> 0 | U63: =U59*U61 -> 0 | W63: =W59*W61 -> 0 | X63: =X59*X61 -> 0 | Z63: =Z59*Z61 -> 0 | AA63: =AA59*AA61 -> 0 | AC63: =AC59*AC61 -> 0 | AD63: =AD59*AD61 -> 0
A64: Gross Up
A65: Income Taxes Payable | E65: =E63/(1-E61) -> 0 | F65: =F63/(1-F61) -> 0 | H65: =H63/(1-H61) -> 0 | I65: =I63/(1-I61) -> 0 | K65: =K63/(1-K61) -> 0 | L65: =L63/(1-L61) -> 0 | N65: =N63/(1-N61) -> 0 | O65: =O63/(1-O61) -> 0 | Q65: =Q63/(1-Q61) -> 0 | R65: =R63/(1-R61) -> 0 | T65: =T63/(1-T61) -> 0 | U65: =U63/(1-U61) -> 0 | W65: =W63/(1-W61) -> 0 | X65: =X63/(1-X61) -> 0 | Z65: =Z63/(1-Z61) -> 0 | AA65: =AA63/(1-AA61) -> 0 | AC65: =AC63/(1-AC61) -> 0 | AD65: =AD63/(1-AD61) -> 0
A66: Grossed Up PILs | E66: =SUM(E65:E65) -> 0 | F66: =SUM(F65:F65) -> 0 | H66: =SUM(H65:H65) -> 0 | I66: =SUM(I65:I65) -> 0 | K66: =SUM(K65:K65) -> 0 | L66: =SUM(L65:L65) -> 0 | N66: =SUM(N65:N65) -> 0 | O66: =SUM(O65:O65) -> 0 | Q66: =SUM(Q65:Q65) -> 0 | R66: =SUM(R65:R65) -> 0 | T66: =SUM(T65:T65) -> 0 | U66: =SUM(U65:U65) -> 0 | W66: =SUM(W65:W65) -> 0 | X66: =SUM(X65:X65) -> 0 | Z66: =SUM(Z65:Z65) -> 0 | AA66: =SUM(AA65:AA65) -> 0 | AC66: =SUM(AC65:AC65) -> 0 | AD66: =SUM(AD65:AD65) -> 0
A69: Net Fixed Assets | D69: 2011 | E69: 2012 | F69: 2013 | G69: 2014 | H69: 2015 | I69: 2016 | J69: 2017 | K69: 2018 | L69: 2019
B70: Enter applicable amortization in years: | C70: 25
A71: Opening Gross Fixed Assets | E71: =D73 -> 0 | F71: 0 | G71: 0 | H71: 0 | I71: 0 | J71: 0 | K71: 0 | L71: 0
A72: Gross Capital Additions | D72: ='App.2-FA Proposed REG Invest.'!C99 -> 0 | E72: ='App.2-FA Proposed REG Invest.'!D99 -> 0 | F72: ='App.2-FA Proposed REG Invest.'!E99 -> 0 | G72: ='App.2-FA Proposed REG Invest.'!F99 -> 0 | H72: ='App.2-FA Proposed REG Invest.'!G99 -> 0 | I72: ='App.2-FA Proposed REG Invest.'!H99 -> 0 | J72: ='App.2-FA Proposed REG Invest.'!I99 -> 0 | K72: ='App.2-FA Proposed REG Invest.'!J99 -> 0 | L72: ='App.2-FA Proposed REG Invest.'!K99 -> 0
A73: Closing Gross Fixed Assets | D73: =SUM(D71:D72) -> 0 | E73: 0 | F73: 0 | G73: 0 | H73: 0 | I73: 0 | J73: 0 | K73: 0 | L73: 0
A75: Opening Accumulated Amortization | E75: =+D78 -> 0 | F75: =E78 -> 0 | G75: 0 | H75: 0 | I75: 0 | J75: 0 | K75: 0 | L75: 0
A76: Current Year Amortization (before additions) | E76: =IF(ISERROR(E71/$C$70), 0, E71/$C$70) -> 0 | F76: =IF(ISERROR(F71/$C$70), 0, F71/$C$70) -> 0 | G76: =IF(ISERROR(G71/$C$70), 0, G71/$C$70) -> 0 | H76: =H71/$C$70 -> 0 | I76: =I71/$C$70 -> 0 | J76: =J71/$C$70 -> 0 | K76: =K71/$C$70 -> 0 | L76: =L71/$C$70 -> 0
A77: Additions (half year) | D77: =D72/C70/2 -> 0 | E77: =E72/C70/2 -> 0 | F77: =F72/C70/2 -> 0 | G77: =G72/C70/2 -> 0 | H77: =H72/C70/2 -> 0 | I77: =I72/C70/2 -> 0 | J77: =J72/C70/2 -> 0 | K77: =K72/C70/2 -> 0 | L77: =L72/C70/2 -> 0
A78: Closing Accumulated Amortization | D78: =SUM(D75+D77) -> 0 | E78: =SUM(E75:E77) -> 0 | F78: 0 | G78: 0 | H78: 0 | I78: 0 | J78: 0 | K78: 0 | L78: 0
A80: Opening Net Fixed Assets | D80: =D71-D75 -> 0 | E80: =E71-E75 -> 0 | F80: =F71-F75 -> 0 | G80: =G71-G75 -> 0 | H80: =G81 -> 0 | I80: =H81 -> 0 | J80: =I81 -> 0 | K80: =J81 -> 0 | L80: =K81 -> 0
A81: Closing Net Fixed Assets | D81: =D73-D78 -> 0 | E81: 0 | F81: 0 | G81: 0 | H81: 0 | I81: 0 | J81: 0 | K81: 0 | L81: 0
A82: Average Net Fixed Assets | D82: =SUM(D80:D81)/2 -> 0 | E82: 0 | F82: 0 | G82: 0 | H82: 0 | I82: 0 | J82: 0 | K82: 0 | L82: 0
A84: UCC for PILs Calculation
D85: 2014 | E85: 2014 | F85: 2014 | G85: 2014 | H85: 2015 | I85: 2016 | J85: 2017 | K85: 2018 | L85: 2019
A87: Opening UCC | E87: =D95 -> 0 | F87: 0 | G87: 0 | H87: 0 | I87: 0 | J87: 0 | K87: 0 | L87: 0
A88: Capital Additions (from Appendix 2-FA) | D88: =D72 -> 0 | E88: 0 | F88: 0 | G88: 0 | H88: 0 | I88: 0 | J88: 0 | K88: 0 | L88: 0
A89: UCC Before Half Year Rule | D89: =SUM(D87:D88) -> 0 | E89: 0 | F89: 0 | G89: 0 | H89: 0 | I89: 0 | J89: 0 | K89: 0 | L89: 0
A90: Half Year Rule (1/2 Additions - Disposals) | D90: =D88/2 -> 0 | E90: 0 | F90: 0 | G90: 0 | H90: 0 | I90: 0 | J90: 0 | K90: 0 | L90: 0
A91: Reduced UCC | D91: =D89-D90 -> 0 | E91: 0 | F91: 0 | G91: 0 | H91: 0 | I91: 0 | J91: 0 | K91: 0 | L91: 0
A92: CCA Rate Class (to be entered) | C92: 47 | D92: =$C$92 -> 47 | E92: =$C$92 -> 47 | F92: 47 | G92: 47 | H92: 47 | I92: 47 | J92: 47 | K92: 47 | L92: 47
A93: CCA Rate (to be entered) | C93: 0.08 | D93: =$C$93 -> 0.08 | E93: =$C$93 -> 0.08 | F93: 0.08 | G93: 0.08 | H93: 0.08 | I93: 0.08 | J93: 0.08 | K93: 0.08 | L93: 0.08
A94: CCA | D94: =D91*D$93 -> 0 | E94: 0 | F94: 0 | G94: 0 | H94: 0 | I94: 0 | J94: 0 | K94: 0 | L94: 0
A95: Closing UCC | D95: =D89-D94 -> 0 | E95: 0 | F95: 0 | G95: 0 | H95: 0 | I95: 0 | J95: 0 | K95: 0 | L95: 0

Sheet App.2-G SQI
M1: File Number: | O1: =EBNUMBER -> EB-2017-0038
M2: Exhibit: | O2: 2
M3: Tab: | O3: 7
M4: Schedule:
M5: Page: | O5: 66
M7: Date: | O7: February 26, 2018
A9: Appendix 2-G
A10: Service Reliability and Quality Indicators
A11: 2012-2016
A13: Service Reliability
A15: Index | B15: Including outages caused by loss of supply | G15: Excluding outages caused by loss of supply | L15: Excluding Major Event Days
B16: =TestYear-6 -> 2012 | C16: =TestYear-5 -> 2013 | D16: =TestYear-4 -> 2014 | E16: =TestYear-3 -> 2015 | F16: =TestYear-2 -> 2016 | G16: =B16 -> 2012 | H16: 2013 | I16: 2014 | J16: 2015 | K16: 2016 | L16: 2012 | M16: 2013 | N16: 2014 | O16: 2015 | P16: 2016
A17: SAIDI | B17: 2.56 | C17: 1.23 | D17: 2.21 | E17: 3.85 | F17: 3.96 | G17: 1.47 | H17: 0.41 | I17: 0.59 | J17: 0.73 | K17: 1.88 | L17: 1.47 | M17: 0.41 | N17: 0.59 | O17: 0.73 | P17: 3
A18: SAIFI | B18: 0.82 | C18: 0.51 | D18: 0.91 | E18: 1.05 | F18: 1.13 | G18: 0.31 | H18: 0.2 | I18: 0.3 | J18: 0.48 | K18: 0.47 | L18: 0.31 | M18: 0.2 | N18: 0.3 | O18: 0.48 | P18: 0.74
A20: 5 Year Historical Average
A21: SAIDI | F21: =IF(ISERROR(AVERAGE(B17:F17)), "", AVERAGE(B17:F17)) -> 2.762 | K21: =IF(ISERROR(AVERAGE(G17:K17)), "", AVERAGE(G17:K17)) -> 1.016 | P21: =IF(ISERROR(AVERAGE(L17:P17)), "", AVERAGE(L17:P17)) -> 1.24
A22: SAIFI | F22: =IF(ISERROR(AVERAGE(B18:F18)), "", AVERAGE(B18:F18)) -> 0.884 | K22: =IF(ISERROR(AVERAGE(G18:K18)), "", AVERAGE(G18:K18)) -> 0.352 | P22: =IF(ISERROR(AVERAGE(L18:P18)), "", AVERAGE(L18:P18)) -> 0.406
A24: SAIDI = System Average Interruption Duration Index
A25: SAIFI = System Average Interruption Frequency Index
A27: Service Quality
A29: Indicator | E29: OEB Minimum Standard | G29: =B16 -> 2012 | H29: =C16 -> 2013 | I29: =D16 -> 2014 | J29: =E16 -> 2015 | K29: =F16 -> 2016
A30: Low Voltage Connections | E30: 0.9 | G30: 0.988 | H30: 0.988 | I30: 0.994 | J30: 0.984 | K30: 0.996
A31: High Voltage Connections | E31: 0.9 | G31: n/a | H31: n/a | I31: n/a | J31: n/a | K31: n/a
A32: Telephone Accessibility | E32: 0.65 | G32: 0.946 | H32: 0.958 | I32: 0.955 | J32: 0.984 | K32: 0.984
A33: Appointments Met | E33: 0.9 | G33: 1 | H33: 1 | I33: 1 | J33: 1 | K33: 1
A34: Written Response to Enquires | E34: 0.8 | G34: 1 | H34: 0.988 | I34: 0.986 | J34: 1 | K34: 1
A35: Emergency Urban Response | E35: 0.8 | G35: 0.905 | H35: 1 | I35: 1 | J35: 1 | K35: 1
A36: Emergency Rural Response | E36: 0.8 | G36: n/a | H36: n/a | I36: n/a | J36: n/a | K36: n/a
A37: Telephone Call Abandon Rate | E37: 0.1 | G37: 0.062 | H37: 0.042 | I37: 0.044 | J37: 0.016 | K37: 0.016
A38: Appointment Scheduling | E38: 0.9 | G38: 1 | H38: 1 | I38: 0.945 | J38: 0.958 | K38: 0.992
A39: Rescheduling a Missed Appointment | E39: 1 | G39: 0 | H39: 0 | I39: 0 | J39: 0 | K39: 0 | L39: **no missed appointments so none needed to be rescheduled
A40: Reconnection Performance Standard | E40: 0.85 | G40: 1 | H40: 1 | I40: 1 | J40: 1 | K40: 1

Sheet App.2-H_Other_Oper_Rev
H1: File Number: | I1: =EBNUMBER -> EB-2017-0038
H2: Exhibit: | I2: 3
H3: Tab: | I3: 3
H4: Schedule:
H5: Page: | I5: 16
H7: Date: | I7: February 26, 2018
A9: Appendix 2-H
A10: Other Operating Revenue
A12: USoA # | B12: USoA Description | C12: =G13-3 & " Actual" & CHAR(178) -> 2013 Actual² | D12: 2014 Actuals | F12: =F13 & " Actual" & CHAR(178) -> 2015 Actual² | G12: ="Actual Year" -> Actual Year | H12: ="Bridge Year" -> Bridge Year | I12: Test Year
C13: 2013 | D13: 2014 CGAAP | E13: 2014 MIFRS | F13: =G13-1 -> 2015 | G13: =H13-1 -> 2016 | H13: =BridgeYear -> 2017 | I13: =TestYear -> 2018
B14: Reporting Basis
A15: 4235 | B15: Specific Service Charges | C15: =SUM([16]Sheet1!$G$9:$G$10) -> 113884.98 | D15: =SUM([16]Sheet1!$H$9:$H$10) -> 113765 | E15: =D15 -> 113765 | F15: =SUM([16]Sheet1!$I$9:$I$10) -> 103720 | G15: =SUM([16]Sheet1!$J$9:$J$10) -> 105040 | H15: =SUM([16]Sheet1!$D$9:$D$10) -> 87100 | I15: =SUM([16]Sheet1!$E$9:$E$10) -> 98161.7
A16: 4225 | B16: Late Payment Charges | C16: =[16]Sheet1!$G$8 -> 117341.67 | D16: =[16]Sheet1!$H$8 -> 109434.71 | E16: =D16 -> 109434.71 | F16: =[16]Sheet1!$I$8 -> 112833.85 | G16: =[16]Sheet1!$J$8 -> 134656.29 | H16: =[16]Sheet1!$D$8 -> 138977.92 | I16: 145947
A17: 4082 | B17: Retail Services Revenues | C17: =[16]Sheet1!$G$4 -> 16279.5 | D17: =[16]Sheet1!$H$4 -> 14815 | E17: =D17 -> 14815 | F17: =[16]Sheet1!$I$4 -> 18983 | G17: =[16]Sheet1!$J$4 -> 14779 | H17: =[16]Sheet1!$D$4 -> 13067 | I17: =[16]Sheet1!$E$4 -> 14726.509
A18: etc.
A23: Specific Service Charges | C23: =C15 -> 113884.98 | D23: 113765 | E23: 113765 | F23: 103720 | G23: 105040 | H23: 87100 | I23: =I15 -> 98161.7
A24: Late Payment Charges | C24: =C16 -> 117341.67 | D24: 109434.71 | E24: 109434.71 | F24: 112833.85 | G24: 134656.29 | H24: 138977.92 | I24: =I16 -> 145947
A25: Other Operating Revenues | C25: =455405-C23-C24-C26 -> 201274.35 | D25: =454285-D23-D24-D26 -> 190335.29 | E25: =D25 -> 190335.29 | F25: =469723-F23-F24-F26 -> 216541.15 | G25: =556582-G23-G24-G26 -> 252085.71 | H25: =454735-H23-H24-H26 -> 210965.08 | I25: =494448-I23-I24-I26 -> 230879.3
A26: Other Income or Deductions | C26: 22904 | D26: 40750 | E26: =D26 -> 40750 | F26: 36628 | G26: 64800 | H26: 17692 | I26: 19460
A27: Total | C27: =SUM(C23:C26) -> 455405 | D27: 454285 | E27: 454285 | F27: 469723 | G27: 556582 | H27: 454735 | I27: 494448
A29: Description | C29: Account(s)
A30: Specific Service Charges: | C30: 4235
A31: Late Payment Charges: | C31: 4225
A32: Other Distribution Revenues: | C32: 4080, 4082, 4084, 4090, 4205, 4210, 4215, 4220, 4240, 4245
A33: Other Income and Expenses: | C33: 4305, 4310, 4315, 4320, 4325, 4330, 4335, 4340, 4345, 4350, 4355, 4360, 4365, 4370, 4375, 4380, 4385, 4390, 4395, 4398, 4405, 4415
A36: Note: Add all applicable accounts listed above to the table and include all relevant information.
A38: Account Breakdown Details
A40: For each "Other Operating Revenue" and "Other Income or Deductions" Account, a detailed breakdown of the account components is required. See the example below for Account 4405, Interest and Dividend Income.
C44: =G45-3 & " Actual" & CHAR(178) -> 2013 Actual² | D44: 2014 Actuals | F44: =F45 & " Actual" & CHAR(178) -> 2015 Actual² | G44: ="Actual Year" -> Actual Year | H44: ="Bridge Year" -> Bridge Year | I44: Test Year
C45: 2013 | D45: 2014 CGAAP | E45: 2014 MIFRS | F45: =G45-1 -> 2015 | G45: =H45-1 -> 2016 | H45: =BridgeYear -> 2017 | I45: =TestYear -> 2018
A46: Reporting Basis
A47: SSS ADMIN CHG RESIDENTL | C47: 64324.06 | D47: 6426.17 | E47: 64246.17 | F47: 64288.31 | G47: 66018.63 | H47: 57503.46 | I47: 57928.83
A52: Total | C52: =SUM(C47:C51) -> 64324.06 | D52: 6426.17 | E52: 64246.17 | F52: 64288.31 | G52: 66018.63 | H52: 57503.46 | I52: 57928.83
A55: Notes:
A56: 1 | B56: List and specify any other interest revenue.
A57: 2 | B57: In the transition year to IFRS, the applicant is to present information in both MIFRS and CGAAP. For the typical applicant that adopted IFRS on January 1, 2015, 2014 must be presented in both a CGAAP and MIFRS basis.
C60: =G61-3 & " Actual" & CHAR(178) -> 2013 Actual² | D60: 2014 Actuals | F60: =F61 & " Actual" & CHAR(178) -> 2015 Actual² | G60: ="Actual Year" -> Actual Year | H60: ="Bridge Year" -> Bridge Year | I60: Test Year
C61: 2013 | D61: 2014 CGAAP | E61: 2014 MIFRS | F61: =G61-1 -> 2015 | G61: =H61-1 -> 2016 | H61: =BridgeYear -> 2017 | I61: =TestYear -> 2018
A62: Reporting Basis
A63: RETAIL SERVCE REV-RETAIL | C63: =[16]Sheet1!$G$4 -> 16279.5 | D63: =[16]Sheet1!$H$4 -> 14815 | E63: =[16]Sheet1!$H$4 -> 14815 | F63: =[16]Sheet1!$I$4 -> 18983 | G63: =[16]Sheet1!$J$4 -> 14779 | H63: =[16]Sheet1!$D$4 -> 13067 | I63: =[16]Sheet1!$E$4 -> 14726.509
A68: Total | C68: =SUM(C63:C67) -> 16279.5 | D68: 14815 | E68: 14815 | F68: 18983 | G68: 14779 | H68: 13067 | I68: 14726.509
A73: Notes:
A74: 1 | B74: List and specify any other interest revenue.
A75: 2 | B75: In the transition year to IFRS, the applicant is to present information in both MIFRS and CGAAP. For the typical applicant that adopted IFRS on January 1, 2015, 2014 must be presented in both a CGAAP and MIFRS basis.
C79: =G80-3 & " Actual" & CHAR(178) -> 2013 Actual² | D79: 2014 Actuals | F79: =F80 & " Actual" & CHAR(178) -> 2015 Actual² | G79: ="Actual Year" -> Actual Year | H79: ="Bridge Year" -> Bridge Year | I79: Test Year
C80: 2013 | D80: 2014 CGAAP | E80: 2014 MIFRS | F80: =G80-1 -> 2015 | G80: =H80-1 -> 2016 | H80: =BridgeYear -> 2017 | I80: =TestYear -> 2018
A81: Reporting Basis
A82: SERVC STR REQUEST FEE | C82: =[16]Sheet1!$G$5 -> 7640.4 | D82: =[16]Sheet1!$H$5 -> 7069.95 | E82: =[16]Sheet1!$H$5 -> 7069.95 | F82: =[16]Sheet1!$I$5 -> 8670.25 | G82: =[16]Sheet1!$J$5 -> 6461.05 | H82: =[16]Sheet1!$D$5 -> 5547.7 | I82: =[16]Sheet1!$E$5 -> 6252.2579
A87: Total | C87: =SUM(C82:C86) -> 7640.4 | D87: 7069.95 | E87: 7069.95 | F87: 8670.25 | G87: 6461.05 | H87: 5547.7 | I87: 6252.2579
A90: Notes:
A91: 1 | B91: List and specify any other interest revenue.
A92: 2 | B92: In the transition year to IFRS, the applicant is to present information in both MIFRS and CGAAP. For the typical applicant that adopted IFRS on January 1, 2015, 2014 must be presented in both a CGAAP and MIFRS basis.
C96: =G97-3 & " Actual" & CHAR(178) -> 2013 Actual² | D96: 2014 Actuals | F96: =F97 & " Actual" & CHAR(178) -> 2015 Actual² | G96: ="Actual Year" -> Actual Year | H96: ="Bridge Year" -> Bridge Year | I96: Test Year
C97: 2013 | D97: 2014 CGAAP | E97: 2014 MIFRS | F97: =G97-1 -> 2015 | G97: =H97-1 -> 2016 | H97: =BridgeYear -> 2017 | I97: =TestYear -> 2018
A98: Reporting Basis
A99: RENT FR EL PROP-POLE RENT | C99: =[16]Sheet1!$G$6 -> 103070.55 | D99: =[16]Sheet1!$H$6 -> 104876.83 | E99: =[16]Sheet1!$H$6 -> 104876.83 | F99: =[16]Sheet1!$I$6 -> 92903.82 | G99: =[16]Sheet1!$J$6 -> 103987.32 | H99: =[16]Sheet1!$D$6 -> 117381.94 | I99: =[16]Sheet1!$E$6 -> 132289.4464
A104: Total | C104: =SUM(C99:C103) -> 103070.55 | D104: 104876.83 | E104: 104876.83 | F104: 92903.82 | G104: 103987.32 | H104: 117381.94 | I104: 132289.4464
A107: Notes:
A108: 1 | B108: List and specify any other interest revenue.
A109: 2 | B109: In the transition year to IFRS, the applicant is to present information in both MIFRS and CGAAP. For the typical applicant that adopted IFRS on January 1, 2015, 2014 must be presented in both a CGAAP and MIFRS basis.
C113: =G114-3 & " Actual" & CHAR(178) -> 2013 Actual² | D113: 2014 Actuals | F113: =F114 & " Actual" & CHAR(178) -> 2015 Actual² | G113: ="Actual Year" -> Actual Year | H113: ="Bridge Year" -> Bridge Year | I113: Test Year
C114: 2013 | D114: 2014 CGAAP | E114: 2014 MIFRS | F114: =G114-1 -> 2015 | G114: =H114-1 -> 2016 | H114: =BridgeYear -> 2017 | I114: =TestYear -> 2018
A115: Reporting Basis
A116: SALE OF STOCK | C116: 3138 | D116: 6987 | E116: 6987 | F116: 11477 | G116: 4863 | H116: 8676 | I116: 9778
A121: Total | C121: =SUM(C116:C120) -> 3138 | D121: 6987 | E121: 6987 | F121: 11477 | G121: 4863 | H121: 8676 | I121: 9778
A124: Notes:
A125: 1 | B125: List and specify any other interest revenue.
A126: 2 | B126: In the transition year to IFRS, the applicant is to present information in both MIFRS and CGAAP. For the typical applicant that adopted IFRS on January 1, 2015, 2014 must be presented in both a CGAAP and MIFRS basis.
C130: =G131-3 & " Actual" & CHAR(178) -> 2013 Actual² | D130: 2014 Actuals | F130: =F131 & " Actual" & CHAR(178) -> 2015 Actual² | G130: ="Actual Year" -> Actual Year | H130: ="Bridge Year" -> Bridge Year | I130: Test Year
C131: 2013 | D131: 2014 CGAAP | E131: 2014 MIFRS | F131: =G131-1 -> 2015 | G131: =H131-1 -> 2016 | H131: =BridgeYear -> 2017 | I131: =TestYear -> 2018
A132: Reporting Basis
A133: GAIN ON DISPOSAL | C133: 6821 | D133: 0 | E133: 0 | F133: 20219 | G133: 65702 | H133: =[16]Sheet1!$D$11 -> 8788.7 | I133: =[16]Sheet1!$E$11 -> 9904.8649
A138: Total | C138: =SUM(C133:C137) -> 6821 | D138: 0 | E138: 0 | F138: 20219 | G138: 65702 | H138: 8788.7 | I138: 9904.8649
A141: Notes:
A142: 1 | B142: List and specify any other interest revenue.
A143: 2 | B143: In the transition year to IFRS, the applicant is to present information in both MIFRS and CGAAP. For the typical applicant that adopted IFRS on January 1, 2015, 2014 must be presented in both a CGAAP and MIFRS basis.
C151: =G152-3 & " Actual" & CHAR(178) -> 2013 Actual² | D151: 2014 Actuals | F151: =F152 & " Actual" & CHAR(178) -> 2015 Actual² | G151: ="Actual Year" -> Actual Year | H151: ="Bridge Year" -> Bridge Year | I151: Test Year
C152: 2013 | D152: 2014 CGAAP | E152: 2014 MIFRS | F152: =G152-1 -> 2015 | G152: =H152-1 -> 2016 | H152: =BridgeYear -> 2017 | I152: =TestYear -> 2018
A153: Reporting Basis
A154: NON UTILITY INCOME & EXPENSE | C154: 22904.48 | D154: 22329.22 | E154: 22329.22 | F154: 22193.59 | G154: 16139 | H154: 14566.68 | I154: 16416.65
A159: Total | C159: =SUM(C154:C158) -> 22904.48 | D159: 22329.22 | E159: 22329.22 | F159: 22193.59 | G159: 16139 | H159: 14566.68 | I159: 16416.65
A162: Notes:
A163: 1 | B163: List and specify any other interest revenue.
A164: 2 | B164: In the transition year to IFRS, the applicant is to present information in both MIFRS and CGAAP. For the typical applicant that adopted IFRS on January 1, 2015, 2014 must be presented in both a CGAAP and MIFRS basis.

Sheet App_2-I LF_CDM
G1: File Number: | H1: =EBNUMBER -> EB-2017-0038
G2: Exhibit:
G3: Tab:
G4: Schedule:
G5: Page:
G7: Date: | H7: February 26, 2018
A9: Appendix 2-I
A10: Load Forecast CDM Adjustment Work Form (2018)
A12: Appendix 2-I was initially developed to help determine what would be the amount of CDM savings needed in each year to cumulatively achieve the four year 2011-2014 CDM target. This then determined the amount of kWh (and with translation, kW of demand) savings that were converted into dollar balances for the LRAMVA, and also to determine the related adjustment to the load forecast to account for OPA-reported savings. Beginning in the 2015 year, it has been adjusted because the persistence of 2011-2014 CDM programs will be an adjustment to the load forecast in addition to the estimated savings for the first year (2015) for the new 2015-2020 CDM plan.
A14: 2018 is the fourth year of the six-year (2015-2020) Conservation First program. Final results for the 2011-14 program were issued in the fall of 2015, and the program is completed, although in some instances disposition of the amounts has been deferred. For the purposes of the 2015-2020 LRAMVA, and the impact of CDM on the load forecast, CDM programs in 2014 and earlier are implicit in the historical data on which the base load forecast is developed. Only actual and forecasted impacts of 2015 to 2018 CDM programs need to be reflected in the manual load forecast adjustment and for the LRAMVA threshold amount in 2018 and carrying forward, although the full year impact of 2015 CDM programs and half-year impact of 2016 CDM programs on 2016 historical data is also assumed to be reflected in the base load forecast.
A16: The new six year (2015-2020) CDM program works in a slightly different manner to the previous 2011-2014 CDM program. Distributors will offer programs each year that, over the six years (from January 1, 2015 to December 31, 2020) will strive to achieve savings equal to the new six year CDM target with the full target in place (i.e., persisting) on December 31, 2020. In other words, distributors will be able to offer and execute programs on a basis so that, as long as savings equal to the full target are in place at the end the period, the distributor's 2015-2020 CDM target will have been met.
A18: 2015-2020 CDM Program - 2018 fourth year of the current CDM plan
A20: For the first year of the new 2015-2020 CDM plan, it is assumed that each year's program will achieve an equal amount of new CDM savings. This results in each year's program being about 1/6 (16.67%) of the cumulative 2015-2020 CDM target for kWh savings. A distributor may propose an alternative approach but would be expected to document in its application why it believes that its proposal is more reasonable. In its proposal, the distributor should ensure that the sum of the results for each year's CDM program from 2015 to 2020 add up to its 2015-2020 CDM target as established by the IESO.
A22: 6 Year (2015-2020) kWh Target:
A23: 27630000
B24: 2015 | C24: 2016 | D24: 2017 | E24: 2018 | F24: 2019 | G24: 2020 | H24: Total
A25: %
A26: 2015 CDM Programs | G26: =G34/G40 -> 0.1874837857 | H26: =H34/H40 -> 0.1874837857
A27: 2016 CDM Programs | G27: =G35/G40 -> 0.1625032429 | H27: =H35/H40 -> 0.1625032429
A28: 2017 CDM Programs | G28: =G36/$H$40 -> 0.1625032429 | H28: =H36/H40 -> 0.1625032429
A29: 2018 CDM Programs | G29: =G37/$H$40 -> 0.1625032429 | H29: =H37/H40 -> 0.1625032429
A30: 2019 CDM Programs | G30: =G38/$H$40 -> 0.1625032429 | H30: =H38/H40 -> 0.1625032429
A31: 2020 CDM Programs | G31: =G39/$H$40 -> 0.1625032429 | H31: =H39/H40 -> 0.1625032429
A32: Total in Year | B32: =SUM(B26:B31) -> 0 | C32: =SUM(C26:C31) -> 0 | D32: =SUM(D26:D31) -> 0 | E32: =SUM(E26:E29) -> 0 | F32: =SUM(F26:F30) -> 0 | G32: =SUM(G26:G31) -> 1 | H32: =SUM(H26:H31) -> 1
A33: kWh
A34: =A26 -> 2015 CDM Programs | B34: 5180177 | C34: =B34 -> 5180177 | D34: =C34 -> 5180177 | E34: =D34 -> 5180177 | F34: =E34 -> 5180177 | G34: =F34 -> 5180177 | H34: =G34 -> 5180177
A35: 2016 CDM Programs | C35: =D35 -> 4489964.6 | D35: =E35 -> 4489964.6 | E35: =F35 -> 4489964.6 | F35: =G35 -> 4489964.6 | G35: =1/5*(A23-H34) -> 4489964.6 | H35: 4489964.6 | K35: 2011 | L35: 2012 | M35: 2013 | N35: 2014
A36: 2017 CDM Programs | D36: =E36 -> 4489964.6 | E36: =F36 -> 4489964.6 | F36: =G36 -> 4489964.6 | G36: =(1/4)*(A23-(H34+H35)) -> 4489964.6 | H36: 4489964.6 | J36: 2011 CDM Programs | K36: =50% -> 0.5 | L36: 1 | M36: 1 | N36: 1
A37: 2018 CDM Programs | E37: =F37 -> 4489964.6 | F37: =G37 -> 4489964.6 | G37: =(1/3)*(A23-SUM(H34:H36)) -> 4489964.6 | H37: 4489964.6 | J37: 2012 CDM Programs | L37: 0.5 | M37: 1 | N37: 1
A38: 2019 CDM Programs | F38: =G38 -> 4489964.6 | G38: =(1/2)*(A23-SUM(H34:H37)) -> 4489964.6 | H38: 4489964.6 | J38: 2013 CDM Programs | M38: 0.5 | N38: 1
A39: 2020 CDM Programs | G39: =A23-SUM(H34:H38) -> 4489964.6 | H39: 4489964.6 | J39: 2014 CDM Programs | N39: 0.5
A40: Total in Year | B40: =SUM(B34:B39) -> 5180177 | C40: =SUM(C34:C39) -> 9670141.6 | D40: =SUM(D34:D39) -> 14160106.2 | E40: =SUM(E34:E37) -> 18650070.8 | F40: =SUM(F34:F38) -> 23140035.4 | G40: =SUM(G34:G39) -> 27630000 | H40: =A23 -> 27630000
G41: =IF(G40-H40<>0,"Inputs do no match 2015-20 CDM target","") -> 
A43: Note: The default formulae in the above table assume that the 2015-2020 kWh CDM target is achieved through persistence of CDM savings to the end of 2020. The distributor should enter measured CDM savings for 2015, and persistence of 2015 programs for 2016-2020 in row 34. When available, (preliminary/final) CDM savings for 2016 can be entered into row 35. The distributor can also input estimates or forecasts of the 2017 CDM programs if it believes that these are more realistic and can be supported; such information would typically be derived from the CDM plans that the distributor has filed with the IESO. Similarly, CDM savings and persistence into future years can be estimated for 2018, 2019 and 2020 CDM programs. However, the distributor will have to support its proposals for estimated or forecasted savings, particularly beyond the 2017 bridge year. The sum of persistent savings to the end of 2020, should equal the target entered into cell A23.
A45: Determination of 2018 Load Forecast Adjustment
A47: The Board determined that the "net" number should be used in its Decision and Order with respect to Centre Wellington Hydro Ltd.'s 2013 Cost of Service rates (EB-2012-0113). This approach has also been used in Settlement Agreements accepted by the Board in other 2013 and 2014 applications. The distributor should select whether the adjustment is done on a "net" or "gross" basis, but must support a proposal for the adjustment being done on a "gross" basis. Sheet 2-I defaults to the adjustment being done on a "net" basis consistent with Board policy and practice.
A49: From each of the 2006-2010 CDM Final Report, and the 2011 to 2016 CDM Final Reports, issued by the OPA/IESO for the distributor, the distributor should input the "gross" and "net" results of the cumulative CDM savings for 2018 into cells C57 to C63 and D57 to D63. The model will calculate the cumulative savings for all programs from 2006 to 2016 and determine the "net" to "gross" factor "g".
A51: Net-to-Gross Conversion
A53: Is CDM adjustment being done on a "net" or "gross" basis? | F53: net
C55: "Gross" | D55: "Net" | E55: Difference | F55: "Net-to-Gross" Conversion Factor
A56: Persistence of Historical CDM programs to 2015 | C56: kWh | D56: kWh | E56: kWh | F56: ('g')
A57: 2006-2010 CDM programs | E57: =IF(ISBLANK(D57),"",C57-D57) -> 
A58: 2011 CDM program | E58: =IF(ISBLANK(D58),"",C58-D58) -> 
A59: 2012 CDM program
A60: 2013 CDM program
A61: 2014 CDM program
A62: 2015 CDM program
A63: 2016 CDM program
A64: 2006 to 2016 OPA CDM programs: Persistence to 2018. | C64: =SUM(C57:C63) -> 0 | D64: =SUM(D57:D63) -> 0 | E64: =C64-D64 -> 0 | F64: =IF(D64=0,0,IF(F53="net",0,E64/D64)) -> 0
A66: The default values below represent the factor used for how each year's CDM program is factored into the manual CDM adjustment. Distributors can choose alternative weights of "0", "0.5" or "1" from the drop-down menu for each cell, but must support its alternatives.
A68: These factors do not mean that CDM programs are excluded, but the assumption that impacts of previous year CDM programs are already implicitly reflected in the actual data for historical years that are used to derive the load forecast prior to any manual CDM adjustment for the 2018 test year.
A84: Weight Factor for Inclusion in CDM Adjustment to 2018 Load Forecast
B85: 2015 | C85: 2016 | D85: 2017 | E85: 2018 | F85: 2019 | G85: 2020
A86: Weight Factor for each year's CDM program impact on 2018 load forecast | B86: 0 | C86: 0.5 | D86: 1 | E86: 0.5 | F86: 0 | G86: 0 | H86: Distributor can select "0", "0.5", or "1" from drop-down list
A87: Default Value selection rationale. | B87: Full year impact of 2015 CDM is assumed to be reflected in the base forecast, as the full year persistence of 2015 CDM programs is in the 2016 historical actual data. No further impact is necessary for the manual adjustment to the load forecast. | C87: Default is 0.5, but one option is for full year impact of persistence of 2016 CDM programs on 2018 load forecast, but 50% impact in base forecast (first year impact of 2016 CDM programs on 2016 actuals, which is part of the data underlying the base load forecast). | D87: Full year impact of persistence of 2017 programs on 2018 load forecast. 2017 CDM program impacts are not in the base forecast. | E87: Only 50% of 2017 CDM programs are assumed to impact the 2018 load forecast based on the "half-year" rule. | F87: 2019 and 2020 are future years beyond the 2018 test year. No impacts of CDM programs beyond the 2018 test year are factored into the test year load forecast.
A89: 2015-2020 LRAMVA and 2018 CDM adjustment to Load Forecast
A91: One manual adjustment for CDM impacts to the 2018 load forecast is made. There is a different but related threshold amount that is used for the 2018 LRAMVA amount for Account 1568.
A93: The amount used for the CDM threshold of the LRAMVA is the kWh that will be used to determine the base amount for the LRAMVA balance for 2018, for assessing performance against the six-year target.
A95: If used to determine the manual CDM adjustment for the system purchased kWh, the proposed loss factor should correspond with the proposed total loss factor calculated in Appendix 2-R .
A97: The Manual Adjustment for the 2018 Load Forecast is the amount manually subtracted from the system-wide load forecast (either based on a purchased or billed basis) derived from the base forecast from historical data. If the distributor has developed their load forecast on a system purchased basis, then the manual adjustment should be on a system purchased basis, including the adjustment for losses. If the load forecast has been developed on a billed basis, either on a system basis or on a class-specific basis, the manual adjustment should be on a billed basis, excluding losses.
A99: The distributor should determine the allocation of the savings to all customer classes in a reasonable manner (e.g. taking into account what programs and what IESO-measured impacts were directed at specific customer classes), for both the LRAMVA and for the load forecast adjustment.
B101: 2015 | C101: 2016 | D101: 2017 | E101: 2018 | F101: 2019 | G101: 2020 | H101: Total for 2018
A103: Amount used for CDM threshold for LRAMVA (2018) | B103: =E34 -> 5180177 | C103: =E35 -> 4489964.6 | D103: =E36 -> 4489964.6 | E103: =E37 -> 4489964.6 | H103: =SUM(B103:G103) -> 18650070.8
A105: Manual Adjustment for 2018 Load Forecast (billed basis) | B105: =B103*(1+F64)*B86 -> 0 | C105: =C103*(1+F64)*C86 -> 2244982.3 | D105: =D103*(1+F64)*D86 -> 4489964.6 | E105: =E103*(1+G64)*E86 -> 2244982.3 | H105: =SUM(B105:G105) -> 8979929.2
A106: Manual Adjustment for 2018 LDC-only CDM programs (billed basis)
A107: Total Manual Forecast to Load Forecast | B107: =B105+B106 -> 0 | C107: =C105+C106 -> 2244982.3 | D107: =D105+D106 -> 4489964.6 | E107: =E105+E106 -> 2244982.3 | H107: =SUM(B107:G107) -> 8979929.2
A109: Proposed Loss Factor (TLF) | B109: 0.0325 | C109: Format: X.XX%
A110: Manual Adjustment for 2018 Load Forecast (system purchased basis) | B110: =B107*(1+$B109) -> 0 | C110: =C107*(1+$B109) -> 2317944.225 | D110: =D107*(1+$B109) -> 4635888.449 | E110: =E107*(1+$B109) -> 2317944.225 | H110: =SUM(B110:G110) -> 9271776.899
A112: Manual adjustment uses "gross" versus "net" (i.e. numbers multiplied by (1 + g). The Weight factor is also used to calculate the impact of each year's program on the CDM adjustment to the 2018 load forecast.

Sheet App.2-IA_Load_Forecast_Instrct
Q1: File Number: | R1: =EBNUMBER -> EB-2017-0038
Q2: Exhibit:
Q3: Tab:
Q4: Schedule:
Q5: Page:
Q7: Date: | R7: September 24, 2018
B9: Appendix 2-IA
B10: Instructions on Customer, Connections, Load Forecast and Revenues Data and Analysis
B12: This sheet requires no inputs, but serves as a summary of the hiostorical and forecasted data to be provided with respect to:
B14: 1) | C14: Customers and connections
B15: 2) | C15: Consumption (kWh)
B16: 3) | C16: Demand (kW or kCA) for applicable demand-billed customer classes
B17: 4) | C17: Revenues
B19: The spreadsheet summarizes the data provided and the analyses (variance or year-over-year) that are required. Data are required to be provided on a customer class level. Consumption (kWh) must also be provided on a total distribution system level.
B21: Appendix 2-IB (formerly 2-IA) is the appendix spreadsheet that the distributor populates, and the spreadsheet is laid out for inputting the necessary data. The spreadsheet also calculates necessary statistics such as average consumption per customer/connection per year, and variances and % annual changes, as necessary.
B23: The distributor is required to provide suitable documentation in Exhibit 3 of its Application, in accordance with section 2.3.2 of Chaoter 2 of the Filing Requirements. This would include explanations for material variations or of trends in the data.
B25: The distributor is also required to input its test year customer/connection and load forecast in Sheet 10 - Load Forecast of the Revenue Requirement Work Form. This sheet should also be updated to reflect changes in the load forecast made through the stages of processing of the rates application.
B27: The applicant must demonstrate the historical accuracy of its load forecast approach for at least the past 5 years. Such analysis will cover both customer/connections and consumption (kWh) and demand (kW or kVA) by providing the following, as shown in the following table:
D29: Calendar Year | F29: Customers / Connections | I29: Consumption (kWh) (3) | M29: Demand (kW or kVA) | Q29: Revenues
D30: ="(for "&TestYear&" Cost of Service)" -> (for 2018 Cost of Service) | I30: Weather-actual | J30: Weather-normalized | M30: Weather-actual | N30: Weather-normalized | Q30: Weather-actual | R30: Weather-normalized
C31: Historical | D31: =D32-1 -> 2012 | F31: Actual | I31: Actual | J31: Actual (1) | M31: Actual | N31: Actual (1) | Q31: Actual
C32: Historical | D32: 2013 | F32: Actual | I32: Actual | J32: Actual (1) | M32: Actual | N32: Actual (1) | Q32: Actual
C33: Historical | D33: 2014 | F33: Actual | G33: Board-approved (2) | I33: Actual | J33: Actual (1) | K33: Board-approved (2) | M33: Actual | N33: Actual (1) | O33: Board-approved (2) | Q33: Actual
C34: Historical | D34: 2015 | F34: Actual | I34: Actual | J34: Actual (1) | M34: Actual | N34: Actual (1) | Q34: Actual
C35: Historical | D35: 2016 | F35: Actual | I35: Actual | J35: Actual (1) | M35: Actual | N35: Actual (1) | Q35: Actual
C36: Bridge Year (Forecast) | D36: 2017 | F36: Forecast | J36: Forecast | N36: Forecast | R36: Forecast
C37: Test Year (Forecast) | D37: =TestYear -> 2018 | F37: Forecast | J37: Forecast | N37: Forecast | R37: Forecast
B40: Notes:
B42: (1) | C42: “Weather-normalized actuals” are estimated by replacing the actual weather-related values (typically Heating Degree Days (HDD) and Cooling Degree Days (CDD)) by the “typical” or “weather-normalized” values. These “weather-normalized HDD and CDD values would be the same as used to estimate the Bridge Year and Test Year forecasts.
B43: (2) | C43: For 2017 Cost of Service rebasers, the typical situation is that 2013 would have been the most recent cost of service rebasing application. If the most recent rebasing application was for a rate year other than 2013, that year should be used. An applicant must provide historical information back to the greater of: a) at least five (5) historical actual years; or b) to its last cost of service application.
B44: (3) | C44: Consumption must be provided on a total distribution system basis as well as at a customer class level.
B45: (4) | C45: Revenues exclude commodity charges.

Sheet App.2-IB_Load_Forecast_Analysis
T1: File Number: | U1: =EBNUMBER -> EB-2017-0038
T2: Exhibit: | U2: 3
T3: Tab: | U3: 1
T4: Schedule:
T5: Page:
T7: Date: | U7: September 24, 2018
B9: Appendix 2-IB
B10: Customer, Connections, Load Forecast and Revenues Data and Analysis
B12: This sheet requires no inputs, but serves as a summary of the hiostorical and forecasted data to be provided with respect to:
B14: 1) | C14: Customers and connections
B15: 2) | C15: Consumption (kWh)
B16: 3) | C16: Demand (kW or kCA) for applicable demand-billed customer classes
B17: 4) | C17: Revenues
B19: The spreadsheet summarizes the data provided and the analyses (variance or year-over-year) that are required. Data are required to be provided on a customer class level. Consumption (kWh) must also be provided on a total distribution system level.
B21: Appendix 2-IB (formerly 2-IA) is the appendix spreadsheet that the distributor populates, and the spreadsheet is laid out for inputting the necessary data. The spreadsheet also calculates necessary statistics such as average consumption per customer/connection per year, and variances and % annual changes, as necessary.
B23: The distributor is required to provide suitable documentation in Exhibit 3 of its Application, in accordance with section 2.3.2 of Chaoter 2 of the Filing Requirements. This would include explanations for material variations or of trends in the data.
B25: The distributor is also required to input its test year customer/connection and load forecast in Sheet 10 - Load Forecast of the Revenue Requirement Work Form. This sheet should also be updated to reflect changes in the load forecast made through the stages of processing of the rates application.
B27: The applicant must demonstrate the historical accuracy of its load forecast approach for at least the past 5 years. Such analysis will cover both customer/connections and consumption (kWh) and demand (kW or kVA) by providing the following, as shown in the following table:
B29: This sheet is to be filled in accordance with the instructions documented in section 2.3.2 of Chapter 2 of the Filing Requirements for Distribution Rate Applications, in terms of one set of tables per customer class.
B31: Color coding for Cells: | F31: Data input | K31: Drop-down List
F33: No data entry required | K33: Blank or calculated value
B35: Distribution System (Total)
D37: Calendar Year | K37: Consumption (kWh) (3)
D38: =CONCATENATE("(for ",TestYear," Cost of Service") -> (for 2018 Cost of Service | L38: Actual (Weather actual) | M38: Weather-normalized | O38: Weather-normalized
C39: Historical | D39: =D40-1 -> 2012 | K39: Actual | L39: 489248042.3 | M39: 491617722.5
C40: Historical | D40: 2013 | K40: Actual | L40: 486905989.1 | M40: 485495942.3 | N40: Board-approved | O40: 462657415
C41: Historical | D41: 2014 | K41: Actual | L41: 492137455.7 | M41: 491039470.9
C42: Historical | D42: 2015 | K42: Actual | L42: 481737801.2 | M42: 481669411.8
C43: Historical | D43: 2016 | K43: Actual | L43: 481118177.5 | M43: 478889501.4
C44: Bridge Year | D44: 2017 | K44: Actual | M44: 482700590.9
C45: Test Year | D45: =TestYear -> 2018 | K45: Forecast | M45: 482019667.9
O46: =SUM(O39:O44) -> 462657415
C47: Variance Analysis | K47: Year | L47: Year-over-year | O47: Versus Board-approved
D48: =D39 -> 2012 | K48: =D48 -> 2012
D49: 2013 | K49: =D49 -> 2013 | L49: -0.004787046585 | M49: -0.01245231808
D50: 2014 | K50: 2014 | L50: 0.01074430518 | M50: 0.01141827998
D51: 2015 | K51: 2015 | L51: -0.02113160537 | M51: -0.01908208936
D52: 2016 | K52: 2016 | L52: -0.001286226052 | M52: -0.00577140737
D53: 2017 | K53: 2017 | M53: 0.007958181232
D54: 2018 | K54: 2018 | M54: -0.001410652919 | O54: 0.04185008655
D55: Geometric Mean | K55: Geometric Mean | L55: -0.005569987682 | M55: -0.003935537363 | O55: 0.01030222173
B57: Customer Class Analysis (one for each Customer Class, excluding MicroFIT and Standby)
B59: 1 | C59: Customer Class: | D59: Residential | H59: Is the customer class billed on consumption (kWh) or demand (kW or kVA)? | N59: kWh
D61: Calendar Year | F61: Customers | K61: Consumption (kWh) (3) | Q61: =CONCATENATE("Consumption (kWh) per ",LEFT(F61,LEN(F61)-1)) -> Consumption (kWh) per Customer
D62: =CONCATENATE("(for ",TestYear," Cost of Service") -> (for 2018 Cost of Service | L62: Actual (Weather actual) | M62: Weather-normalized | O62: Weather-normalized | R62: =L62 -> Actual (Weather actual) | S62: =M62 -> Weather-normalized | U62: =O62 -> Weather-normalized
C63: Historical | D63: =D64-1 -> 2012 | F63: =K39 -> Actual | G63: 16236.25 | K63: =F63 -> Actual | L63: 136951769.4 | M63: 139360982 | Q63: =K63 -> Actual | R63: =L63/G63 -> 8434.938449 | S63: =M63/G63 -> 8583.323243
C64: Historical | D64: 2013 | F64: Actual | G64: 16383 | H64: Board-approved | I64: 16461 | K64: =F64 -> Actual | L64: 139174379.2 | M64: 138366235 | N64: Board-approved | O64: 147767075 | Q64: =K64 -> Actual | R64: =L64/G64 -> 8495.048478 | S64: =M64/G64 -> 8445.720259 | T64: Board-approved | U64: =O64/I64 -> 8976.79819
C65: Historical | D65: 2014 | F65: Actual | G65: 16515.91667 | K65: Actual | L65: 137614288.2 | M65: 137218364 | Q65: Actual | R65: 8332.222242 | S65: 8308.249961
C66: Historical | D66: 2015 | F66: Actual | G66: 16667.41667 | K66: Actual | L66: 135712848.3 | M66: 136057212 | Q66: Actual | R66: 8142.404489 | S66: 8163.065382
C67: Historical | D67: 2016 | F67: Actual | G67: 16855.08333 | K67: Actual | L67: 136671067.2 | M67: 134569607 | Q67: Actual | R67: 8108.596351 | S67: 7983.918224
C68: Bridge Year | D68: 2017 | F68: Actual | G68: 16986.6486 | K68: Actual | L68: 133493324 | M68: 133938210 | Q68: Actual | R68: 0 | S68: 7884.910861
C69: Test Year | D69: =TestYear -> 2018 | F69: Forecast | G69: 17424 | K69: Forecast | M69: 133758568 | Q69: Forecast | R69: =IF(G69=0,"",L69/G69) -> 0 | S69: 7676.685491 | T69: =N69 ->  | U69: =IF(T69="","",IF(I69=0,"",O69/I69)) -> 
I70: =SUM(I63:I68) -> 16461 | O70: =SUM(O63:O68) -> 147767075 | U70: =SUM(U63:U68) -> 8976.79819
C71: Variance Analysis | D71: Year | G71: Year-over-year | I71: Test Year Versus Board-approved | K71: Year | L71: Year-over-year | O71: =I71 -> Test Year Versus Board-approved | Q71: Year | R71: Year-over-year | U71: =O71 -> Test Year Versus Board-approved
D72: =D63 -> 2012 | K72: =D72 -> 2012 | Q72: =K72 -> 2012
D73: 2013 | G73: 0.009038417122 | K73: =D73 -> 2013 | L73: 0.01622914278 | M73: -0.007024205426 | Q73: =K73 -> 2013 | R73: 0.007126315054 | S73: -0.01591874232
D74: 2014 | G74: 0.008113084702 | K74: 2014 | L74: -0.01120961357 | M74: -0.007935596739 | Q74: 2014 | R74: -0.01916719321 | S74: -0.01591952499
D75: 2015 | G75: 0.009172969509 | K75: 2015 | L75: -0.01381716931 | M75: -0.01001437271 | Q75: 2015 | R75: -0.02278116786 | S75: -0.01901293713
D76: 2016 | G76: 0.01125949332 | K76: 2016 | L76: 0.007060635394 | M76: -0.01025076829 | Q76: 2016 | R76: -0.004152107304 | S76: -0.02127076359
D77: 2017 | G77: 0.007805672608 | K77: 2017 | M77: -0.004575531065 | Q77: 2017 | S77: -0.01228530858
D78: 2018 | G78: 0.007805672608 | I78: 0.03998789948 | K78: 2018 | M78: -0.001223451177 | O78: -0.09476387067 | Q78: 2018 | S78: -0.008959191271 | U78: -0.1295705173
D79: Geometric Mean | G79: 0.01064761222 | I79: 0.009850469095 | K79: Geometric Mean | L79: -0.0006836814878 | M79: -0.008205151786 | O79: -0.02458266457 | Q79: Geometric Mean | R79: -0.01306643054 | S79: -0.01865414194 | U79: -0.03409725967
D82: Calendar Year | F82: Revenues | K82: =IF(ISBLANK(N59),"",CONCATENATE("Demand (",N59,")")) -> Demand (kWh) | Q82: =CONCATENATE("Demand (",N59,") per ",LEFT(F61,LEN(F61)-1)) -> Demand (kWh) per Customer
D83: =CONCATENATE("(for ",TestYear," Cost of Service") -> (for 2018 Cost of Service | L83: Actual (Weather actual) | M83: Weather-normalized | O83: =M83 -> Weather-normalized | R83: =L83 -> Actual (Weather actual) | S83: =M83 -> Weather-normalized | U83: =O83 -> Weather-normalized
C84: Historical | D84: =D85-1 -> 2012 | F84: Actual | K84: =K63 -> Actual | N84: =N63 ->  | T84: =N84 ->  | U84: =IF(T84="","",IF(I84=0,"",O84/I84)) -> 
C85: Historical | D85: 2013 | F85: Actual | H85: Board-approved | I85: 5636524.48 | K85: Actual | N85: Board-approved | T85: =N85 -> Board-approved | U85: =IF(T85="","",IF(#REF!=0,"",O85/#REF!)) -> 
C86: Historical | D86: 2014 | F86: Actual | K86: Actual | U86: =IF(T86="","",IF(I86=0,"",O86/I86)) -> 
C87: Historical | D87: 2015 | F87: Actual | K87: Actual
C88: Historical | D88: 2016 | F88: Actual | K88: Actual
C89: Bridge Year (Actual) | D89: 2017 | F89: Actual | K89: Actual
C90: Test Year (Forecast) | D90: =TestYear -> 2018 | F90: Forecast | K90: Forecast
I91: =SUM(I84:I89) -> 5636524.48 | O91: =SUM(O84:O89) -> 0 | U91: =SUM(U84:U89) -> 
C92: Variance Analysis | D92: Year | G92: Year-over-year | I92: =I71 -> Test Year Versus Board-approved | K92: Year | L92: Year-over-year | O92: =I92 -> Test Year Versus Board-approved | U92: =O92 -> Test Year Versus Board-approved
D93: =D84 -> 2012 | K93: =D93 -> 2012
D94: 2013 | G94: =IF(G84=0,"",G85/G84-1) ->  | K94: =D94 -> 2013 | L94: =IF(L84=0,"",L85/L84-1) -> 
D95: 2014 | K95: 2014
D96: 2015 | K96: 2015
D97: 2016 | K97: 2016
D98: 2017 | K98: 2017 | L98: =IF(K89="Forecast","",IF(L88=0,"",L89/L88-1)) ->  | M98: =IF(M88=0,"",M89/M88-1) -> 
D99: 2018 | I99: 0.239454278 | K99: 2018 | L99: =IF(K90="Forecast","",IF(L89=0,"",L90/L89-1)) ->  | M99: =IF(M89=0,"",M90/M89-1) ->  | O99: =IF(O91=0,"",M90/O91-1) ->  | U99: =IF(U91=0,"",S90/U91-1) -> 
D100: Geometric Mean | I100: 0.05513402428 | K100: Geometric Mean | L100: =IF(L84=0,"",(L88/L84)^(1/($D88-$D84-1))-1) ->  | M100: =IF(M84=0,"",(M90/M84)^(1/($D90-$D84-1))-1) ->  | O100: =IF(O91=0,"",(M90/O91)^(1/(TestYear-RebaseYear-1))-1) ->  | U100: =IF(U91=0,"",(S90/U91)^(1/(TestYear-RebaseYear-1))-1) -> 
B118: 2 | C118: Customer Class: | D118: GS < 50 kW | H118: Is the customer class billed on consumption (kWh) or demand (kW or kVA)? | N118: kWh
D120: Calendar Year | F120: Customers | K120: Consumption (kWh) (3) | Q120: =CONCATENATE("Consumption (kWh) per ",LEFT(F120,LEN(F120)-1)) -> Consumption (kWh) per Customer
D121: =CONCATENATE("(for ",TestYear," Cost of Service") -> (for 2018 Cost of Service | L121: Actual (Weather actual) | M121: Weather-normalized | O121: Weather-normalized | R121: =L121 -> Actual (Weather actual) | S121: =M121 -> Weather-normalized | U121: =O121 -> Weather-normalized
C122: Historical | D122: =D123-1 -> 2012 | F122: =F63 -> Actual | G122: 1921 | K122: =F122 -> Actual | L122: 47672678.81 | M122: 47712407 | Q122: =K122 -> Actual | R122: =L122/G122 -> 24816.5949 | S122: =M122/G122 -> 24837.2759
C123: Historical | D123: 2013 | F123: Actual | G123: 1940 | H123: Board-approved | I123: 1857 | K123: =F123 -> Actual | L123: 48218851.18 | M123: 47692102 | N123: Board-approved | O123: 50306768 | Q123: =K123 -> Actual | R123: =L123/G123 -> 24855.07793 | S123: =M123/G123 -> 24583.55773 | T123: Board-approved | U123: =O123/I123 -> 27090.34356
C124: Historical | D124: 2014 | F124: Actual | G124: 1952.916667 | K124: Actual | L124: 48123470.8 | M124: 47609224 | Q124: Actual | R124: 24641.84551 | S124: 24378.52306
C125: Historical | D125: 2015 | F125: Actual | G125: 1989.333333 | K125: Actual | L125: 50019956.11 | M125: 49952657 | Q125: Actual | R125: 25144.07981 | S125: 25110.24983
C126: Historical | D126: 2016 | F126: Actual | G126: 1993.333333 | K126: Actual | L126: 48503240.2 | M126: 48861382 | Q126: Actual | R126: 24332.7292 | S126: 24512.399
C127: Bridge Year | D127: 2017 | F127: Actual | G127: 2005.758175 | K127: Actual | L127: 49122764 | M127: 49529787 | Q127: Actual | R127: 24490.87064 | S127: 24693.7979
C128: Test Year | D128: =TestYear -> 2018 | F128: Forecast | G128: 2018.260463 | K128: Forecast | M128: 50327081 | Q128: Forecast | R128: 0 | S128: 24935.87024
I129: =SUM(I122:I127) -> 1857 | O129: =SUM(O122:O127) -> 50306768 | U129: =SUM(U122:U127) -> 27090.34356
C130: Variance Analysis | D130: Year | G130: Year-over-year | I130: Test Year Versus Board-approved | K130: Year | L130: Year-over-year | O130: =I130 -> Test Year Versus Board-approved | Q130: Year | R130: Year-over-year | U130: =O130 -> Test Year Versus Board-approved
D131: =D122 -> 2012 | K131: =D131 -> 2012 | Q131: =K131 -> 2012
D132: 2013 | G132: 0.009890681936 | K132: =D132 -> 2013 | L132: 0.01145671659 | M132: -0.0008355699524 | Q132: =K132 -> 2013 | R132: 0.001550697196 | S132: -0.01062120097
D133: 2014 | G133: 0.006658075601 | K133: 2014 | L133: -0.001978072427 | M133: -0.005254733544 | Q133: 2014 | R133: -0.00857902821 | S133: -0.01183401736
D134: 2015 | G134: 0.01864732238 | K134: 2015 | L134: 0.0394087392 | M134: 0.05000410908 | Q134: 2015 | R134: 0.02038135904 | S134: 0.03078277045
D135: 2016 | G135: 0.002010723861 | K135: 2016 | L135: -0.03032221593 | M135: -0.02682591789 | Q135: 2016 | R135: -0.03226805764 | S135: -0.02877877558
D136: 2017 | G136: 0.006233198033 | K136: 2017 | M136: 0.005804512433 | Q136: 2017 | S136: -0.0004260300698
D137: 2018 | G137: 0.006233198033 | I137: 0.08683923676 | K137: 2018 | M137: 0.009799362345 | O137: -0.01812486488 | Q137: 2018 | S137: 0.003544073401 | U137: -0.09657739442
D138: Geometric Mean | G138: 0.009926968581 | I138: 0.02103664031 | K138: Geometric Mean | L138: 0.005773986048 | M138: 0.006226637652 | O138: -0.004562343836 | Q138: Geometric Mean | R138: -0.006541925841 | S138: -0.003663958924 | U138: -0.0250715627
D141: Calendar Year | F141: Revenues | K141: =IF(ISBLANK(N118),"",CONCATENATE("Demand (",N118,")")) -> Demand (kWh) | Q141: =CONCATENATE("Demand (",N118,") per ",LEFT(F120,LEN(F120)-1)) -> Demand (kWh) per Customer
D142: =CONCATENATE("(for ",TestYear," Cost of Service") -> (for 2018 Cost of Service | L142: Actual (Weather actual) | M142: Weather-normalized | O142: =M142 -> Weather-normalized | R142: =L142 -> Actual (Weather actual) | S142: =M142 -> Weather-normalized | U142: =O142 -> Weather-normalized
C143: Historical | D143: =D144-1 -> 2012 | F143: =F122 -> Actual | K143: =K122 -> Actual | N143: =N122 ->  | Q143: =K143 -> Actual | R143: =IF(G143=0,"",L143/G143) ->  | S143: =IF(G143=0,"",M143/G143) ->  | T143: =N143 ->  | U143: =IF(T143="","",IF(I143=0,"",O143/I143)) -> 
C144: Historical | D144: 2013 | F144: Actual | H144: Board-approved | I144: 1149106.087 | K144: Actual | N144: Board-approved | Q144: =K144 -> Actual | R144: =IF(G144=0,"",L144/G144) ->  | S144: =IF(G144=0,"",M144/G144) ->  | T144: =N144 -> Board-approved | U144: =IF(T144="","",IF(I144=0,"",O144/I144)) -> 0
C145: Historical | D145: 2014 | F145: Actual | K145: Actual | Q145: Actual
C146: Historical | D146: 2015 | F146: Actual | K146: Actual | Q146: Actual
C147: Historical | D147: 2016 | F147: Actual | K147: Actual | Q147: Actual
C148: Bridge Year (Forecast) | D148: 2017 | F148: Actual | K148: Actual | Q148: Actual
C149: Test Year (Forecast) | D149: =TestYear -> 2018 | F149: Forecast | G149: 1275038.48 | K149: Forecast | Q149: Forecast | R149: 0 | S149: 0
I150: 1149106.087 | O150: =SUM(O143:O148) -> 0 | U150: =SUM(U143:U148) -> 0
C151: Variance Analysis | D151: Year | G151: Year-over-year | I151: Test Year Versus Board-approved | K151: Year | L151: Year-over-year | O151: =I151 -> Test Year Versus Board-approved | Q151: Year | R151: Year-over-year | U151: =O151 -> Test Year Versus Board-approved
D152: =D143 -> 2012 | K152: =D152 -> 2012 | Q152: =K152 -> 2012
D153: 2013 | K153: =D153 -> 2013 | L153: =IF(L143=0,"",L144/L143-1) ->  | Q153: =K153 -> 2013 | R153: =IF(R143="","",IF(R143=0,"",R144/R143-1)) -> 
D154: 2014 | K154: 2014 | Q154: 2014
D155: 2015 | K155: 2015 | Q155: 2015
D156: 2016 | K156: 2016 | L156: =IF(L146=0,"",L147/L146-1) ->  | Q156: 2016 | R156: =IF(R146="","",IF(R146=0,"",R147/R146-1)) -> 
D157: 2017 | K157: 2017 | L157: =IF(K148="Forecast","",IF(L147=0,"",L148/L147-1)) ->  | Q157: 2017 | R157: =IF(Q148="Forecast","",IF(R147=0,"",R148/R147-1)) -> 
D158: 2018 | I158: 0.1095916156 | K158: 2018 | L158: =IF(K149="Forecast","",IF(L148=0,"",L149/L148-1)) ->  | O158: =IF(O150=0,"",M149/O150-1) ->  | Q158: 2018 | R158: =IF(Q149="Forecast","",IF(R148=0,"",R149/R148-1)) ->  | U158: =IF(U150=0,"",S149/U150-1) -> 
D159: Geometric Mean | I159: 0.02633890445 | K159: Geometric Mean | L159: =IF(L143=0,"",(L147/L143)^(1/($D147-$D143-1))-1) ->  | M159: =IF(M143=0,"",(M149/M143)^(1/($D149-$D143-1))-1) ->  | O159: =IF(O150=0,"",(M149/O150)^(1/(TestYear-RebaseYear-1))-1) ->  | Q159: Geometric Mean | R159: =IF(R143="","",IF(R143=0,"",(R147/R143)^(1/($D147-$D143-1))-1)) ->  | S159: =IF(S143="","",IF(S143=0,"",(S149/S143)^(1/($D149-$D143-1))-1)) ->  | U159: =IF(U150=0,"",(S149/U150)^(1/(TestYear-RebaseYear-1))-1) -> 
B179: 3 | C179: Customer Class: | D179: GS > 50 kW | H179: Is the customer class billed on consumption (kWh) or demand (kW or kVA)? | N179: kW
D181: Calendar Year | F181: Customers | K181: Consumption (kWh) (3) | Q181: =CONCATENATE("Consumption (kWh) per ",LEFT(F181,LEN(F181)-1)) -> Consumption (kWh) per Customer
D182: =CONCATENATE("(for ",TestYear," Cost of Service") -> (for 2018 Cost of Service | L182: Actual (Weather actual) | M182: Weather-normalized | O182: Weather-normalized | R182: =L182 -> Actual (Weather actual) | S182: =M182 -> Weather-normalized | U182: =O182 -> Weather-normalized
C183: Historical | D183: =D184-1 -> 2012 | F183: =F122 -> Actual | G183: 187.3333333 | K183: =F183 -> Actual | L183: 101728046 | M183: 101728046 | Q183: =K183 -> Actual | R183: =L183/G183 -> 543032.274 | S183: =M183/G183 -> 543032.274
C184: Historical | D184: 2013 | F184: Actual | G184: 185.4166667 | H184: Board-approved | I184: 175 | K184: =F184 -> Actual | L184: 97339903 | M184: 97339903 | N184: Board-approved | O184: 77849023 | Q184: =K184 -> Actual | R184: =L184/G184 -> 524979.2521 | S184: =M184/G184 -> 524979.2521 | T184: Board-approved | U184: =O184/I184 -> 444851.56
C185: Historical | D185: 2014 | F185: Actual | G185: 180.6666667 | K185: Actual | L185: 100545562 | M185: 100545562 | Q185: Actual | R185: 556525.2509 | S185: 556525.2509
C186: Historical | D186: 2015 | F186: Actual | G186: 155.25 | K186: Actual | L186: 93357497 | M186: 93357497 | Q186: Actual | R186: 601336.5346 | S186: 601336.5346
C187: Historical | D187: 2016 | F187: Actual | G187: 157.75 | K187: Actual | L187: 98024881 | M187: 98024881 | Q187: Actual | R187: 621393.8574 | S187: 621393.8574
C188: Bridge Year | D188: 2017 | F188: Actual | G188: 160 | K188: Actual | L188: 98161158 | M188: 98161158 | Q188: Actual | R188: 613507.2375 | S188: 613507.2375
C189: Test Year | D189: =TestYear -> 2018 | F189: Forecast | G189: 163 | K189: Forecast | M189: 96710348 | Q189: Forecast | R189: 0 | S189: 593315.0184
I190: 175 | O190: =SUM(O183:O188) -> 77849023 | U190: =SUM(U183:U188) -> 444851.56
C191: Variance Analysis | D191: Year | G191: Year-over-year | I191: Test Year Versus Board-approved | K191: Year | L191: Year-over-year | O191: =I191 -> Test Year Versus Board-approved | Q191: Year | R191: Year-over-year | U191: =O191 -> Test Year Versus Board-approved
D192: =D183 -> 2012 | K192: =D192 -> 2012 | Q192: =K192 -> 2012
D193: 2013 | G193: -0.01023131673 | K193: =D193 -> 2013 | L193: -0.03246976115 | M193: -0.03246976115 | Q193: =K193 -> 2013 | R193: -0.02246832497 | S193: -0.02246832497
D194: 2014 | G194: -0.02561797753 | K194: 2014 | L194: 0.04387184449 | M194: 0.04387184449 | Q194: 2014 | R194: 0.07131681457 | S194: 0.07131681457
D195: 2015 | G195: -0.1406826568 | K195: 2015 | L195: -0.06028427838 | M195: -0.06028427838 | Q195: 2015 | R195: 0.09356075387 | S195: 0.09356075387
D196: 2016 | G196: 0.01610305958 | K196: 2016 | L196: 0.04685776539 | M196: 0.04685776539 | Q196: 2016 | R196: 0.03026730952 | S196: 0.03026730952
D197: 2017 | G197: -0.01480678413 | K197: 2017 | M197: -0.1115435879 | Q197: 2017 | S197: -0.09819069215
D198: 2018 | G198: -0.01480678413 | I198: -0.1250683151 | K198: 2018 | M198: -0.01357640519 | O198: 0.1460910562 | Q198: 2018 | S198: 0.001248870698 | U198: 6865.019444
D199: Geometric Mean | G199: -0.03953968196 | I199: -0.0328506682 | K199: Geometric Mean | L199: -0.002149909835 | M199: -0.0272995963 | O199: 0.03467696584 | Q199: Geometric Mean | R199: 0.05668902932 | S199: 0.01274397852 | U199: 8.102826334
D202: Calendar Year | F202: Revenues | K202: =IF(ISBLANK(N179),"",CONCATENATE("Demand (",N179,")")) -> Demand (kW) | Q202: =CONCATENATE("Demand (",N179,") per ",LEFT(F181,LEN(F181)-1)) -> Demand (kW) per Customer
D203: =CONCATENATE("(for ",TestYear," Cost of Service") -> (for 2018 Cost of Service | L203: Actual (Weather actual) | M203: Weather-normalized | O203: =M203 -> Weather-normalized | R203: =L203 -> Actual (Weather actual) | S203: =M203 -> Weather-normalized | U203: =O203 -> Weather-normalized
C204: Historical | D204: =D205-1 -> 2012 | F204: =F183 -> Actual | K204: =K183 -> Actual | L204: 319837.02 | M204: 319837.02 | Q204: =K204 -> Actual | R204: =L204/G183 -> 1707.315053
C205: Historical | D205: 2013 | F205: Actual | H205: Board-approved | I205: 917271.9195 | K205: Actual | L205: 299743.55 | M205: 299743.55 | N205: Board-approved | O205: 227921 | Q205: =K205 -> Actual | R205: =L205/G184 -> 1616.594427 | T205: Board-approved | U205: =O205/I184 -> 1302.405714
C206: Historical | D206: 2014 | F206: Actual | K206: Actual | L206: 305695.86 | M206: 305695.86 | Q206: Actual | R206: 1692.043506
C207: Historical | D207: 2015 | F207: Actual | K207: Actual | L207: 207631.15 | M207: 207631.15 | Q207: Actual | R207: 1337.398712
C208: Historical | D208: 2016 | F208: Actual | K208: Actual | L208: 285017.5 | M208: 285017.5 | Q208: Actual | R208: 1806.767036
C209: Bridge Year (Forecast) | D209: 2017 | F209: Actual | K209: Actual | L209: 285983 | M209: 285983 | Q209: Actual | R209: 1787.39375
C210: Test Year (Forecast) | D210: =TestYear -> 2018 | F210: Forecast | G210: 812154.69 | K210: Forecast | M210: 291383 | Q210: Forecast | R210: 0 | S210: =M210/G189 -> 1787.625767
I211: 917271.9195 | O211: =SUM(O204:O209) -> 227921 | U211: =SUM(U204:U209) -> 1302.405714
C212: Variance Analysis | D212: Year | G212: Year-over-year | I212: Test Year Versus Board-approved | K212: Year | L212: Year-over-year | O212: =I212 -> Test Year Versus Board-approved | Q212: Year | R212: Year-over-year | U212: =O212 -> Test Year Versus Board-approved
D213: =D204 -> 2012 | K213: =D213 -> 2012 | Q213: =K213 -> 2012
D214: 2013 | K214: =D214 -> 2013 | L214: -0.06282409084 | M214: -0.06282409084 | Q214: =K214 -> 2013 | R214: =IF(R204="","",IF(R204=0,"",R205/R204-1)) -> -0.05313642976
D215: 2014 | K215: 2014 | L215: 0.01985800862 | M215: 0.01985800862 | Q215: 2014 | R215: 0.04667161863
D216: 2015 | K216: 2015 | L216: -0.3207917503 | M216: -0.3207917503 | Q216: 2015 | R216: -0.2095955527
D217: 2016 | K217: 2016 | L217: 0.3727106939 | M217: 0.3727106939 | Q217: 2016 | R217: 0.3509561663
D218: 2017 | K218: 2017 | M218: -0.04384277812 | Q218: 2017 | R218: =IF(Q209="Forecast","",IF(R208=0,"",R209/R208-1)) -> -0.01072262558 | S218: =IF(S208="","",IF(S208=0,"",S209/S208-1)) -> 
D219: 2018 | I219: -0.1145976752 | K219: 2018 | M219: -0.01016118892 | O219: 0.1835346375 | Q219: 2018 | R219: =IF(Q210="Forecast","",IF(R209=0,"",R210/R209-1)) ->  | S219: =IF(S209="","",IF(S209=0,"",S210/S209-1)) ->  | U219: =IF(U211=0,"",S210/U211-1) -> 0.3725567596
D220: Geometric Mean | I220: -0.02997000303 | K220: Geometric Mean | L220: -0.03769162532 | M220: -0.03348785249 | O220: 0.04302626112 | Q220: Geometric Mean | R220: =IF(R204="","",IF(R204=0,"",(R208/R204)^(1/($D208-$D204-1))-1)) -> 0.01905157134 | S220: =IF(S204="","",IF(S204=0,"",(S210/S204)^(1/($D210-$D204-1))-1)) ->  | U220: =IF(U211=0,"",(S210/U211)^(1/(TestYear-RebaseYear-1))-1) -> 0.06538373593
B241: 4 | C241: Customer Class: | D241: Intermediate | H241: Is the customer class billed on consumption (kWh) or demand (kW or kVA)? | N241: kW
D243: Calendar Year | F243: Customers | K243: Consumption (kWh) (3) | Q243: =CONCATENATE("Consumption (kWh) per ",LEFT(F243,LEN(F243)-1)) -> Consumption (kWh) per Customer
D244: =CONCATENATE("(for ",TestYear," Cost of Service") -> (for 2018 Cost of Service | L244: Actual (Weather actual) | M244: Weather-normalized | O244: Weather-normalized | R244: =L244 -> Actual (Weather actual) | S244: =M244 -> Weather-normalized | U244: =O244 -> Weather-normalized
C245: Historical | D245: =D246-1 -> 2012 | F245: =F183 -> Actual | G245: 7 | K245: =F245 -> Actual | L245: 91655514 | M245: 91655514 | Q245: =K245 -> Actual | R245: =L245/G245 -> 13093644.86 | S245: =IF(G245=0,"",M245/G245) -> 13093644.86 | T245: =N245 ->  | U245: =IF(T245="","",IF(I245=0,"",O245/I245)) -> 
C246: Historical | D246: 2013 | F246: Actual | G246: 7 | H246: Board-approved | I246: 7 | K246: =F246 -> Actual | L246: 91281157 | M246: 91281157 | N246: Board-approved | O246: 69200000 | Q246: =K246 -> Actual | R246: =L246/G246 -> 13040165.29 | S246: =IF(G246=0,"",M246/G246) -> 13040165.29 | T246: =N246 -> Board-approved | U246: =O246/I246 -> 9885714.286
C247: Historical | D247: 2014 | F247: Actual | G247: 7 | K247: Actual | L247: 94136923 | M247: 94136923 | Q247: Actual | R247: 13448131.86 | S247: 13448131.86 | U247: =IF(T247="","",IF(I247=0,"",O247/I247)) -> 
C248: Historical | D248: 2015 | F248: Actual | G248: 7 | K248: Actual | L248: 92958964 | M248: 92958964 | Q248: Actual | R248: 13279852 | S248: 13279852
C249: Historical | D249: 2016 | F249: Actual | G249: 7 | K249: Actual | L249: 82452404 | M249: 82452404 | Q249: Actual | R249: 11778914.86 | S249: 11778914.86
C250: Bridge Year | D250: 2017 | F250: Actual | G250: 7 | K250: Actual | L250: 80816478 | M250: 80816478 | Q250: Actual | R250: 11545211.14 | S250: 11545211.14
C251: Test Year | D251: =TestYear -> 2018 | F251: Forecast | G251: 6 | K251: Forecast | M251: 75987748 | Q251: Forecast | R251: =IF(G251=0,"",L251/G251) -> 0 | S251: 12664624.67
I252: =SUM(I245:I250) -> 7 | O252: =SUM(O245:O250) -> 69200000 | U252: =SUM(U245:U250) -> 9885714.286
C253: Variance Analysis | D253: Year | G253: Year-over-year | I253: Test Year Versus Board-approved | K253: Year | L253: Year-over-year | O253: =I253 -> Test Year Versus Board-approved | Q253: Year | R253: Year-over-year | U253: =O253 -> Test Year Versus Board-approved
D254: =D245 -> 2012 | K254: =D254 -> 2012 | Q254: =K254 -> 2012
D255: 2013 | G255: 0 | K255: =D255 -> 2013 | L255: -0.007478920498 | M255: -0.007478920498 | Q255: =K255 -> 2013 | R255: -0.007478920498 | S255: -0.007478920498
D256: 2014 | G256: 0 | K256: 2014 | L256: -0.0002022553279 | M256: -0.0002022553279 | Q256: 2014 | R256: -0.0002022553279 | S256: -0.0002022553279
D257: 2015 | G257: 0 | K257: 2015 | L257: -0.04592292494 | M257: -0.04592292494 | Q257: 2015 | R257: -0.04592292494 | S257: -0.04592292494
D258: 2016 | G258: 0 | K258: 2016 | L258: -0.1256909892 | M258: -0.1256909892 | Q258: 2016 | R258: -0.1256909892 | S258: -0.1256909892
D259: 2017 | G259: 0 | K259: 2017 | M259: 0.1313959221 | Q259: 2017 | S259: 0.1313959221
D260: 2018 | G260: -0.1428571429 | I260: -0.1428571429 | K260: 2018 | M260: -0.08944858435 | O260: 0.1122454649 | Q260: 2018 | S260: 0.06230998492 | U260: 0.297619709
D261: Geometric Mean | G261: -0.0303597339 | I261: -0.0378045418 | K261: Geometric Mean | L261: -0.06106952419 | M261: -0.03135670196 | O261: 0.02695203751 | Q261: Geometric Mean | R261: -0.06106952419 | S261: -0.001028183426 | U261: 0.06730085739
D264: Calendar Year | F264: Revenues | K264: =IF(ISBLANK(N241),"",CONCATENATE("Demand (",N241,")")) -> Demand (kW) | Q264: =CONCATENATE("Demand (",N241,") per ",LEFT(F243,LEN(F243)-1)) -> Demand (kW) per Customer
D265: =CONCATENATE("(for ",TestYear," Cost of Service") -> (for 2018 Cost of Service | L265: Actual (Weather actual) | M265: Weather-normalized | O265: =M265 -> Weather-normalized | R265: =L265 -> Actual (Weather actual) | S265: =M265 -> Weather-normalized | U265: =O265 -> Weather-normalized
C266: Historical | D266: =D267-1 -> 2012 | F266: =F245 -> Actual | K266: =K245 -> Actual | L266: 188608.4 | M266: 188608.4 | Q266: =K266 -> Actual | R266: =L266/G245 -> 26944.05714 | S266: =M266/G245 -> 26944.05714 | T266: =N266 ->  | U266: =IF(T266="","",IF(I266=0,"",O266/I266)) -> 
C267: Historical | D267: 2013 | F267: Actual | H267: Board-approved | I267: 584380.5991 | K267: Actual | L267: 186063.39 | M267: 186063.39 | N267: Board-approved | O267: 123604 | Q267: =K267 -> Actual | R267: =L267/G246 -> 26580.48429 | S267: =M267/G246 -> 26580.48429 | T267: =N267 -> Board-approved | U267: =O267/I246 -> 17657.71429
C268: Historical | D268: 2014 | F268: Actual | K268: Actual | L268: 173701.3 | M268: 173701.3 | Q268: Actual | R268: 24814.47143 | S268: 24814.47143 | U268: =IF(T268="","",IF(I268=0,"",O268/I268)) -> 
C269: Historical | D269: 2015 | F269: Actual | K269: Actual | L269: 203107.54 | M269: 203107.54 | Q269: Actual | R269: 29015.36286 | S269: 29015.36286
C270: Historical | D270: 2016 | F270: Actual | K270: Actual | L270: 186368.7 | M270: 186368.7 | Q270: Actual | R270: 26624.1 | S270: 26624.1
C271: Bridge Year (Forecast) | D271: 2017 | F271: Actual | K271: Actual | L271: 181555 | M271: 181555 | Q271: Actual | R271: 25936.42857 | S271: 25936.42857
C272: Test Year (Forecast) | D272: =TestYear -> 2018 | F272: Forecast | G272: 501055.39 | K272: Forecast | M272: 163254 | Q272: Forecast | R272: =IF(G272=0,"",L272/G272) -> 0 | S272: 27209
I273: =SUM(I266:I271) -> 584380.5991 | O273: =SUM(O266:O271) -> 123604 | U273: =SUM(U266:U271) -> 17657.71429
C274: Variance Analysis | D274: Year | G274: Year-over-year | I274: =I253 -> Test Year Versus Board-approved | K274: Year | L274: Year-over-year | O274: =I274 -> Test Year Versus Board-approved | Q274: Year | R274: Year-over-year | U274: =O274 -> Test Year Versus Board-approved
D275: =D266 -> 2012 | K275: =D275 -> 2012 | Q275: =K275 -> 2012
D276: 2013 | K276: =D276 -> 2013 | L276: -0.01349361958 | M276: -0.01349361958 | Q276: =K276 -> 2013
D277: 2014 | K277: 2014 | L277: -0.06644020621 | M277: -0.06644020621 | Q277: 2014
D278: 2015 | K278: 2015 | L278: 0.1692919972 | M278: 0.1692919972 | Q278: 2015
D279: 2016 | K279: 2016 | L279: -0.08241368095 | M279: -0.08241368095 | Q279: 2016
D280: 2017 | K280: 2017 | M280: -0.01470612498 | Q280: 2017
D281: 2018 | I281: -0.1425872269 | K281: 2018 | M281: -0.09936510734 | O281: 0.337996576 | Q281: 2018 | U281: 0.5605045994
D282: Geometric Mean | I282: -0.03772880144 | K282: Geometric Mean | L282: -0.003974061838 | M282: -0.02594091958 | O282: 0.07550826087 | Q282: Geometric Mean | U282: 0.1176768696
B304: 5 | C304: Customer Class: | D304: Large User | H304: Is the customer class billed on consumption (kWh) or demand (kW or kVA)? | N304: kWh
D306: Calendar Year | F306: Customers | K306: Consumption (kWh) (3) | Q306: =CONCATENATE("Consumption (kWh) per ",LEFT(F306,LEN(F306)-1)) -> Consumption (kWh) per Customer
... 233 more rows

Sheet App.2-JA_OM&A_Summary_Analys
K1: File Number: | L1: =EBNUMBER -> EB-2017-0038
K2: Exhibit: | L2: 4
K3: Tab: | L3: 2
K4: Schedule:
K5: Page: | L5: 13
K7: Date: | L7: February 26, 2018
A9: Appendix 2-JA
A10: Summary of Recoverable OM&A Expenses
B13: ="Last Rebasing Year (" & RebaseYear & " Board-Approved)" -> Last Rebasing Year (2012 Board-Approved) | C13: ="Last Rebasing Year (" & RebaseYear & " Actuals)" -> Last Rebasing Year (2012 Actuals) | D13: =BridgeYear -4 & " Actuals" -> 2013 Actuals | E13: =BridgeYear -3 & " Actuals" -> 2014 Actuals | F13: =BridgeYear -2 & " Actuals" -> 2015 Actuals | G13: =BridgeYear -1 & " Actuals" -> 2016 Actuals | H13: =BridgeYear & " Bridge Year" -> 2017 Bridge Year | I13: =TestYear & " Test Year" -> 2018 Test Year
A14: Reporting Basis
A15: Operations | B15: ='[17]4-5 Summ Recvrble OM&A '!$C$6 -> 187550.9417 | C15: ='[17]4-5 Summ Recvrble OM&A '!$D$6 -> 160299.49 | D15: 100096.2 | E15: 110017.7 | F15: ='[17]4-5 Summ Recvrble OM&A '!$G$6 -> 128569.22 | G15: ='[17]4-5 Summ Recvrble OM&A '!$H$6 -> 91573.77 | H15: ='[17]4-5 Summ Recvrble OM&A '!$I$6 -> 93130.52409 | I15: ='[17]4-5 Summ Recvrble OM&A '!$J$6 -> 116388.743
A16: Maintenance | B16: ='[17]4-5 Summ Recvrble OM&A '!$C$7 -> 696404.684 | C16: ='[17]4-5 Summ Recvrble OM&A '!$D$7 -> 595215.97 | D16: 645160.6 | E16: 578159.41 | F16: ='[17]4-5 Summ Recvrble OM&A '!$G$7 -> 320159.95 | G16: ='[17]4-5 Summ Recvrble OM&A '!$H$7 -> 286801.81 | H16: 363401 | I16: 368360
A17: SubTotal | B17: =SUM(B15:B16) -> 883955.6257 | C17: 755515.46 | D17: 745256.8 | E17: 688177.11 | F17: 448729.17 | G17: 378375.58 | H17: 456531.5241 | I17: 484748.743
A18: %Change (year over year) | F18: =IF(ISERROR((F17-C17)/C17), "", (F17-C17)/C17) -> -0.4060622267 | G18: =IF(ISERROR((G17-F17)/F17), "", (G17-F17)/F17) -> -0.1567840798 | H18: =IF(ISERROR((H17-G17)/G17), "", (H17-G17)/G17) -> 0.2065565227 | I18: =IF(ISERROR((I17-H17)/H17), "", (I17-H17)/H17) -> 0.06180782141
A19: %Change (Test Year vs Last Rebasing Year - Actual) | I19: =IF(ISERROR((I17-C17)/C17), "", (I17-C17)/C17) -> -0.3583867324
A20: Billing and Collecting | B20: 987418.0049 | C20: 843945 | D20: 1172874.11 | E20: 1259465.01 | F20: 1123052 | G20: 993572 | H20: 1010498.08 | I20: 1052713.777
A21: Community Relations | C21: 18711 | D21: 22086 | E21: 22871 | F21: 21168 | G21: 24584 | H21: 24584 | I21: 24953
A22: Administrative and General | B22: 3789220.426 | C22: 3236967 | D22: =3682598.24-D21 -> 3660512.24 | E22: =3655306.52-E21 -> 3632435.52 | F22: 4199274 | G22: 4595970 | H22: 4690294.003 | I22: 4894353.879
A23: SubTotal | B23: =SUM(B20:B22) -> 4776638.431 | C23: 4099623 | D23: 4855472.35 | E23: 4914771.53 | F23: 5343494 | G23: 5614126 | H23: 5725376.083 | I23: 5972020.656
A24: %Change (year over year) | F24: =IF(ISERROR((F23-C23)/C23), "", (F23-C23)/C23) -> 0.3034110697 | G24: =IF(ISERROR((G23-F23)/F23), "", (G23-F23)/F23) -> 0.05064701111 | H24: 0.01981612195 | I24: 0.04307919152
A25: %Change (Test Year vs Last Rebasing Year - Actual) | I25: 0.4567244936
A26: Total | B26: =SUM(B23,B17) -> 5660594.057 | C26: 4855138.46 | D26: 5600729.15 | E26: 5602948.64 | F26: 5792223.17 | G26: 5992501.58 | H26: 6181908.048 | I26: 6456769.356
A27: %Change (year over year) | F27: =IF(ISERROR((F26-C26)/C26), "", (F26-C26)/C26) -> 0.193008854 | G27: =IF(ISERROR((G26-F26)/F26), "", (G26-F26)/F26) -> 0.03457712248 | H27: 0.03160726604 | I27: 0.04446221233
B30: =B13 -> Last Rebasing Year (2012 Board-Approved) | C30: Last Rebasing Year (2012 Actuals) | D30: 2013 Actuals | E30: 2014 Actuals | F30: 2015 Actuals | G30: 2016 Actuals | H30: 2017 Bridge Year | I30: 2018 Test Year
A31: Operations | B31: 187550.9417 | C31: 160299.49 | D31: 100096.2 | E31: 110017.7 | F31: 128569.22 | G31: 91573.77 | H31: 93130.52409 | I31: 116388.743
A32: Maintenance | B32: 696404.684 | C32: 595215.97 | D32: 645160.6 | E32: 578159.41 | F32: 320159.95 | G32: 286801.81 | H32: 363401.4408 | I32: 368359.9573
A33: Billing and Collecting | B33: 987418.0049 | C33: 843944.59 | D33: 1172874.11 | E33: 1259465.01 | F33: 1123051.55 | G33: 993572.08 | H33: 1010498.08 | I33: 1052713.777
A34: Community Relations | B34: 0 | C34: 18711 | D34: 22086 | E34: 22871 | F34: 21168 | G34: 24584 | H34: 24584 | I34: 24953
A35: Administrative and General | B35: 3789220.365 | C35: 3236967.01 | D35: 3682598.24 | E35: 3655306.52 | F35: 4199274.3 | G35: 4595969.8 | H35: 4690294.003 | I35: 4894353.879
A36: Total | B36: 5660593.995 | C36: 4855138.06 | D36: 5622815.15 | E36: 5625819.64 | F36: 5792223.02 | G36: 5992501.46 | H36: 6181908.048 | I36: 6456769.356
A37: %Change (year over year) | F37: 0.1930089214 | G37: 0.03457712856 | H37: 0.03160726604 | I37: 0.04446221233
B40: Last Rebasing Year (2012 Board-Approved) | C40: Last Rebasing Year (2012 Actuals) | D40: Variance 2012 Board-approved – 2012 Actuals | E40: 2013 Actuals | F40: Variance 2013 Actuals vs. 2012 Actuals | G40: 2014 Actuals | H40: Variance 2014 Actuals vs. 2013 Actuals | I40: 2015 Actuals | J40: Variance 2015 Actuals vs. 2014 Actuals | K40: 2016 Actuals | L40: Variance 2016 Actuals vs. 2015 Actuals | M40: 2017 Bridge Year | N40: Variance 2017 Bridge vs. 2016 Actuals | O40: 2018 Test Year | P40: Variance 2018 Test vs. 2017 Bridge
A41: Operations | B41: 187550.9417 | C41: 160299.49 | D41: 27251.4517 | E41: 100096.2 | F41: -60203.29 | G41: 110017.7 | H41: 9921.5 | I41: 128569.22 | J41: 18551.52 | K41: 91573.77 | L41: -36995.45 | M41: 93130.52409 | N41: 1556.75409 | O41: 116388.743 | P41: 23258.21891
A42: Maintenance | B42: 696404.684 | C42: 595215.97 | D42: 101188.714 | E42: 645160.6 | F42: 49944.63 | G42: 578159.41 | H42: -67001.19 | I42: 320159.95 | J42: -257999.46 | K42: 286801.81 | L42: -33358.14 | M42: 363401.4408 | N42: 76599.63077 | O42: 368359.9573 | P42: 4958.516493
A43: Billing and Collecting | B43: 987418.0049 | C43: 843944.59 | D43: 143473.4149 | E43: 1172874.11 | F43: 328929.52 | G43: 1259465.01 | H43: 86590.9 | I43: 1123051.55 | J43: -136413.46 | K43: 993572.08 | L43: -129479.47 | M43: 1010498.08 | N43: 16926.00036 | O43: 1052713.777 | P43: 42215.69637
A44: Community Relations | B44: 0 | C44: 18711 | D44: -18711 | E44: 22086 | F44: 3375 | G44: 22871 | H44: 785 | I44: 21168 | J44: -1703 | K44: 24584 | L44: 3416 | M44: 24584 | N44: 0 | O44: 24953 | P44: 369
A45: Administrative and General | B45: 3789220.365 | C45: 3236967.01 | D45: 552253.3545 | E45: 3682598.24 | F45: 445631.23 | G45: 3655306.52 | H45: -27291.72 | I45: 4199274.3 | J45: 543967.78 | K45: 4595969.8 | L45: 396695.5 | M45: 4690294.003 | N45: 94324.2027 | O45: 4894353.879 | P45: 204059.8765
A46: Total OM&A Expenses | B46: 5660593.995 | C46: 4855138.06 | D46: 805455.9351 | E46: 5622815.15 | F46: 767677.09 | G46: 5625819.64 | H46: 3004.49 | I46: 5792223.02 | J46: 166403.38 | K46: 5992501.46 | L46: 200278.44 | M46: 6181908.048 | N46: 189406.5879 | O46: 6456769.356 | P46: 274861.3082
A47: Adjustments for Total non-recoverable items (from Appendices 2-JA and 2-JB)
A48: Total Recoverable OM&A Expenses | B48: 5660593.995 | C48: 4855138.06 | D48: 805455.9351 | E48: 5600729.15 | F48: 767677.09 | G48: 5602948.64 | H48: 3004.49 | I48: 5792223.02 | J48: 166403.38 | K48: 5992501.46 | L48: 200278.44 | M48: 6181908.048 | N48: 189406.5879 | O48: 6456769.356 | P48: 274861.3082
A49: Variance from previous year | E49: 745591.09 | G49: 2219.49 | I49: 189274.38 | K49: 200278.44 | M49: 189406.5879 | O49: 274861.3082
A50: Percent change (year over year) | E50: 0.1535674333 | G50: 0.0003962859015 | I50: 0.03378120917 | K50: 0.03457712856 | M50: 0.03160726604 | O50: 0.04446221233
A51: Percent Change: Test year vs. Most Current Actual | K51: 0.07747480735
A52: Simple average of % variance for all years | K52: 0.3298837801 | P52: 0.03610695403
A53: Compound Annual Growth Rate for all years | P53: 0.05867519563
A54: ="Compound Growth Rate (" & G13 & " vs. " & 'LDC Info'!E28 & " Actuals)" -> Compound Growth Rate (2016 Actuals vs. 2012 Actuals) | K54: 0.07267671876
A56: Note:
A58: 1 If it has been more than three years since the applicant last filed a cost of service application, additional years of historical actuals should be incorporated into the table, as necessary, to go back to the last cost of service application. If the applicant last filed a cost of service application less than three years ago, a minimum of three years of actual information is required.
A60: 2 Recoverable OM&A that is included on these tables should be identical to the recoverable OM&A that is shown for the corresponding periods on Appendix 2-JB.

Sheet App.2-JB_OM&A_Cost _Drivers
G1: File Number: | H1: =EBNUMBER -> EB-2017-0038
G2: Exhibit: | H2: 4
G3: Tab: | H3: 2
G4: Schedule:
G5: Page: | H5: 14
G7: Date: | H7: February 26, 2018
A10: Appendix 2-JB
A11: ="Recoverable OM&A Cost Driver Table" & CHAR(185)&CHAR(183)&CHAR(179) -> Recoverable OM&A Cost Driver Table¹·³
A13: OM&A | B13: ="Last Rebasing Year ("&RebaseYear&" Actuals)" -> Last Rebasing Year (2012 Actuals) | C13: =BridgeYear -4 & " Actuals" -> 2013 Actuals | D13: =BridgeYear -3 & " Actuals" -> 2014 Actuals | E13: =BridgeYear -2 & " Actuals" -> 2015 Actuals | F13: =BridgeYear -1 & " Actuals" -> 2016 Actuals | G13: =BridgeYear & " Bridge Year" -> 2017 Bridge Year | H13: =TestYear & " Test Year" -> 2018 Test Year
A14: Reporting Basis
A15: Opening Balance | B15: 5660594 | C15: =B48 -> 5600728.87 | D15: 5600728.87 | E15: 5602948.911 | F15: 5792222.581 | G15: 5992500.311 | H15: 6181909.014
A18: Affiliate Revenue Cost Offset | B18: -272487
A19: Increase in recovery from Affiliate One Time Project | B19: =-142510+88932 -> -53578
A20: Decrease in Labour for one FTE | B20: -75470 | D20: -100345.77
A21: Increase in Operating Costs for Capitalization Policy Change | B21: 258314.86 | D21: 6594.23 | E21: 10185.72 | F21: 19834.55 | G21: 6144.12 | H21: 6273.14
A22: Inflation | B22: 83355 | D22: 73328.50491 | E22: 89611.66283 | F22: 89647.18349 | G22: 92675.5622 | H22: 91173.50552
A23: Change in Labour Costs | B23: 52548.72 | D23: 91828.992 | E23: 158660.908 | F23: 3513.786 | G23: -174501.9084 | H23: 44536.27555
A24: Change in Benefit Costs | B24: 55451.29 | D24: 24213.084 | E24: 38734.284 | F24: 21204.366 | G24: -43029.92614 | H24: 10982.07272
A25: Decrease in Consulting Costs COS application ended | B25: -108000
A26: Decrease in Rent | D26: -34337
A27: Decrease in Outside Services | D27: -81705
A28: Increase for Website | D28: 22643
A29: Increase for Scada | E29: 22402
A30: Increase In Affiliate Costs | H30: 66633.6519
A31: Decrease In Affiliate Costs | E31: -15824.905 | F31: -86822.155 | G31: -60445.1452
A32: Correction for Revenue from Affiliate | E32: -114496
A33: Increase for OMS | F33: 22412
A34: Increase in Outside Services | F34: 107088
A35: Increase for ESA Survey 2015 and Customer Survey 2016 | F35: 12000
A36: Increase for Regulatory costs ESA | F36: 11400
A37: Increase in Regulatory Costs OEB Cost Assessment | G37: 86640
A38: Increase for Meter Maintenance and disposals | G38: 71724
A39: Increase to meet regulatory changes in CIS | G39: 27868
A40: Increase for Customer engagement and My Account Portal | G40: 38672
A41: Costs for preparation of DSP | G41: 143662 | H41: -143662
A42: Cost of Service Application Expenses One Time | H42: 63422
A43: Increase for Cyber Security and Risk Costs | H43: 135500
A48: ="Closing Balance"&CHAR(178) -> Closing Balance² | B48: =SUM(B15:B47) -> 5600728.87 | C48: =SUM(C15:C47) -> 5600728.87 | D48: 5602948.911 | E48: 5792222.581 | F48: 5992500.311 | G48: =SUM(G15:G47) -> 6181909.014 | H48: 6456767.659
A50: Notes:
A52: 1 | B52: For each year, a detailed explanation for each cost driver and associated amount is requied in Exhibit 4.
A53: 2 | B53: Opening Balance for "Last Rebasing Year" (cell B15) should be equal to the Board-Approved amount. For purposes of assessing incremental cost drivers, the closing balance for each year becomes the opening balance for the next year.
A54: 3 | B54: If it has been more than four years since the applicant last filed a cost of service application, additional years of historical actuals should be incorporated into the table, as necessary, to go back to the last cost of service application. If the applicant last filed a cost of service application less than four years ago, a minimum of three years of actual information is required.

Sheet App.2-JC_OMA Programs
J1: File Number: | K1: 2017-0038
J2: Exhibit: | K2: 4
J3: Tab: | K3: 3
J4: Schedule:
J5: Page: | K5: 17
J7: Date: | K7: February 26, 2018
A9: Appendix 2-JC
A10: OM&A Programs Table
A13: Programs | B13: Last Rebasing Year (2012 Board-Approved) | C13: Last Rebasing Year (2012 Actuals) | D13: 2013 Actuals | E13: 2014 Actuals | F13: 2015 Actuals | G13: 2016 Actuals | H13: 2017 Bridge Year | I13: 2018 Test Year | J13: Variance (Test Year vs. 2016 Actuals) | K13: Variance (Test Year vs. Last Rebasing Year (2012 Board-Approved)
A14: Reporting Basis | B14: CGAAP | C14: CGAAP | D14: CGAAP | E14: MIFRS | F14: MIFRS | G14: MIFRS | H14: MIFRS | I14: MIFRS
A15: Administration
A16: Administration
A17: General Building Expenses | B17: 465766.6722 | C17: 398090.03 | D17: 426218.16 | E17: 414871.15 | F17: 935689.28 | G17: 991531.72 | H17: 1045099 | I17: 1046555 | J17: 55024 | K17: =I17-B17 -> 580788.3278
A18: Salaries and Expenses | B18: 1664032.129 | C18: 1422245.6 | D18: 2144410.17 | E18: 2468032.13 | F18: 2537680.93 | G18: 2654946.42 | H18: 2834411 | I18: 2838361 | J18: =I18-G18 -> 183414.58 | K18: =I18-B18 -> 1174328.871
A19: Insurance | B19: 39383.19056 | C19: 33660.75 | D19: 26188.67 | E19: 28128.24 | F19: 25072.39 | G19: 28197.49 | H19: 28004 | I19: 28043 | J19: -154.49 | K19: -11340.19056
A20: Office Expenses | B20: 140190.5629 | C20: 119820.65 | D20: 74087.25 | E20: 94764.95 | F20: 69781.94 | G20: 139937.45 | H20: 77942 | I20: 78050 | J20: -61887.45 | K20: -62140.56294
A21: Audit, Legal and Consulting | B21: 549670.6199 | C21: 469802.6 | D21: 255694.81 | E21: 126796.88 | F21: 208258.53 | G21: 315346.3 | H21: 232610 | I21: 232934 | J21: -82412.3 | K21: -316736.6199
A22: Regulatory Affairs | B22: 79281.88459 | C22: 67762.1 | D22: 132664.07 | E22: 59336.92 | F22: 78600.87 | G22: 71081.26 | H22: 87792 | I22: 285561 | J22: 214479.74 | K22: 206279.1154
A23: Administrative & Human Resource Expenses | B23: 583417 | C23: 496972 | D23: 382108 | E23: 211829 | F23: 116215 | G23: 156404 | H23: 129804 | I23: 129943 | J23: -26461 | K23: -453474
A24: Rent | B24: 267478.3054 | C24: 228613.28 | D24: 219141.32 | E24: 228677.02 | F24: 227975.36 | G24: 238525.16 | H24: 254632 | I24: 254905 | J24: 16379.84 | K24: -12573.30544
J25: 0 | K25: 0
A26: Sub-Total | B26: 3709593.309 | C26: 3170583.47 | D26: 3650977.47 | E26: 3639091.15 | F26: 4195351.46 | G26: 4581128.45 | H26: 4746507.634 | I26: 4950253.57 | J26: 369125.1201 | K26: 1240660.261
A28: Community Relations | C28: 18711 | D28: 22086 | E28: 22871 | F28: 21168 | G28: 24584 | H28: 24584 | I28: 24953 | J28: =I28-G28 -> 369 | K28: =I28-B28 -> 24953
A29: Sub-Total | B29: 79627.11748 | C29: 68057.17 | D29: 31620.77 | E29: 16215.37 | F29: 24849.61 | G29: 39424.65 | H29: 40094.86905 | I29: 40776.48182 | J29: 1351.831824 | K29: -38850.63566
A31: Customer Service | J31: 0 | K31: 0
A32: Bad Debt | B32: 31927.36755 | C32: 27288.27 | D32: 112465.38 | E32: 22618.05 | F32: 87793.37 | G32: 26204.23 | H32: 53700 | I32: 63538 | J32: =I32-G32 -> 37333.77 | K32: =I32-B32 -> 31610.63245
A33: Customer Service & Billings | B33: 840788.2816 | C33: 718620.4 | D33: 866160.32 | E33: 1036486.94 | F33: 840661.94 | G33: 799615.21 | H33: 769310 | I33: 781782 | J33: -17833.21 | K33: -59006.28163
A34: Customer Collections | B34: 114702.3557 | C34: 98035.92 | D34: 181767.8 | E34: 188435.02 | F34: 183012.24 | G34: 155827.64 | H34: 175325 | I34: 194987 | J34: =I34-G34 -> 39159.36 | K34: =I34-B34 -> 80284.64433
A35: Sub-Total | B35: 987418.0049 | C35: 843944.59 | D35: 1160393.5 | E35: 1247540.01 | F35: 1111467.55 | G35: 981647.08 | H35: 998335.0804 | I35: 1040306.777 | J35: 58659.69673 | K35: 52888.77187
A38: Maintenance | J38: 0 | K38: 0
A39: Meter Maintenance | B39: 134099.2637 | C39: 114614.4263 | D39: 158892.83 | E39: 36735.96 | F39: 133663.83 | G39: 47531.29 | H39: 90257 | I39: 120885 | J39: =I39-G39 -> 73353.71 | K39: =I39-B39 -> -13214.26372
A40: Overhead / Underground Maintenance | B40: 354098.6365 | C40: 302647.5385 | D40: 340632.71 | E40: 391352.75 | F40: -45193.88 | G40: 144373.55 | H40: 197435 | I40: 149324 | J40: 4950.45 | K40: -204774.6365
A41: Station Maintenance | B41: 49911.92303 | C41: 42659.64081 | D41: 28581.97 | E41: 26687.85 | F41: 53287.28 | G41: 10735.22 | H41: 13464 | I41: 11103.31996 | J41: 368.0999586 | K41: -38808.60307
A42: Vegetation Control | B42: 103460.7986 | C42: 88427.77915 | D42: 83303.64 | E42: 83105 | F42: 136952.24 | G42: 71793.78 | H42: 41926 | I42: 74255.51692 | J42: 2461.736922 | K42: -29205.28168
A43: Transformer Maintenance | B43: 54834.0622 | C43: 46866.58529 | D43: 33749.45 | E43: 40277.85 | F43: 41450.48 | G43: 12367.97 | H43: 20320 | I43: 12792.05532 | J43: 424.0853233 | K43: -42042.00687
A44: Sub-Total | B44: 696404.684 | C44: 595215.97 | D44: 645160.6 | E44: 578159.41 | F44: 320159.95 | G44: 286801.81 | H44: 291677.4408 | I44: 296635.9573 | J44: 9834.147263 | K44: -399768.7268
A46: Operations
A47: Operations Supervision and Engineering | B47: 67468.87548 | C47: 57665.54 | D47: 43165.71 | E47: 40365.05 | F47: 42370.14 | G47: 0 | H47: 30691 | I47: 38356 | J47: =I47-G47 -> 38356 | K47: =I47-B47 -> -29112.87548
A48: Miscellaneous Operation | B48: 120082.0662 | C48: 102633.95 | D48: 56930.49 | E48: 69652.65 | F48: 86199.08 | G48: 91573.77 | H48: 62439 | I48: 78033 | J48: 3139.973 | K48: -25368.32322
A49: Sub-Total | B49: 187550.9417 | C49: 160299.49 | D49: 100096.2 | E49: 110017.7 | F49: 128569.22 | G49: 91573.77 | H49: 93130.52409 | I49: 116388.743 | J49: 24814.973 | K49: -71162.1987
A51: Miscellaneous | D51: 12480 | E51: 11925 | F51: 11584 | G51: 11925 | H51: 12163 | I51: 12407 | J51: 482 | K51: 12407
A52: Total
A53: Notes:
A55: 1 Please provide a breakdown of the major components of each OM&A Program undertaken in each year. Please ensure that all Programs below the materiality threshold are included in the miscellaneous line. Add more Programs as required.
A56: 2 The applicant should group projects appropriately and avoid presentations that result in classification of significant components of the OM&A budget in the miscellaneous category

Sheet App.2-K_Employee Costs
G1: File Number: | H1: =EBNUMBER -> EB-2017-0038
G2: Exhibit: | H2: 4
G3: Tab: | H3: 4
G4: Schedule:
G5: Page: | H5: 28
G7: Date: | H7: February 26, 2018
A9: Appendix 2-K
A10: Employee Costs
B12: Last Rebasing Year - 2012- Board Approved | C12: Last Rebasing Year - 2012- Actual | D12: 2013 Actuals | E12: 2014 Actuals | F12: 2015 Actuals | G12: 2016 Actuals | H12: 2017 Bridge Year | I12: 2018 Test Year
A13: Number of Employees (FTEs including Part-Time)1
A14: Management (including executive) | B14: 12 | C14: 12 | D14: 12 | E14: 12 | F14: 14 | G14: 15 | H14: 14 | I14: 14
A15: Non-Management (union and non-union) | B15: 33 | C15: 32 | D15: 33 | E15: 33 | F15: 31 | G15: 31 | H15: 30 | I15: 30
A16: Total | B16: =B14+B15 -> 45 | C16: =C14+C15 -> 44 | D16: 45 | E16: 45 | F16: 45 | G16: 46 | H16: 44 | I16: 44
A17: Total Salary and Wages including ovetime and incentive pay
A18: Management (including executive) | B18: 1080161 | C18: 1152878.89 | D18: 1215962 | E18: 1235070.32 | F18: 1387431.5 | G18: 1607297.42 | H18: 1486771.18 | I18: 1516506.604
A19: Non-Management (union and non-union) | B19: 2153368 | C19: 2257488 | D19: 2259558 | E19: 2393498 | F19: 2608905 | G19: 2394895.39 | H19: 2224585.116 | I19: 2269076.818
A20: Total | B20: 3233529 | C20: 3410366.89 | D20: 3475520 | E20: 3628568.32 | F20: 3996336.5 | G20: 4002192.81 | H20: 3711356.296 | I20: 3785583.422
A21: Total Benefits (Current + Accrued) 2
A22: Management (including executive) | B22: 255094.4075 | C22: 269045.22 | D22: 297159.57 | E22: 299098.82 | F22: 334012.13 | G22: 378586.11 | H22: 351074.5258 | I22: 358096.0163
A23: Non-Management (union and non-union) | B23: 482454.3976 | C23: 508839.26 | D23: 549476.81 | E23: 587892.7 | F23: 617536.53 | G23: 608303.16 | H23: 564098.2006 | I23: 575380.1647
A24: Total | B24: 737548.8051 | C24: 777884.48 | D24: 846636.38 | E24: 886991.52 | F24: 951548.66 | G24: 986889.27 | H24: 915172.7264 | I24: 933476.181
A25: Total Compensation (Salary, Wages, & Benefits)
A26: Management (including executive) | B26: 1335255.408 | C26: 1421924.11 | D26: 1513121.57 | E26: 1534169.14 | F26: 1721443.63 | G26: 1985883.53 | H26: 1837845.706 | I26: 1874602.62
A27: Non-Management (union and non-union) | B27: 2635822.398 | C27: 2766327.26 | D27: 2809034.81 | E27: 2981390.7 | F27: 3226441.53 | G27: 3003198.55 | H27: 2788683.317 | I27: 2844456.983
A28: Total | B28: 3971077.805 | C28: 4188251.37 | D28: 4322156.38 | E28: 4515559.84 | F28: 4947885.16 | G28: 4989082.08 | H28: 4626529.022 | I28: 4719059.603
A30: Note:
A31: 1 If an applicant wishes to use headcount, it must also file the same schedule on an FTE basis.
A32: 2 Current employee benefits, plus Pension and Other Post-Employment Benefits costs, as recorded for recovery in distribution rates. Should be consistent with OPEBs costs as documented in Appendix 2-KA.

Sheet App.2-L_OM&A_per_Cust_FTE
J1: File Number: | K1: =EBNUMBER -> EB-2017-0038
J2: Exhibit: | K2: 4
J3: Tab: | K3: 2
J4: Schedule:
J5: Page: | K5: 16
J7: Date: | K7: February 26, 2018
B9: Appendix 2-L
B10: Recoverable OM&A Cost per Customer and per FTE 1
D13: ="Last Rebasing Year - "&RebaseYear&"- Board Approved" -> Last Rebasing Year - 2012- Board Approved | E13: ="Last Rebasing Year - "&RebaseYear&"- Actual" -> Last Rebasing Year - 2012- Actual | F13: =BridgeYear -4 & " Actuals" -> 2013 Actuals | G13: =BridgeYear -3 & " Actuals" -> 2014 Actuals | H13: =BridgeYear -2 & " Actuals" -> 2015 Actuals | I13: =BridgeYear -1 & " Actuals" -> 2016 Actuals | J13: =BridgeYear & " Bridge Year" -> 2017 Bridge Year | K13: =TestYear & " Test Year" -> 2018 Test Year
B14: Reporting Basis
B15: OM&A Costs
B16: O&M | D16: ='App.2-JA_OM&A_Summary_Analys'!B17 -> 883955.6257 | E16: ='App.2-JA_OM&A_Summary_Analys'!C17 -> 755515.46 | F16: ='App.2-JA_OM&A_Summary_Analys'!D17 -> 745256.8 | G16: ='App.2-JA_OM&A_Summary_Analys'!E17 -> 688177.11 | H16: ='App.2-JA_OM&A_Summary_Analys'!F17 -> 448729.17 | I16: ='App.2-JA_OM&A_Summary_Analys'!G17 -> 378375.58 | J16: ='App.2-JA_OM&A_Summary_Analys'!H17 -> 456531.5241 | K16: ='App.2-JA_OM&A_Summary_Analys'!I17 -> 484748.743
B17: Admin Expenses | D17: ='App.2-JA_OM&A_Summary_Analys'!B23 -> 4776638.431 | E17: ='App.2-JA_OM&A_Summary_Analys'!C23 -> 4099623 | F17: ='App.2-JA_OM&A_Summary_Analys'!D23 -> 4855472.35 | G17: ='App.2-JA_OM&A_Summary_Analys'!E23 -> 4914771.53 | H17: ='App.2-JA_OM&A_Summary_Analys'!F23 -> 5343494 | I17: ='App.2-JA_OM&A_Summary_Analys'!G23 -> 5614126 | J17: ='App.2-JA_OM&A_Summary_Analys'!H23 -> 5725376.083 | K17: ='App.2-JA_OM&A_Summary_Analys'!I23 -> 5972020.656
B18: Total Recoverable OM&A from Appendix 2-JB 5 | D18: ='App.2-JB_OM&A_Cost _Drivers'!B15 -> 5660594 | E18: ='App.2-JB_OM&A_Cost _Drivers'!B48 -> 5600728.87 | F18: ='App.2-JB_OM&A_Cost _Drivers'!C48 -> 5600728.87 | G18: ='App.2-JB_OM&A_Cost _Drivers'!D48 -> 5602948.911 | H18: ='App.2-JB_OM&A_Cost _Drivers'!E48 -> 5792222.581 | I18: ='App.2-JB_OM&A_Cost _Drivers'!F48 -> 5992500.311 | J18: ='App.2-JB_OM&A_Cost _Drivers'!G48 -> 6181909.014 | K18: ='App.2-JB_OM&A_Cost _Drivers'!H48 -> 6456767.659
B19: Number of Customers 2,4 | D19: 18934 | E19: 18784.25 | F19: 18900.08333 | G19: 19038.41667 | H19: 19207.66667 | I19: 19400.58333 | J19: 19538.59394 | K19: 19676.87681
B20: Number of FTEs 3,4 | D20: 45 | E20: 44 | F20: 45 | G20: 45 | H20: 45 | I20: 46 | J20: 44 | K20: 44
B21: Customers/FTEs | D21: =IF(D20=0,"",D19/D20) -> 420.7555556 | E21: =IF(E20=0,"",E19/E20) -> 426.9147727 | G21: =IF(G20=0,"",G19/G20) -> 423.0759259 | H21: 426.837037 | I21: 421.7518116 | J21: 444.0589533 | K21: 447.2017458
B22: OM&A cost per customer
B23: O&M per customer | D23: =IF(D19=0,"",D16/D19) -> 46.68615326 | E23: =IF(E19=0,"",E16/E19) -> 40.22068808 | F23: =IF(F19=0,"",F16/F19) -> 39.43140286 | G23: =IF(G19=0,"",G16/G19) -> 36.14676168 | H23: 23.36198237 | I23: 19.50330944 | J23: 23.36562833 | K23: 24.63545143
B24: Admin per customer | D24: =IF(D19=0,"",D17/D19) -> 252.278358 | E24: =IF(E19=0,"",E17/E19) -> 218.2478938 | F24: =IF(F19=0,"",F17/F19) -> 256.9021662 | G24: =IF(G19=0,"",G17/G19) -> 258.1502242 | H24: 278.195894 | I24: 289.3792369 | J24: 293.0290736 | K24: 303.5044998
B25: Total OM&A per customer | D25: =IF(D19=0,"",D18/D19) -> 298.9645083 | E25: =IF(E19=0,"",E18/E19) -> 298.1608992 | F25: =IF(F19=0,"",F18/F19) -> 296.3335543 | G25: =IF(G19=0,"",G18/G19) -> 294.2970001 | H25: 301.5578457 | I25: 308.8824809 | J25: 316.3947739 | K25: 328.1398629
B26: OM&A cost per FTE
B27: O&M per FTE | D27: =IF(D20=0,"",D16/D20) -> 19643.45835 | E27: =IF(E20=0,"",E16/E20) -> 17170.80591 | F27: =IF(F20=0,"",F16/F20) -> 16561.26222 | G27: =IF(G20=0,"",G16/G20) -> 15292.82467 | H27: 9971.759333 | I27: 8225.556087 | J27: 10375.71646 | K27: 11017.01689
B28: Admin per FTE | D28: =IF(D20=0,"",D17/D20) -> 106147.5207 | E28: =IF(E20=0,"",E17/E20) -> 93173.25 | F28: =IF(F20=0,"",F17/F20) -> 107899.3856 | G28: =IF(G20=0,"",G17/G20) -> 109217.1451 | H28: 118744.3111 | I28: 122046.2174 | J28: 130122.1837 | K28: 135727.7422
B29: Total OM&A per FTE | D29: =IF(D20=0,"",D18/D20) -> 125790.9778 | E29: =IF(E20=0,"",E18/E20) -> 127289.2925 | F29: =IF(F20=0,"",F18/F20) -> 124460.6416 | G29: =IF(G20=0,"",G18/G20) -> 124509.9758 | H29: 128716.0573 | I29: 130271.7459 | J29: 140497.9321 | K29: 146744.7195
B31: Notes:
B33: 1 | C33: If it has been more than four years since the applicant last filed a cost of service application, additional years of historical actuals should be incorporated into the table, as necessary, to go back to the last cost of service application. If the applicant last filed a cost of service application less than four years ago, a minimum of three years of actual information is required.
B35: 2 | C35: The method of calculating the number of customers must be identified. Should correspond with data provided in Appendix 2-IB.
B36: 3 | C36: The method of calculating the number of FTEs must be identified. See also Appendix 2-K.
B37: 4 | C37: The number of customers and the number of FTEs should correspond to mid-year or average of January 1 and December 31 figures.
B38: 5 | C38: For the test year, the applicant should take into account the system O&M (line 22 of Appendix 2-AB) in developing its forecasted OM&A.

Sheet App.2-L_OM&A_per_Cust_FTEE_exp (hidden)
K1: File Number: | L1: =EBNUMBER -> EB-2017-0038
K2: Exhibit:
K3: Tab:
K4: Schedule:
K5: Page:
K7: Date:
A9: Appendix 2-L
A10: Recoverable OM&A Cost per Customer and per FTE 1
H12: 5-year Distribution System Plan Period
C13: ="Last Rebasing Year - "&RebaseYear&"- Board Approved" -> Last Rebasing Year - 2012- Board Approved | D13: ="Last Rebasing Year - "&RebaseYear&"- Actual" -> Last Rebasing Year - 2012- Actual | E13: =BridgeYear -2 & " Actuals" -> 2015 Actuals | F13: =BridgeYear -1 & " Actuals" -> 2016 Actuals | G13: =BridgeYear & " Bridge Year" -> 2017 Bridge Year | H13: =TestYear & " Test Year" -> 2018 Test Year | I13: =TestYear+1 & " Year" -> 2019 Year | J13: =TestYear+2 & " Year" -> 2020 Year | K13: =TestYear+3 & " Year" -> 2021 Year | L13: =TestYear+4 & " Year" -> 2022 Year
A14: Reporting Basis
A15: OM&A Costs
A16: O&M
A17: Admin Expenses
A18: Total Recoverable OM&A from Appendix 2-JB 5 | C18: =SUM(C16:C17) -> 0 | D18: =SUM(D16:D17) -> 0 | E18: 0 | F18: 0 | G18: 0 | H18: 0 | I18: 0 | J18: 0 | K18: 0 | L18: 0
A19: Number of Customers 2,4
A20: Number of FTEs 3,4
A21: Customers/FTEs | C21: =IF(C20=0,"",C19/C20) ->  | D21: =IF(D20=0,"",D19/D20) -> 
A22: OM&A cost per customer
A23: O&M per customer | C23: =IF(C19=0,"",C16/C19) ->  | D23: =IF(D19=0,"",D16/D19) -> 
A24: Admin per customer | C24: =IF(C19=0,"",C17/C19) ->  | D24: =IF(D19=0,"",D17/D19) -> 
A25: Total OM&A per customer | C25: =IF(C19=0,"",C18/C19) ->  | D25: =IF(D19=0,"",D18/D19) -> 
A26: OM&A cost per FTE
A27: O&M per FTE | C27: =IF(C20=0,"",C16/C20) ->  | D27: =IF(D20=0,"",D16/D20) -> 
A28: Admin per FTE | C28: =IF(C20=0,"",C17/C20) ->  | D28: =IF(D20=0,"",D17/D20) -> 
A29: Total OM&A per FTE | C29: =IF(C20=0,"",C18/C20) ->  | D29: =IF(D20=0,"",D18/D20) -> 
A31: Notes:
A33: 1 | B33: If it has been more than three years since the applicant last filed a cost of service application, additional years of historical actuals should be incorporated into the table, as necessary, to go back to the last cost of service application. If the applicant last filed a cost of service application less than three years ago, a minimum of three years of actual information is required.
A35: 2 | B35: The method of calculating the number of customers must be identified. Should be linked back to Appendix 2-IA
A36: 3 | B36: The method of calculating the number of FTEs must be identified. See also Appendix 2-K
A37: 4 | B37: The number of customers and the number of FTEs should correspond to mid-year or average of January 1 and December 31 figures.
A38: 5 | B38: For the test year and in the subsequent four years of the DSP period, the applicant should take into account the system O&M (line X of Appendix 2-AB) in developing its forecasted OM&A. Admin expenses beyond the test year also need to be forecasted (separately).

Sheet App.2-M_Regulatory_Costs
J1: File Number: | K1: =EBNUMBER -> EB-2017-0038
J2: Exhibit: | K2: 4
J3: Tab: | K3: 7
J4: Schedule:
J5: Page: | K5: 46
J7: Date: | K7: February 26, 2018
A9: Appendix 2-M
A10: Regulatory Cost Schedule
A13: Regulatory Cost Category | C13: USoA Account | D13: USoA Account Balance | E13: Ongoing or One-time Cost? 2 | F13: ="Last Rebasing Year (" & RebaseYear & " Board Approved)" -> Last Rebasing Year (2012 Board Approved) | G13: ="Most Current Actuals Year " & TestYear - 2 -> Most Current Actuals Year 2016 | H13: =TestYear -1 & " Bridge Year" -> 2017 Bridge Year | I13: Annual % Change | J13: =TestYear & " Test Year" -> 2018 Test Year | K13: Annual % Change
A14: (A) | C14: (B) | D14: (C ) | E14: (D) | F14: (E) | G14: (F) | H14: (G) | I14: (H) = [(G)-(F)]/(F) | J14: (I) | K14: (J) = [(I)-(G)]/(G)
A15: 1 | B15: OEB Annual Assessment | C15: 5655 | D15: 71081.26 | E15: On-Going | F15: 53948 | G15: 71081.26 | H15: 83308 | I15: =IF(G15=0,"",(H15-G15)/G15) -> 0.1720107381 | J15: 86640.32 | K15: =IF(H15=0,"",(J15-H15)/H15) -> 0.04
A16: 2 | B16: OEB Section 30 Costs (Applicant-originated) | C16: 5655 | D16: 71081.26 | E16: On-Going | G16: 71081.26 | H16: =87500-H15 -> 4192 | I16: =IF(G16=0,"",(H16-G16)/G16) -> -0.9410252435 | J16: 5500 | K16: =IF(H16=0,"",(J16-H16)/H16) -> 0.3120229008
A17: 3 | B17: OEB Section 30 Costs (OEB-initiated)
A18: 4 | B18: Expert Witness costs for regulatory matters | E18: One-Time | F18: 15000
A19: 5 | B19: Legal costs for regulatory matters | C19: 5630 | D19: 315346.3 | E19: One-Time | F19: 75000 | G19: 7401.36 | H19: 58594.1 | I19: 6.916666667 | J19: 23437.64 | K19: -0.6
A20: 6 | B20: Consultants' costs for regulatory matters | C20: 5630 | D20: 315346.3 | E20: One-Time | F20: 105000 | G20: 4598.64 | H20: 36405.9 | I20: 6.916666667 | J20: 14562.36 | K20: -0.6
A21: 7 | B21: Operating expenses associated with staff resources allocated to regulatory matters | C21: 5630 | D21: 315346.3 | E21: One-Time | G21: 57105.26 | H21: 28000 | I21: =IF(G21=0,"",(H21-G21)/G21) -> -0.5096773922 | J21: 5000 | K21: =IF(H21=0,"",(J21-H21)/H21) -> -0.8214285714
A22: 8 | B22: Operating expenses associated with other resources allocated to regulatory matters 1 | C22: 5630 | D22: =D21 -> 315346.3 | E22: One-Time | J22: 12000
A23: 9 | B23: Other regulatory agency fees or assessments
A24: 10 | B24: Any other costs for regulatory matters (please define) Cyber Security and Risk | C24: 5655 | D24: =D16 -> 71081.26 | E24: On-Going | J24: 130000
A25: 11 | B25: Intervenor costs | F25: 30000 | G25: 0 | H25: 0 | J25: 70000 | K25: =IF(H25=0,"",(J25-H25)/H25) -> 
A26: 12 | B26: Sub-total - Ongoing Costs 3 | D26: =SUMIF($E15:$E25,$E11,D15:D25) -> 0 | F26: =SUMIF($E15:$E25,$E11,F15:F25) -> 0 | G26: =SUMIF($E15:$E25,$E11,G15:G25) -> 0 | H26: =SUMIF($E15:$E25,$E11,H15:H25) -> 0 | J26: =SUMIF($E15:$E25,$E11,J15:J25) -> 0
A27: 13 | B27: Sub-total - One-time Costs 4 | D27: =SUMIF($E15:$E25,$E12,D15:D25) -> 0 | F27: =SUMIF($E15:$E25,$E12,F15:F25) -> 0 | G27: =SUMIF($E15:$E25,$E12,G15:G25) -> 0 | H27: =SUMIF($E15:$E25,$E12,H15:H25) -> 0 | J27: =SUMIF($E15:$E25,$E12,J15:J25) -> 0
A28: 14 | B28: Total | D28: =D26+D27 -> 0 | F28: =F26+F27 -> 0 | G28: =G26+G27 -> 0 | H28: =H26+H27 -> 0 | J28: =J26+J27 -> 0
A31: Please fill out the following table for all one-time costs related to this cost of service application to be amortized over the test year plus the IRM period.
C33: Historical Year(s) | D33: =H13 -> 2017 Bridge Year | E33: =J13 -> 2018 Test Year
A34: 4 | B34: Expert Witness costs
A35: 5 | B35: Legal costs | C35: 7401.36 | D35: 58594.1 | E35: 23437.64
A36: 6 | B36: Consultants' costs | C36: 4598.64 | D36: 36405.9 | E36: 14562.36
A37: 7 | B37: Incremental operating expenses associated with staff resources allocated to this application. | C37: 57105.26 | D37: 28000 | E37: 5000
A38: 8 | B38: Incremental operating expenses associated with other resources allocated to this application. 1 | E38: 12000
A39: 11 | B39: Intervenor costs | E39: 70000
A41: Notes:
A43: 1 | B43: Please identify the resources involved.
A44: 2 | B44: Where a category's costs include both one-time and ongoing costs, the applicant should prove a separate breakdown between one-time and ongoing costs.
A45: 3 | B45: Sum of all ongoing costs identified in rows 1 to 11 inclusive.
A46: 4 | B46: Sum of all one-time costs identified in rows 1 to 11 inclusive.

Sheet App.2-N_Corp_Cost_Allocation
G1: File Number: | H1: =EBNUMBER -> EB-2017-0038
G2: Exhibit: | H2: 4
G3: Tab: | H3: 5
G4: Schedule:
G5: Page: | H5: 37-42
G7: Date: | H7: February 26, 2018
B9: Appendix 2-N
B10: Shared Services and Corporate Cost Allocation 1
C12: Year: | D12: 2012
B14: Shared Services
B16: Name of Company | D16: Service Offered | E16: Pricing Methodology | F16: Price for the Service | G16: Cost for the Service
B17: From | C17: To
F18: $ | G18: $
B19: ERTH Hldgs | C19: Erie Thames Powerlines | D19: IT Work | E19: Fully Allocated Costs | G19: 31057.5
B20: ERTH Hldgs | C20: Erie Thames Powerlines | D20: Billing Services | E20: Fully Allocated Costs | G20: 231028.19
B21: ERTH Hldgs | C21: Erie Thames Powerlines | D21: MSP | E21: Market Value | G21: 70560
B22: ERTH Hldgs | C22: Erie Thames Powerlines | D22: AMV | E22: Market Value | G22: 3613
B26: Erie Thames Powerlines | C26: ERTH Hldgs | D26: Billing Services | E26: Fully Allocated Costs | F26: 393236.6
B28: Erie Thames Powerlines | C28: ERTH Corp | D28: Eng/Ops/ Services | E28: Fully Allocated Costs | F28: =792741.32-631953.96 -> 160787.36
G29: =SUM(G19:G28) -> 336258.69
B31: Corporate Cost Allocation
B33: Name of Company | D33: Service Offered | E33: Pricing Methodology | F33: % of Corporate Costs Allocated | G33: Amount Allocated
B34: From | C34: To
F35: % | G35: $
B36: ERTH Corp | C36: Erie Thames Powerlines | D36: Rent | E36: Market Value | F36: 0.1978836861 | G36: 190000
B37: ERTH Corp | C37: Erie Thames Powerlines | D37: Board Corporate Governance Costs | E37: Fully Allocated Costs | F37: 0.05030828195 | G37: 48304
B38: ERTH Corp | C38: Erie Thames Powerlines | D38: IT Infrastructure | E38: Fully Allocated Costs | F38: 0.1338308199 | G38: 128499
B39: ERTH Corp | C39: Erie Thames Powerlines | D39: Legal | E39: Fully Allocated Costs | F39: 0.1352889102 | G39: 129899
B40: ERTH Corp | C40: Erie Thames Powerlines | D40: Business Development | E40: Fully Allocated Costs | F40: 0 | G40: 0
B41: ERTH Corp | C41: Erie Thames Powerlines | D41: Shared Costs | E41: Fully Allocated Costs | F41: 0.05728003666 | G41: 54998
B42: ERTH Corp | C42: Erie Thames Powerlines | D42: Human resourses | E42: Fully Allocated Costs | F42: 0.04790451591 | G42: 45996
B43: ERTH Corp | C43: Erie Thames Powerlines | D43: Management Fees | E43: Fully Allocated Costs | F43: 0.3775037494 | G43: 362464
G44: =SUM(G36:G43) -> 960160
B47: Note:
B48: 1 | C48: This appendix must be completed in relation to each service provided or received for the Historical (actuals), Bridge and Test years. The required information includes:
B51: · Type of Service:
B52: Services such as billing, accounting, payroll, etc. The applicant must identify any costs related to the Board of Directors of the parent company that are allocated to the applicant.
B54: · Pricing Methodology:
B55: Pricing Methodology includes approaches such as cost-base, market-base, tendering, etc. The applicant must provide evidence demonstrating the pricing methodology used. The applicant must also provide a description of why that pricing methodology was chosen, whether or not it is in conformity with ARC, and why it is appropriate.
B57: · % Allocation:
B58: The applicant must provide the percentage of the costs allocated to the entity for the service being offered. The Applicant must also provide a description of the allocator and why it is an appropriate allocator.
B60: Appendix 2-N
B61: Shared Services and Corporate Cost Allocation 1
C63: Year: | D63: 2013
B65: Shared Services
B67: Name of Company | D67: Service Offered | E67: Pricing Methodology | F67: Price for the Service | G67: Cost for the Service
B68: From | C68: To
F69: $ | G69: $
B70: ERTH Hldgs | C70: Erie Thames Powerlines | D70: IT Work | E70: Fully Allocated Costs | G70: 109224
B71: ERTH Hldgs | C71: Erie Thames Powerlines | D71: Billing Services | E71: Fully Allocated Costs | G71: 251250
B72: ERTH Hldgs | C72: Erie Thames Powerlines | D72: MSP | E72: Market Value | G72: 70560
B73: ERTH Hldgs | C73: Erie Thames Powerlines | D73: AMV | E73: Market Value | G73: 28069
B75: Erie Thames Powerlines | C75: ERTH Corp | D75: Eng/Ops/ Services to Goderich | E75: Fully Allocated Costs | F75: 165065.64
B77: Erie Thames Powerlines | C77: ERTH Hldgs | D77: Billing Services | E77: Fully Allocated Costs | F77: 365862.55
B79: Corporate Cost Allocation
B81: Name of Company | D81: Service Offered | E81: Pricing Methodology | F81: % of Corporate Costs Allocated | G81: Amount Allocated
B82: From | C82: To
F83: % | G83: $
B84: ERTH Corp | C84: Erie Thames Powerlines | D84: Rent | E84: Market Value | F84: 0.1741671601 | G84: 190000
B85: ERTH Corp | C85: Erie Thames Powerlines | D85: Board Corporate Governance Costs | E85: Fully Allocated Costs | F85: 0.04718555036 | G85: 51475
B86: ERTH Corp | C86: Erie Thames Powerlines | D86: IT Infrastructure | E86: Fully Allocated Costs | F86: 0.1206969253 | G86: 131669
B87: ERTH Corp | C87: Erie Thames Powerlines | D87: Legal | E87: Fully Allocated Costs | F87: 0.06775652531 | G87: 73916
B88: ERTH Corp | C88: Erie Thames Powerlines | D88: Business Development | E88: Fully Allocated Costs | F88: 0.006728352397 | G88: 7340
B89: ERTH Corp | C89: Erie Thames Powerlines | D89: Shared Costs | E89: Fully Allocated Costs | F89: 0.03716452197 | G89: 40543
B90: ERTH Corp | C90: Erie Thames Powerlines | D90: Human resourses | E90: Fully Allocated Costs | F90: 0.04969080746 | G90: 54208
B91: ERTH Corp | C91: Erie Thames Powerlines | D91: Management Fees | E91: Fully Allocated Costs | F91: 0.4966101571 | G91: 541755
B107: Appendix 2-N
B108: Shared Services and Corporate Cost Allocation 1
C110: Year: | D110: 2014
B112: Shared Services
B114: Name of Company | D114: Service Offered | E114: Pricing Methodology | F114: Price for the Service | G114: Cost for the Service
B115: From | C115: To
F116: $ | G116: $
B117: ERTH Hldgs | C117: Erie Thames Powerlines | D117: IT Work | E117: Fully Allocated Costs | G117: 12000
B118: ERTH Hldgs | C118: Erie Thames Powerlines | D118: Billing Services | E118: Fully Allocated Costs | G118: 262963.8
B119: ERTH Hldgs | C119: Erie Thames Powerlines | D119: MSP | E119: Market Value | G119: 70560
B120: ERTH Hldgs | C120: Erie Thames Powerlines | D120: AMV | E120: Market Value | G120: 4200
B121: ERTH Hldgs | C121: Erie Thames Powerlines | D121: Optimizer - Support/Mtnce | E121: Market Value | G121: 40000
B122: ERTH Hldgs | C122: Erie Thames Powerlines | D122: Data Mining | E122: Fully Allocated Costs | G122: 24000
B124: Erie Thames Powerlines | C124: ERTH Hldgs | D124: Billing Services | E124: Fully Allocated Costs | F124: 403321.14
B126: Erie Thames Powerlines | C126: ERTH Corp | D126: Eng/Ops/ Services | E126: Fully Allocated Costs | F126: 134512.42
B128: Corporate Cost Allocation
B130: Name of Company | D130: Service Offered | E130: Pricing Methodology | F130: % of Corporate Costs Allocated | G130: Amount Allocated
B131: From | C131: To
F132: % | G132: $
B133: ERTH Corp | C133: Erie Thames Powerlines | D133: Rent | E133: Market Value | F133: 0.1609798885 | G133: 205000
B134: ERTH Corp | C134: Erie Thames Powerlines | D134: Board Corporate Governance Costs | E134: Fully Allocated Costs | F134: 0.04643445252 | G134: 59132
B135: ERTH Corp | C135: Erie Thames Powerlines | D135: IT Infrastructure | E135: Fully Allocated Costs | F135: 0.1018319511 | G135: 129678
B136: ERTH Corp | C136: Erie Thames Powerlines | D136: Legal | E136: Fully Allocated Costs | F136: 0.04225604283 | G136: 53811
B137: ERTH Corp | C137: Erie Thames Powerlines | D137: Business Development | E137: Fully Allocated Costs | F137: 0 | G137: 0
B138: ERTH Corp | C138: Erie Thames Powerlines | D138: Shared Costs | E138: Fully Allocated Costs | F138: 0.06703595191 | G138: 85367
B139: ERTH Corp | C139: Erie Thames Powerlines | D139: Human resourses | E139: Fully Allocated Costs | F139: 0.0584364848 | G139: 74416
B140: ERTH Corp | C140: Erie Thames Powerlines | D140: Management Fees | E140: Fully Allocated Costs | F140: 0.5230252283 | G140: 666047
G143: =SUM(G133:G142) -> 1273451
B159: Appendix 2-N
B160: Shared Services and Corporate Cost Allocation 1
C162: Year: | D162: 2015
